Workbook

Sheet Introduction

Sheet Conversion 1
B3: User input value | C3: User input type | D3: Output in mg/L CaCO3 | E3: Output in mg/L Ca
B4: 0 | C4: mg/L CaCO3 | D4: =HLOOKUP(C4,'Formula Sheet 1'!$E$2:$P4,'Formula Sheet 1'!$D4,FALSE) -> 0 | E4: =IF('Formula Sheet 1'!B4>10, (0.00005*(D4^2))+(0.3389*D4)-1.431, 0.1423*(D4^1.2528)) -> 0
B5: 0 | C5: =C4 -> mg/L CaCO3 | D5: =HLOOKUP(C5,'Formula Sheet 1'!$E$2:$P5,'Formula Sheet 1'!$D5,FALSE) -> 0 | E5: =IF('Formula Sheet 1'!B5>10, (0.00005*(D5^2))+(0.3389*D5)-1.431, 0.1423*(D5^1.2528)) -> 0
B6: 0 | C6: mg/L CaCO3 | D6: =HLOOKUP(C6,'Formula Sheet 1'!$E$2:$P6,'Formula Sheet 1'!$D6,FALSE) -> 0 | E6: =IF('Formula Sheet 1'!B6>10, (0.00005*(D6^2))+(0.3389*D6)-1.431, 0.1423*(D6^1.2528)) -> 0
B7: 0 | C7: mg/L CaCO3 | D7: =HLOOKUP(C7,'Formula Sheet 1'!$E$2:$P7,'Formula Sheet 1'!$D7,FALSE) -> 0 | E7: =IF('Formula Sheet 1'!B7>10, (0.00005*(D7^2))+(0.3389*D7)-1.431, 0.1423*(D7^1.2528)) -> 0
B8: 0 | C8: mg/L CaCO3 | D8: =HLOOKUP(C8,'Formula Sheet 1'!$E$2:$P8,'Formula Sheet 1'!$D8,FALSE) -> 0 | E8: =IF('Formula Sheet 1'!B8>10, (0.00005*(D8^2))+(0.3389*D8)-1.431, 0.1423*(D8^1.2528)) -> 0
B9: 0 | C9: mg/L CaCO3 | D9: =HLOOKUP(C9,'Formula Sheet 1'!$E$2:$P9,'Formula Sheet 1'!$D9,FALSE) -> 0 | E9: =IF('Formula Sheet 1'!B9>10, (0.00005*(D9^2))+(0.3389*D9)-1.431, 0.1423*(D9^1.2528)) -> 0
B10: 0 | C10: mg/L CaCO3 | D10: =HLOOKUP(C10,'Formula Sheet 1'!$E$2:$P10,'Formula Sheet 1'!$D10,FALSE) -> 0 | E10: =IF('Formula Sheet 1'!B10>10, (0.00005*(D10^2))+(0.3389*D10)-1.431, 0.1423*(D10^1.2528)) -> 0
B11: 0 | C11: mg/L CaCO3 | D11: =HLOOKUP(C11,'Formula Sheet 1'!$E$2:$P11,'Formula Sheet 1'!$D11,FALSE) -> 0 | E11: =IF('Formula Sheet 1'!B11>10, (0.00005*(D11^2))+(0.3389*D11)-1.431, 0.1423*(D11^1.2528)) -> 0
B12: 0 | C12: mg/L CaCO3 | D12: =HLOOKUP(C12,'Formula Sheet 1'!$E$2:$P12,'Formula Sheet 1'!$D12,FALSE) -> 0 | E12: =IF('Formula Sheet 1'!B12>10, (0.00005*(D12^2))+(0.3389*D12)-1.431, 0.1423*(D12^1.2528)) -> 0
B13: 0 | C13: mg/L CaCO3 | D13: =HLOOKUP(C13,'Formula Sheet 1'!$E$2:$P13,'Formula Sheet 1'!$D13,FALSE) -> 0 | E13: =IF('Formula Sheet 1'!B13>10, (0.00005*(D13^2))+(0.3389*D13)-1.431, 0.1423*(D13^1.2528)) -> 0
B14: 0 | C14: mg/L CaCO3 | D14: =HLOOKUP(C14,'Formula Sheet 1'!$E$2:$P14,'Formula Sheet 1'!$D14,FALSE) -> 0 | E14: =IF('Formula Sheet 1'!B14>10, (0.00005*(D14^2))+(0.3389*D14)-1.431, 0.1423*(D14^1.2528)) -> 0
B15: 0 | C15: mg/L CaCO3 | D15: =HLOOKUP(C15,'Formula Sheet 1'!$E$2:$P15,'Formula Sheet 1'!$D15,FALSE) -> 0 | E15: =IF('Formula Sheet 1'!B15>10, (0.00005*(D15^2))+(0.3389*D15)-1.431, 0.1423*(D15^1.2528)) -> 0
B16: 0 | C16: mg/L CaCO3 | D16: =HLOOKUP(C16,'Formula Sheet 1'!$E$2:$P16,'Formula Sheet 1'!$D16,FALSE) -> 0 | E16: =IF('Formula Sheet 1'!B16>10, (0.00005*(D16^2))+(0.3389*D16)-1.431, 0.1423*(D16^1.2528)) -> 0
B17: 0 | C17: mg/L CaCO3 | D17: =HLOOKUP(C17,'Formula Sheet 1'!$E$2:$P17,'Formula Sheet 1'!$D17,FALSE) -> 0 | E17: =IF('Formula Sheet 1'!B17>10, (0.00005*(D17^2))+(0.3389*D17)-1.431, 0.1423*(D17^1.2528)) -> 0
B18: 0 | C18: mg/L CaCO3 | D18: =HLOOKUP(C18,'Formula Sheet 1'!$E$2:$P18,'Formula Sheet 1'!$D18,FALSE) -> 0 | E18: =IF('Formula Sheet 1'!B18>10, (0.00005*(D18^2))+(0.3389*D18)-1.431, 0.1423*(D18^1.2528)) -> 0
B19: 0 | C19: mg/L CaCO3 | D19: =HLOOKUP(C19,'Formula Sheet 1'!$E$2:$P19,'Formula Sheet 1'!$D19,FALSE) -> 0 | E19: =IF('Formula Sheet 1'!B19>10, (0.00005*(D19^2))+(0.3389*D19)-1.431, 0.1423*(D19^1.2528)) -> 0
B20: 0 | C20: mg/L CaCO3 | D20: =HLOOKUP(C20,'Formula Sheet 1'!$E$2:$P20,'Formula Sheet 1'!$D20,FALSE) -> 0 | E20: =IF('Formula Sheet 1'!B20>10, (0.00005*(D20^2))+(0.3389*D20)-1.431, 0.1423*(D20^1.2528)) -> 0
B21: 0 | C21: mg/L CaCO3 | D21: =HLOOKUP(C21,'Formula Sheet 1'!$E$2:$P21,'Formula Sheet 1'!$D21,FALSE) -> 0 | E21: =IF('Formula Sheet 1'!B21>10, (0.00005*(D21^2))+(0.3389*D21)-1.431, 0.1423*(D21^1.2528)) -> 0
B22: 0 | C22: mg/L CaCO3 | D22: =HLOOKUP(C22,'Formula Sheet 1'!$E$2:$P22,'Formula Sheet 1'!$D22,FALSE) -> 0 | E22: =IF('Formula Sheet 1'!B22>10, (0.00005*(D22^2))+(0.3389*D22)-1.431, 0.1423*(D22^1.2528)) -> 0
B23: 0 | C23: mg/L CaCO3 | D23: =HLOOKUP(C23,'Formula Sheet 1'!$E$2:$P23,'Formula Sheet 1'!$D23,FALSE) -> 0 | E23: =IF('Formula Sheet 1'!B23>10, (0.00005*(D23^2))+(0.3389*D23)-1.431, 0.1423*(D23^1.2528)) -> 0
B24: 0 | C24: mg/L CaCO3 | D24: =HLOOKUP(C24,'Formula Sheet 1'!$E$2:$P24,'Formula Sheet 1'!$D24,FALSE) -> 0 | E24: =IF('Formula Sheet 1'!B24>10, (0.00005*(D24^2))+(0.3389*D24)-1.431, 0.1423*(D24^1.2528)) -> 0
B25: 0 | C25: mg/L CaCO3 | D25: =HLOOKUP(C25,'Formula Sheet 1'!$E$2:$P25,'Formula Sheet 1'!$D25,FALSE) -> 0 | E25: =IF('Formula Sheet 1'!B25>10, (0.00005*(D25^2))+(0.3389*D25)-1.431, 0.1423*(D25^1.2528)) -> 0
B26: 0 | C26: mg/L CaCO3 | D26: =HLOOKUP(C26,'Formula Sheet 1'!$E$2:$P26,'Formula Sheet 1'!$D26,FALSE) -> 0 | E26: =IF('Formula Sheet 1'!B26>10, (0.00005*(D26^2))+(0.3389*D26)-1.431, 0.1423*(D26^1.2528)) -> 0
B27: 0 | C27: mg/L CaCO3 | D27: =HLOOKUP(C27,'Formula Sheet 1'!$E$2:$P27,'Formula Sheet 1'!$D27,FALSE) -> 0 | E27: =IF('Formula Sheet 1'!B27>10, (0.00005*(D27^2))+(0.3389*D27)-1.431, 0.1423*(D27^1.2528)) -> 0
B28: 0 | C28: mg/L CaCO3 | D28: =HLOOKUP(C28,'Formula Sheet 1'!$E$2:$P28,'Formula Sheet 1'!$D28,FALSE) -> 0 | E28: =IF('Formula Sheet 1'!B28>10, (0.00005*(D28^2))+(0.3389*D28)-1.431, 0.1423*(D28^1.2528)) -> 0
B29: 0 | C29: mg/L CaCO3 | D29: =HLOOKUP(C29,'Formula Sheet 1'!$E$2:$P29,'Formula Sheet 1'!$D29,FALSE) -> 0 | E29: =IF('Formula Sheet 1'!B29>10, (0.00005*(D29^2))+(0.3389*D29)-1.431, 0.1423*(D29^1.2528)) -> 0
B30: 0 | C30: mg/L CaCO3 | D30: =HLOOKUP(C30,'Formula Sheet 1'!$E$2:$P30,'Formula Sheet 1'!$D30,FALSE) -> 0 | E30: =IF('Formula Sheet 1'!B30>10, (0.00005*(D30^2))+(0.3389*D30)-1.431, 0.1423*(D30^1.2528)) -> 0
B31: 0 | C31: mg/L CaCO3 | D31: =HLOOKUP(C31,'Formula Sheet 1'!$E$2:$P31,'Formula Sheet 1'!$D31,FALSE) -> 0 | E31: =IF('Formula Sheet 1'!B31>10, (0.00005*(D31^2))+(0.3389*D31)-1.431, 0.1423*(D31^1.2528)) -> 0
B32: 0 | C32: mg/L CaCO3 | D32: =HLOOKUP(C32,'Formula Sheet 1'!$E$2:$P32,'Formula Sheet 1'!$D32,FALSE) -> 0 | E32: =IF('Formula Sheet 1'!B32>10, (0.00005*(D32^2))+(0.3389*D32)-1.431, 0.1423*(D32^1.2528)) -> 0
B33: 0 | C33: mg/L CaCO3 | D33: =HLOOKUP(C33,'Formula Sheet 1'!$E$2:$P33,'Formula Sheet 1'!$D33,FALSE) -> 0 | E33: =IF('Formula Sheet 1'!B33>10, (0.00005*(D33^2))+(0.3389*D33)-1.431, 0.1423*(D33^1.2528)) -> 0
B34: 0 | C34: mg/L CaCO3 | D34: =HLOOKUP(C34,'Formula Sheet 1'!$E$2:$P34,'Formula Sheet 1'!$D34,FALSE) -> 0 | E34: =IF('Formula Sheet 1'!B34>10, (0.00005*(D34^2))+(0.3389*D34)-1.431, 0.1423*(D34^1.2528)) -> 0
B35: 0 | C35: mg/L CaCO3 | D35: =HLOOKUP(C35,'Formula Sheet 1'!$E$2:$P35,'Formula Sheet 1'!$D35,FALSE) -> 0 | E35: =IF('Formula Sheet 1'!B35>10, (0.00005*(D35^2))+(0.3389*D35)-1.431, 0.1423*(D35^1.2528)) -> 0
B36: 0 | C36: mg/L CaCO3 | D36: =HLOOKUP(C36,'Formula Sheet 1'!$E$2:$P36,'Formula Sheet 1'!$D36,FALSE) -> 0 | E36: =IF('Formula Sheet 1'!B36>10, (0.00005*(D36^2))+(0.3389*D36)-1.431, 0.1423*(D36^1.2528)) -> 0
B37: 0 | C37: mg/L CaCO3 | D37: =HLOOKUP(C37,'Formula Sheet 1'!$E$2:$P37,'Formula Sheet 1'!$D37,FALSE) -> 0 | E37: =IF('Formula Sheet 1'!B37>10, (0.00005*(D37^2))+(0.3389*D37)-1.431, 0.1423*(D37^1.2528)) -> 0
B38: 0 | C38: mg/L CaCO3 | D38: =HLOOKUP(C38,'Formula Sheet 1'!$E$2:$P38,'Formula Sheet 1'!$D38,FALSE) -> 0 | E38: =IF('Formula Sheet 1'!B38>10, (0.00005*(D38^2))+(0.3389*D38)-1.431, 0.1423*(D38^1.2528)) -> 0
B39: 0 | C39: mg/L CaCO3 | D39: =HLOOKUP(C39,'Formula Sheet 1'!$E$2:$P39,'Formula Sheet 1'!$D39,FALSE) -> 0 | E39: =IF('Formula Sheet 1'!B39>10, (0.00005*(D39^2))+(0.3389*D39)-1.431, 0.1423*(D39^1.2528)) -> 0
B40: 0 | C40: mg/L CaCO3 | D40: =HLOOKUP(C40,'Formula Sheet 1'!$E$2:$P40,'Formula Sheet 1'!$D40,FALSE) -> 0 | E40: =IF('Formula Sheet 1'!B40>10, (0.00005*(D40^2))+(0.3389*D40)-1.431, 0.1423*(D40^1.2528)) -> 0
B41: 0 | C41: mg/L CaCO3 | D41: =HLOOKUP(C41,'Formula Sheet 1'!$E$2:$P41,'Formula Sheet 1'!$D41,FALSE) -> 0 | E41: =IF('Formula Sheet 1'!B41>10, (0.00005*(D41^2))+(0.3389*D41)-1.431, 0.1423*(D41^1.2528)) -> 0
B42: 0 | C42: mg/L CaCO3 | D42: =HLOOKUP(C42,'Formula Sheet 1'!$E$2:$P42,'Formula Sheet 1'!$D42,FALSE) -> 0 | E42: =IF('Formula Sheet 1'!B42>10, (0.00005*(D42^2))+(0.3389*D42)-1.431, 0.1423*(D42^1.2528)) -> 0
B43: 0 | C43: mg/L CaCO3 | D43: =HLOOKUP(C43,'Formula Sheet 1'!$E$2:$P43,'Formula Sheet 1'!$D43,FALSE) -> 0 | E43: =IF('Formula Sheet 1'!B43>10, (0.00005*(D43^2))+(0.3389*D43)-1.431, 0.1423*(D43^1.2528)) -> 0
B44: 0 | C44: mg/L CaCO3 | D44: =HLOOKUP(C44,'Formula Sheet 1'!$E$2:$P44,'Formula Sheet 1'!$D44,FALSE) -> 0 | E44: =IF('Formula Sheet 1'!B44>10, (0.00005*(D44^2))+(0.3389*D44)-1.431, 0.1423*(D44^1.2528)) -> 0
B45: 0 | C45: mg/L CaCO3 | D45: =HLOOKUP(C45,'Formula Sheet 1'!$E$2:$P45,'Formula Sheet 1'!$D45,FALSE) -> 0 | E45: =IF('Formula Sheet 1'!B45>10, (0.00005*(D45^2))+(0.3389*D45)-1.431, 0.1423*(D45^1.2528)) -> 0
B46: 0 | C46: mg/L CaCO3 | D46: =HLOOKUP(C46,'Formula Sheet 1'!$E$2:$P46,'Formula Sheet 1'!$D46,FALSE) -> 0 | E46: =IF('Formula Sheet 1'!B46>10, (0.00005*(D46^2))+(0.3389*D46)-1.431, 0.1423*(D46^1.2528)) -> 0
B47: 0 | C47: mg/L CaCO3 | D47: =HLOOKUP(C47,'Formula Sheet 1'!$E$2:$P47,'Formula Sheet 1'!$D47,FALSE) -> 0 | E47: =IF('Formula Sheet 1'!B47>10, (0.00005*(D47^2))+(0.3389*D47)-1.431, 0.1423*(D47^1.2528)) -> 0
B48: 0 | C48: mg/L CaCO3 | D48: =HLOOKUP(C48,'Formula Sheet 1'!$E$2:$P48,'Formula Sheet 1'!$D48,FALSE) -> 0 | E48: =IF('Formula Sheet 1'!B48>10, (0.00005*(D48^2))+(0.3389*D48)-1.431, 0.1423*(D48^1.2528)) -> 0
B49: 0 | C49: mg/L CaCO3 | D49: =HLOOKUP(C49,'Formula Sheet 1'!$E$2:$P49,'Formula Sheet 1'!$D49,FALSE) -> 0 | E49: =IF('Formula Sheet 1'!B49>10, (0.00005*(D49^2))+(0.3389*D49)-1.431, 0.1423*(D49^1.2528)) -> 0
B50: 0 | C50: mg/L CaCO3 | D50: =HLOOKUP(C50,'Formula Sheet 1'!$E$2:$P50,'Formula Sheet 1'!$D50,FALSE) -> 0 | E50: =IF('Formula Sheet 1'!B50>10, (0.00005*(D50^2))+(0.3389*D50)-1.431, 0.1423*(D50^1.2528)) -> 0
B51: 0 | C51: mg/L CaCO3 | D51: =HLOOKUP(C51,'Formula Sheet 1'!$E$2:$P51,'Formula Sheet 1'!$D51,FALSE) -> 0 | E51: =IF('Formula Sheet 1'!B51>10, (0.00005*(D51^2))+(0.3389*D51)-1.431, 0.1423*(D51^1.2528)) -> 0
B52: 0 | C52: mg/L CaCO3 | D52: =HLOOKUP(C52,'Formula Sheet 1'!$E$2:$P52,'Formula Sheet 1'!$D52,FALSE) -> 0 | E52: =IF('Formula Sheet 1'!B52>10, (0.00005*(D52^2))+(0.3389*D52)-1.431, 0.1423*(D52^1.2528)) -> 0
B53: 0 | C53: mg/L CaCO3 | D53: =HLOOKUP(C53,'Formula Sheet 1'!$E$2:$P53,'Formula Sheet 1'!$D53,FALSE) -> 0 | E53: =IF('Formula Sheet 1'!B53>10, (0.00005*(D53^2))+(0.3389*D53)-1.431, 0.1423*(D53^1.2528)) -> 0
B54: 0 | C54: mg/L CaCO3 | D54: =HLOOKUP(C54,'Formula Sheet 1'!$E$2:$P54,'Formula Sheet 1'!$D54,FALSE) -> 0 | E54: =IF('Formula Sheet 1'!B54>10, (0.00005*(D54^2))+(0.3389*D54)-1.431, 0.1423*(D54^1.2528)) -> 0
B55: 0 | C55: mg/L CaCO3 | D55: =HLOOKUP(C55,'Formula Sheet 1'!$E$2:$P55,'Formula Sheet 1'!$D55,FALSE) -> 0 | E55: =IF('Formula Sheet 1'!B55>10, (0.00005*(D55^2))+(0.3389*D55)-1.431, 0.1423*(D55^1.2528)) -> 0
B56: 0 | C56: mg/L CaCO3 | D56: =HLOOKUP(C56,'Formula Sheet 1'!$E$2:$P56,'Formula Sheet 1'!$D56,FALSE) -> 0 | E56: =IF('Formula Sheet 1'!B56>10, (0.00005*(D56^2))+(0.3389*D56)-1.431, 0.1423*(D56^1.2528)) -> 0
B57: 0 | C57: mg/L CaCO3 | D57: =HLOOKUP(C57,'Formula Sheet 1'!$E$2:$P57,'Formula Sheet 1'!$D57,FALSE) -> 0 | E57: =IF('Formula Sheet 1'!B57>10, (0.00005*(D57^2))+(0.3389*D57)-1.431, 0.1423*(D57^1.2528)) -> 0
B58: 0 | C58: mg/L CaCO3 | D58: =HLOOKUP(C58,'Formula Sheet 1'!$E$2:$P58,'Formula Sheet 1'!$D58,FALSE) -> 0 | E58: =IF('Formula Sheet 1'!B58>10, (0.00005*(D58^2))+(0.3389*D58)-1.431, 0.1423*(D58^1.2528)) -> 0
B59: 0 | C59: mg/L CaCO3 | D59: =HLOOKUP(C59,'Formula Sheet 1'!$E$2:$P59,'Formula Sheet 1'!$D59,FALSE) -> 0 | E59: =IF('Formula Sheet 1'!B59>10, (0.00005*(D59^2))+(0.3389*D59)-1.431, 0.1423*(D59^1.2528)) -> 0
B60: 0 | C60: mg/L CaCO3 | D60: =HLOOKUP(C60,'Formula Sheet 1'!$E$2:$P60,'Formula Sheet 1'!$D60,FALSE) -> 0 | E60: =IF('Formula Sheet 1'!B60>10, (0.00005*(D60^2))+(0.3389*D60)-1.431, 0.1423*(D60^1.2528)) -> 0
B61: 0 | C61: mg/L CaCO3 | D61: =HLOOKUP(C61,'Formula Sheet 1'!$E$2:$P61,'Formula Sheet 1'!$D61,FALSE) -> 0 | E61: =IF('Formula Sheet 1'!B61>10, (0.00005*(D61^2))+(0.3389*D61)-1.431, 0.1423*(D61^1.2528)) -> 0
B62: 0 | C62: mg/L CaCO3 | D62: =HLOOKUP(C62,'Formula Sheet 1'!$E$2:$P62,'Formula Sheet 1'!$D62,FALSE) -> 0 | E62: =IF('Formula Sheet 1'!B62>10, (0.00005*(D62^2))+(0.3389*D62)-1.431, 0.1423*(D62^1.2528)) -> 0
B63: 0 | C63: mg/L CaCO3 | D63: =HLOOKUP(C63,'Formula Sheet 1'!$E$2:$P63,'Formula Sheet 1'!$D63,FALSE) -> 0 | E63: =IF('Formula Sheet 1'!B63>10, (0.00005*(D63^2))+(0.3389*D63)-1.431, 0.1423*(D63^1.2528)) -> 0
B64: 0 | C64: mg/L CaCO3 | D64: =HLOOKUP(C64,'Formula Sheet 1'!$E$2:$P64,'Formula Sheet 1'!$D64,FALSE) -> 0 | E64: =IF('Formula Sheet 1'!B64>10, (0.00005*(D64^2))+(0.3389*D64)-1.431, 0.1423*(D64^1.2528)) -> 0
B65: 0 | C65: mg/L CaCO3 | D65: =HLOOKUP(C65,'Formula Sheet 1'!$E$2:$P65,'Formula Sheet 1'!$D65,FALSE) -> 0 | E65: =IF('Formula Sheet 1'!B65>10, (0.00005*(D65^2))+(0.3389*D65)-1.431, 0.1423*(D65^1.2528)) -> 0
B66: 0 | C66: mg/L CaCO3 | D66: =HLOOKUP(C66,'Formula Sheet 1'!$E$2:$P66,'Formula Sheet 1'!$D66,FALSE) -> 0 | E66: =IF('Formula Sheet 1'!B66>10, (0.00005*(D66^2))+(0.3389*D66)-1.431, 0.1423*(D66^1.2528)) -> 0
B67: 0 | C67: mg/L CaCO3 | D67: =HLOOKUP(C67,'Formula Sheet 1'!$E$2:$P67,'Formula Sheet 1'!$D67,FALSE) -> 0 | E67: =IF('Formula Sheet 1'!B67>10, (0.00005*(D67^2))+(0.3389*D67)-1.431, 0.1423*(D67^1.2528)) -> 0
B68: 0 | C68: mg/L CaCO3 | D68: =HLOOKUP(C68,'Formula Sheet 1'!$E$2:$P68,'Formula Sheet 1'!$D68,FALSE) -> 0 | E68: =IF('Formula Sheet 1'!B68>10, (0.00005*(D68^2))+(0.3389*D68)-1.431, 0.1423*(D68^1.2528)) -> 0
B69: 0 | C69: =C68 -> mg/L CaCO3 | D69: =HLOOKUP(C69,'Formula Sheet 1'!$E$2:$P69,'Formula Sheet 1'!$D69,FALSE) -> 0 | E69: =IF('Formula Sheet 1'!B69>10, (0.00005*(D69^2))+(0.3389*D69)-1.431, 0.1423*(D69^1.2528)) -> 0
B70: 0 | C70: mg/L CaCO3 | D70: =HLOOKUP(C70,'Formula Sheet 1'!$E$2:$P70,'Formula Sheet 1'!$D70,FALSE) -> 0 | E70: =IF('Formula Sheet 1'!B70>10, (0.00005*(D70^2))+(0.3389*D70)-1.431, 0.1423*(D70^1.2528)) -> 0
B71: 0 | C71: mg/L CaCO3 | D71: =HLOOKUP(C71,'Formula Sheet 1'!$E$2:$P71,'Formula Sheet 1'!$D71,FALSE) -> 0 | E71: =IF('Formula Sheet 1'!B71>10, (0.00005*(D71^2))+(0.3389*D71)-1.431, 0.1423*(D71^1.2528)) -> 0
B72: 0 | C72: mg/L CaCO3 | D72: =HLOOKUP(C72,'Formula Sheet 1'!$E$2:$P72,'Formula Sheet 1'!$D72,FALSE) -> 0 | E72: =IF('Formula Sheet 1'!B72>10, (0.00005*(D72^2))+(0.3389*D72)-1.431, 0.1423*(D72^1.2528)) -> 0
B73: 0 | C73: mg/L CaCO3 | D73: =HLOOKUP(C73,'Formula Sheet 1'!$E$2:$P73,'Formula Sheet 1'!$D73,FALSE) -> 0 | E73: =IF('Formula Sheet 1'!B73>10, (0.00005*(D73^2))+(0.3389*D73)-1.431, 0.1423*(D73^1.2528)) -> 0
B74: 0 | C74: mg/L CaCO3 | D74: =HLOOKUP(C74,'Formula Sheet 1'!$E$2:$P74,'Formula Sheet 1'!$D74,FALSE) -> 0 | E74: =IF('Formula Sheet 1'!B74>10, (0.00005*(D74^2))+(0.3389*D74)-1.431, 0.1423*(D74^1.2528)) -> 0
B75: 0 | C75: mg/L CaCO3 | D75: =HLOOKUP(C75,'Formula Sheet 1'!$E$2:$P75,'Formula Sheet 1'!$D75,FALSE) -> 0 | E75: =IF('Formula Sheet 1'!B75>10, (0.00005*(D75^2))+(0.3389*D75)-1.431, 0.1423*(D75^1.2528)) -> 0
B76: 0 | C76: mg/L CaCO3 | D76: =HLOOKUP(C76,'Formula Sheet 1'!$E$2:$P76,'Formula Sheet 1'!$D76,FALSE) -> 0 | E76: =IF('Formula Sheet 1'!B76>10, (0.00005*(D76^2))+(0.3389*D76)-1.431, 0.1423*(D76^1.2528)) -> 0
B77: 0 | C77: mg/L CaCO3 | D77: =HLOOKUP(C77,'Formula Sheet 1'!$E$2:$P77,'Formula Sheet 1'!$D77,FALSE) -> 0 | E77: =IF('Formula Sheet 1'!B77>10, (0.00005*(D77^2))+(0.3389*D77)-1.431, 0.1423*(D77^1.2528)) -> 0
B78: 0 | C78: mg/L CaCO3 | D78: =HLOOKUP(C78,'Formula Sheet 1'!$E$2:$P78,'Formula Sheet 1'!$D78,FALSE) -> 0 | E78: =IF('Formula Sheet 1'!B78>10, (0.00005*(D78^2))+(0.3389*D78)-1.431, 0.1423*(D78^1.2528)) -> 0
B79: 0 | C79: mg/L CaCO3 | D79: =HLOOKUP(C79,'Formula Sheet 1'!$E$2:$P79,'Formula Sheet 1'!$D79,FALSE) -> 0 | E79: =IF('Formula Sheet 1'!B79>10, (0.00005*(D79^2))+(0.3389*D79)-1.431, 0.1423*(D79^1.2528)) -> 0
B80: 0 | C80: mg/L CaCO3 | D80: =HLOOKUP(C80,'Formula Sheet 1'!$E$2:$P80,'Formula Sheet 1'!$D80,FALSE) -> 0 | E80: =IF('Formula Sheet 1'!B80>10, (0.00005*(D80^2))+(0.3389*D80)-1.431, 0.1423*(D80^1.2528)) -> 0
B81: 0 | C81: mg/L CaCO3 | D81: =HLOOKUP(C81,'Formula Sheet 1'!$E$2:$P81,'Formula Sheet 1'!$D81,FALSE) -> 0 | E81: =IF('Formula Sheet 1'!B81>10, (0.00005*(D81^2))+(0.3389*D81)-1.431, 0.1423*(D81^1.2528)) -> 0
B82: 0 | C82: mg/L CaCO3 | D82: =HLOOKUP(C82,'Formula Sheet 1'!$E$2:$P82,'Formula Sheet 1'!$D82,FALSE) -> 0 | E82: =IF('Formula Sheet 1'!B82>10, (0.00005*(D82^2))+(0.3389*D82)-1.431, 0.1423*(D82^1.2528)) -> 0
B83: 0 | C83: mg/L CaCO3 | D83: =HLOOKUP(C83,'Formula Sheet 1'!$E$2:$P83,'Formula Sheet 1'!$D83,FALSE) -> 0 | E83: =IF('Formula Sheet 1'!B83>10, (0.00005*(D83^2))+(0.3389*D83)-1.431, 0.1423*(D83^1.2528)) -> 0
B84: 0 | C84: mg/L CaCO3 | D84: =HLOOKUP(C84,'Formula Sheet 1'!$E$2:$P84,'Formula Sheet 1'!$D84,FALSE) -> 0 | E84: =IF('Formula Sheet 1'!B84>10, (0.00005*(D84^2))+(0.3389*D84)-1.431, 0.1423*(D84^1.2528)) -> 0
B85: 0 | C85: mg/L CaCO3 | D85: =HLOOKUP(C85,'Formula Sheet 1'!$E$2:$P85,'Formula Sheet 1'!$D85,FALSE) -> 0 | E85: =IF('Formula Sheet 1'!B85>10, (0.00005*(D85^2))+(0.3389*D85)-1.431, 0.1423*(D85^1.2528)) -> 0
B86: 0 | C86: mg/L CaCO3 | D86: =HLOOKUP(C86,'Formula Sheet 1'!$E$2:$P86,'Formula Sheet 1'!$D86,FALSE) -> 0 | E86: =IF('Formula Sheet 1'!B86>10, (0.00005*(D86^2))+(0.3389*D86)-1.431, 0.1423*(D86^1.2528)) -> 0
B87: 0 | C87: mg/L CaCO3 | D87: =HLOOKUP(C87,'Formula Sheet 1'!$E$2:$P87,'Formula Sheet 1'!$D87,FALSE) -> 0 | E87: =IF('Formula Sheet 1'!B87>10, (0.00005*(D87^2))+(0.3389*D87)-1.431, 0.1423*(D87^1.2528)) -> 0
B88: 0 | C88: mg/L CaCO3 | D88: =HLOOKUP(C88,'Formula Sheet 1'!$E$2:$P88,'Formula Sheet 1'!$D88,FALSE) -> 0 | E88: =IF('Formula Sheet 1'!B88>10, (0.00005*(D88^2))+(0.3389*D88)-1.431, 0.1423*(D88^1.2528)) -> 0
B89: 0 | C89: mg/L CaCO3 | D89: =HLOOKUP(C89,'Formula Sheet 1'!$E$2:$P89,'Formula Sheet 1'!$D89,FALSE) -> 0 | E89: =IF('Formula Sheet 1'!B89>10, (0.00005*(D89^2))+(0.3389*D89)-1.431, 0.1423*(D89^1.2528)) -> 0
B90: 0 | C90: mg/L CaCO3 | D90: =HLOOKUP(C90,'Formula Sheet 1'!$E$2:$P90,'Formula Sheet 1'!$D90,FALSE) -> 0 | E90: =IF('Formula Sheet 1'!B90>10, (0.00005*(D90^2))+(0.3389*D90)-1.431, 0.1423*(D90^1.2528)) -> 0
B91: 0 | C91: mg/L CaCO3 | D91: =HLOOKUP(C91,'Formula Sheet 1'!$E$2:$P91,'Formula Sheet 1'!$D91,FALSE) -> 0 | E91: =IF('Formula Sheet 1'!B91>10, (0.00005*(D91^2))+(0.3389*D91)-1.431, 0.1423*(D91^1.2528)) -> 0
B92: 0 | C92: mg/L CaCO3 | D92: =HLOOKUP(C92,'Formula Sheet 1'!$E$2:$P92,'Formula Sheet 1'!$D92,FALSE) -> 0 | E92: =IF('Formula Sheet 1'!B92>10, (0.00005*(D92^2))+(0.3389*D92)-1.431, 0.1423*(D92^1.2528)) -> 0
B93: 0 | C93: mg/L CaCO3 | D93: =HLOOKUP(C93,'Formula Sheet 1'!$E$2:$P93,'Formula Sheet 1'!$D93,FALSE) -> 0 | E93: =IF('Formula Sheet 1'!B93>10, (0.00005*(D93^2))+(0.3389*D93)-1.431, 0.1423*(D93^1.2528)) -> 0
B94: 0 | C94: mg/L CaCO3 | D94: =HLOOKUP(C94,'Formula Sheet 1'!$E$2:$P94,'Formula Sheet 1'!$D94,FALSE) -> 0 | E94: =IF('Formula Sheet 1'!B94>10, (0.00005*(D94^2))+(0.3389*D94)-1.431, 0.1423*(D94^1.2528)) -> 0
B95: 0 | C95: mg/L CaCO3 | D95: =HLOOKUP(C95,'Formula Sheet 1'!$E$2:$P95,'Formula Sheet 1'!$D95,FALSE) -> 0 | E95: =IF('Formula Sheet 1'!B95>10, (0.00005*(D95^2))+(0.3389*D95)-1.431, 0.1423*(D95^1.2528)) -> 0
B96: 0 | C96: mg/L CaCO3 | D96: =HLOOKUP(C96,'Formula Sheet 1'!$E$2:$P96,'Formula Sheet 1'!$D96,FALSE) -> 0 | E96: =IF('Formula Sheet 1'!B96>10, (0.00005*(D96^2))+(0.3389*D96)-1.431, 0.1423*(D96^1.2528)) -> 0
B97: 0 | C97: mg/L CaCO3 | D97: =HLOOKUP(C97,'Formula Sheet 1'!$E$2:$P97,'Formula Sheet 1'!$D97,FALSE) -> 0 | E97: =IF('Formula Sheet 1'!B97>10, (0.00005*(D97^2))+(0.3389*D97)-1.431, 0.1423*(D97^1.2528)) -> 0
B98: 0 | C98: mg/L CaCO3 | D98: =HLOOKUP(C98,'Formula Sheet 1'!$E$2:$P98,'Formula Sheet 1'!$D98,FALSE) -> 0 | E98: =IF('Formula Sheet 1'!B98>10, (0.00005*(D98^2))+(0.3389*D98)-1.431, 0.1423*(D98^1.2528)) -> 0
B99: 0 | C99: mg/L CaCO3 | D99: =HLOOKUP(C99,'Formula Sheet 1'!$E$2:$P99,'Formula Sheet 1'!$D99,FALSE) -> 0 | E99: =IF('Formula Sheet 1'!B99>10, (0.00005*(D99^2))+(0.3389*D99)-1.431, 0.1423*(D99^1.2528)) -> 0
B100: 0 | C100: mg/L CaCO3 | D100: =HLOOKUP(C100,'Formula Sheet 1'!$E$2:$P100,'Formula Sheet 1'!$D100,FALSE) -> 0 | E100: =IF('Formula Sheet 1'!B100>10, (0.00005*(D100^2))+(0.3389*D100)-1.431, 0.1423*(D100^1.2528)) -> 0
B101: 0 | C101: mg/L CaCO3 | D101: =HLOOKUP(C101,'Formula Sheet 1'!$E$2:$P101,'Formula Sheet 1'!$D101,FALSE) -> 0 | E101: =IF('Formula Sheet 1'!B101>10, (0.00005*(D101^2))+(0.3389*D101)-1.431, 0.1423*(D101^1.2528)) -> 0
B102: 0 | C102: mg/L CaCO3 | D102: =HLOOKUP(C102,'Formula Sheet 1'!$E$2:$P102,'Formula Sheet 1'!$D102,FALSE) -> 0 | E102: =IF('Formula Sheet 1'!B102>10, (0.00005*(D102^2))+(0.3389*D102)-1.431, 0.1423*(D102^1.2528)) -> 0
B103: 0 | C103: mg/L CaCO3 | D103: =HLOOKUP(C103,'Formula Sheet 1'!$E$2:$P103,'Formula Sheet 1'!$D103,FALSE) -> 0 | E103: =IF('Formula Sheet 1'!B103>10, (0.00005*(D103^2))+(0.3389*D103)-1.431, 0.1423*(D103^1.2528)) -> 0
B104: 0 | C104: mg/L CaCO3 | D104: =HLOOKUP(C104,'Formula Sheet 1'!$E$2:$P104,'Formula Sheet 1'!$D104,FALSE) -> 0 | E104: =IF('Formula Sheet 1'!B104>10, (0.00005*(D104^2))+(0.3389*D104)-1.431, 0.1423*(D104^1.2528)) -> 0
B105: 0 | C105: mg/L CaCO3 | D105: =HLOOKUP(C105,'Formula Sheet 1'!$E$2:$P105,'Formula Sheet 1'!$D105,FALSE) -> 0 | E105: =IF('Formula Sheet 1'!B105>10, (0.00005*(D105^2))+(0.3389*D105)-1.431, 0.1423*(D105^1.2528)) -> 0
B106: 0 | C106: mg/L CaCO3 | D106: =HLOOKUP(C106,'Formula Sheet 1'!$E$2:$P106,'Formula Sheet 1'!$D106,FALSE) -> 0 | E106: =IF('Formula Sheet 1'!B106>10, (0.00005*(D106^2))+(0.3389*D106)-1.431, 0.1423*(D106^1.2528)) -> 0
B107: 0 | C107: mg/L CaCO3 | D107: =HLOOKUP(C107,'Formula Sheet 1'!$E$2:$P107,'Formula Sheet 1'!$D107,FALSE) -> 0 | E107: =IF('Formula Sheet 1'!B107>10, (0.00005*(D107^2))+(0.3389*D107)-1.431, 0.1423*(D107^1.2528)) -> 0
B108: 0 | C108: mg/L CaCO3 | D108: =HLOOKUP(C108,'Formula Sheet 1'!$E$2:$P108,'Formula Sheet 1'!$D108,FALSE) -> 0 | E108: =IF('Formula Sheet 1'!B108>10, (0.00005*(D108^2))+(0.3389*D108)-1.431, 0.1423*(D108^1.2528)) -> 0
B109: 0 | C109: mg/L CaCO3 | D109: =HLOOKUP(C109,'Formula Sheet 1'!$E$2:$P109,'Formula Sheet 1'!$D109,FALSE) -> 0 | E109: =IF('Formula Sheet 1'!B109>10, (0.00005*(D109^2))+(0.3389*D109)-1.431, 0.1423*(D109^1.2528)) -> 0
B110: 0 | C110: mg/L CaCO3 | D110: =HLOOKUP(C110,'Formula Sheet 1'!$E$2:$P110,'Formula Sheet 1'!$D110,FALSE) -> 0 | E110: =IF('Formula Sheet 1'!B110>10, (0.00005*(D110^2))+(0.3389*D110)-1.431, 0.1423*(D110^1.2528)) -> 0
B111: 0 | C111: mg/L CaCO3 | D111: =HLOOKUP(C111,'Formula Sheet 1'!$E$2:$P111,'Formula Sheet 1'!$D111,FALSE) -> 0 | E111: =IF('Formula Sheet 1'!B111>10, (0.00005*(D111^2))+(0.3389*D111)-1.431, 0.1423*(D111^1.2528)) -> 0
B112: 0 | C112: mg/L CaCO3 | D112: =HLOOKUP(C112,'Formula Sheet 1'!$E$2:$P112,'Formula Sheet 1'!$D112,FALSE) -> 0 | E112: =IF('Formula Sheet 1'!B112>10, (0.00005*(D112^2))+(0.3389*D112)-1.431, 0.1423*(D112^1.2528)) -> 0
B113: 0 | C113: mg/L CaCO3 | D113: =HLOOKUP(C113,'Formula Sheet 1'!$E$2:$P113,'Formula Sheet 1'!$D113,FALSE) -> 0 | E113: =IF('Formula Sheet 1'!B113>10, (0.00005*(D113^2))+(0.3389*D113)-1.431, 0.1423*(D113^1.2528)) -> 0
B114: 0 | C114: mg/L CaCO3 | D114: =HLOOKUP(C114,'Formula Sheet 1'!$E$2:$P114,'Formula Sheet 1'!$D114,FALSE) -> 0 | E114: =IF('Formula Sheet 1'!B114>10, (0.00005*(D114^2))+(0.3389*D114)-1.431, 0.1423*(D114^1.2528)) -> 0
B115: 0 | C115: mg/L CaCO3 | D115: =HLOOKUP(C115,'Formula Sheet 1'!$E$2:$P115,'Formula Sheet 1'!$D115,FALSE) -> 0 | E115: =IF('Formula Sheet 1'!B115>10, (0.00005*(D115^2))+(0.3389*D115)-1.431, 0.1423*(D115^1.2528)) -> 0
B116: 0 | C116: mg/L CaCO3 | D116: =HLOOKUP(C116,'Formula Sheet 1'!$E$2:$P116,'Formula Sheet 1'!$D116,FALSE) -> 0 | E116: =IF('Formula Sheet 1'!B116>10, (0.00005*(D116^2))+(0.3389*D116)-1.431, 0.1423*(D116^1.2528)) -> 0
B117: 0 | C117: mg/L CaCO3 | D117: =HLOOKUP(C117,'Formula Sheet 1'!$E$2:$P117,'Formula Sheet 1'!$D117,FALSE) -> 0 | E117: =IF('Formula Sheet 1'!B117>10, (0.00005*(D117^2))+(0.3389*D117)-1.431, 0.1423*(D117^1.2528)) -> 0
B118: 0 | C118: mg/L CaCO3 | D118: =HLOOKUP(C118,'Formula Sheet 1'!$E$2:$P118,'Formula Sheet 1'!$D118,FALSE) -> 0 | E118: =IF('Formula Sheet 1'!B118>10, (0.00005*(D118^2))+(0.3389*D118)-1.431, 0.1423*(D118^1.2528)) -> 0
B119: 0 | C119: mg/L CaCO3 | D119: =HLOOKUP(C119,'Formula Sheet 1'!$E$2:$P119,'Formula Sheet 1'!$D119,FALSE) -> 0 | E119: =IF('Formula Sheet 1'!B119>10, (0.00005*(D119^2))+(0.3389*D119)-1.431, 0.1423*(D119^1.2528)) -> 0
B120: 0 | C120: mg/L CaCO3 | D120: =HLOOKUP(C120,'Formula Sheet 1'!$E$2:$P120,'Formula Sheet 1'!$D120,FALSE) -> 0 | E120: =IF('Formula Sheet 1'!B120>10, (0.00005*(D120^2))+(0.3389*D120)-1.431, 0.1423*(D120^1.2528)) -> 0
B121: 0 | C121: mg/L CaCO3 | D121: =HLOOKUP(C121,'Formula Sheet 1'!$E$2:$P121,'Formula Sheet 1'!$D121,FALSE) -> 0 | E121: =IF('Formula Sheet 1'!B121>10, (0.00005*(D121^2))+(0.3389*D121)-1.431, 0.1423*(D121^1.2528)) -> 0
B122: 0 | C122: mg/L CaCO3 | D122: =HLOOKUP(C122,'Formula Sheet 1'!$E$2:$P122,'Formula Sheet 1'!$D122,FALSE) -> 0 | E122: =IF('Formula Sheet 1'!B122>10, (0.00005*(D122^2))+(0.3389*D122)-1.431, 0.1423*(D122^1.2528)) -> 0
B123: 0 | C123: mg/L CaCO3 | D123: =HLOOKUP(C123,'Formula Sheet 1'!$E$2:$P123,'Formula Sheet 1'!$D123,FALSE) -> 0 | E123: =IF('Formula Sheet 1'!B123>10, (0.00005*(D123^2))+(0.3389*D123)-1.431, 0.1423*(D123^1.2528)) -> 0
B124: 0 | C124: mg/L CaCO3 | D124: =HLOOKUP(C124,'Formula Sheet 1'!$E$2:$P124,'Formula Sheet 1'!$D124,FALSE) -> 0 | E124: =IF('Formula Sheet 1'!B124>10, (0.00005*(D124^2))+(0.3389*D124)-1.431, 0.1423*(D124^1.2528)) -> 0
B125: 0 | C125: mg/L CaCO3 | D125: =HLOOKUP(C125,'Formula Sheet 1'!$E$2:$P125,'Formula Sheet 1'!$D125,FALSE) -> 0 | E125: =IF('Formula Sheet 1'!B125>10, (0.00005*(D125^2))+(0.3389*D125)-1.431, 0.1423*(D125^1.2528)) -> 0
B126: 0 | C126: mg/L CaCO3 | D126: =HLOOKUP(C126,'Formula Sheet 1'!$E$2:$P126,'Formula Sheet 1'!$D126,FALSE) -> 0 | E126: =IF('Formula Sheet 1'!B126>10, (0.00005*(D126^2))+(0.3389*D126)-1.431, 0.1423*(D126^1.2528)) -> 0
B127: 0 | C127: mg/L CaCO3 | D127: =HLOOKUP(C127,'Formula Sheet 1'!$E$2:$P127,'Formula Sheet 1'!$D127,FALSE) -> 0 | E127: =IF('Formula Sheet 1'!B127>10, (0.00005*(D127^2))+(0.3389*D127)-1.431, 0.1423*(D127^1.2528)) -> 0
B128: 0 | C128: mg/L CaCO3 | D128: =HLOOKUP(C128,'Formula Sheet 1'!$E$2:$P128,'Formula Sheet 1'!$D128,FALSE) -> 0 | E128: =IF('Formula Sheet 1'!B128>10, (0.00005*(D128^2))+(0.3389*D128)-1.431, 0.1423*(D128^1.2528)) -> 0
B129: 0 | C129: mg/L CaCO3 | D129: =HLOOKUP(C129,'Formula Sheet 1'!$E$2:$P129,'Formula Sheet 1'!$D129,FALSE) -> 0 | E129: =IF('Formula Sheet 1'!B129>10, (0.00005*(D129^2))+(0.3389*D129)-1.431, 0.1423*(D129^1.2528)) -> 0
B130: 0 | C130: mg/L CaCO3 | D130: =HLOOKUP(C130,'Formula Sheet 1'!$E$2:$P130,'Formula Sheet 1'!$D130,FALSE) -> 0 | E130: =IF('Formula Sheet 1'!B130>10, (0.00005*(D130^2))+(0.3389*D130)-1.431, 0.1423*(D130^1.2528)) -> 0
B131: 0 | C131: mg/L CaCO3 | D131: =HLOOKUP(C131,'Formula Sheet 1'!$E$2:$P131,'Formula Sheet 1'!$D131,FALSE) -> 0 | E131: =IF('Formula Sheet 1'!B131>10, (0.00005*(D131^2))+(0.3389*D131)-1.431, 0.1423*(D131^1.2528)) -> 0
B132: 0 | C132: mg/L CaCO3 | D132: =HLOOKUP(C132,'Formula Sheet 1'!$E$2:$P132,'Formula Sheet 1'!$D132,FALSE) -> 0 | E132: =IF('Formula Sheet 1'!B132>10, (0.00005*(D132^2))+(0.3389*D132)-1.431, 0.1423*(D132^1.2528)) -> 0
B133: 0 | C133: =C132 -> mg/L CaCO3 | D133: =HLOOKUP(C133,'Formula Sheet 1'!$E$2:$P133,'Formula Sheet 1'!$D133,FALSE) -> 0 | E133: =IF('Formula Sheet 1'!B133>10, (0.00005*(D133^2))+(0.3389*D133)-1.431, 0.1423*(D133^1.2528)) -> 0
B134: 0 | C134: mg/L CaCO3 | D134: =HLOOKUP(C134,'Formula Sheet 1'!$E$2:$P134,'Formula Sheet 1'!$D134,FALSE) -> 0 | E134: =IF('Formula Sheet 1'!B134>10, (0.00005*(D134^2))+(0.3389*D134)-1.431, 0.1423*(D134^1.2528)) -> 0
B135: 0 | C135: mg/L CaCO3 | D135: =HLOOKUP(C135,'Formula Sheet 1'!$E$2:$P135,'Formula Sheet 1'!$D135,FALSE) -> 0 | E135: =IF('Formula Sheet 1'!B135>10, (0.00005*(D135^2))+(0.3389*D135)-1.431, 0.1423*(D135^1.2528)) -> 0
B136: 0 | C136: mg/L CaCO3 | D136: =HLOOKUP(C136,'Formula Sheet 1'!$E$2:$P136,'Formula Sheet 1'!$D136,FALSE) -> 0 | E136: =IF('Formula Sheet 1'!B136>10, (0.00005*(D136^2))+(0.3389*D136)-1.431, 0.1423*(D136^1.2528)) -> 0
B137: 0 | C137: mg/L CaCO3 | D137: =HLOOKUP(C137,'Formula Sheet 1'!$E$2:$P137,'Formula Sheet 1'!$D137,FALSE) -> 0 | E137: =IF('Formula Sheet 1'!B137>10, (0.00005*(D137^2))+(0.3389*D137)-1.431, 0.1423*(D137^1.2528)) -> 0
B138: 0 | C138: mg/L CaCO3 | D138: =HLOOKUP(C138,'Formula Sheet 1'!$E$2:$P138,'Formula Sheet 1'!$D138,FALSE) -> 0 | E138: =IF('Formula Sheet 1'!B138>10, (0.00005*(D138^2))+(0.3389*D138)-1.431, 0.1423*(D138^1.2528)) -> 0
B139: 0 | C139: mg/L CaCO3 | D139: =HLOOKUP(C139,'Formula Sheet 1'!$E$2:$P139,'Formula Sheet 1'!$D139,FALSE) -> 0 | E139: =IF('Formula Sheet 1'!B139>10, (0.00005*(D139^2))+(0.3389*D139)-1.431, 0.1423*(D139^1.2528)) -> 0
B140: 0 | C140: mg/L CaCO3 | D140: =HLOOKUP(C140,'Formula Sheet 1'!$E$2:$P140,'Formula Sheet 1'!$D140,FALSE) -> 0 | E140: =IF('Formula Sheet 1'!B140>10, (0.00005*(D140^2))+(0.3389*D140)-1.431, 0.1423*(D140^1.2528)) -> 0
B141: 0 | C141: mg/L CaCO3 | D141: =HLOOKUP(C141,'Formula Sheet 1'!$E$2:$P141,'Formula Sheet 1'!$D141,FALSE) -> 0 | E141: =IF('Formula Sheet 1'!B141>10, (0.00005*(D141^2))+(0.3389*D141)-1.431, 0.1423*(D141^1.2528)) -> 0
B142: 0 | C142: mg/L CaCO3 | D142: =HLOOKUP(C142,'Formula Sheet 1'!$E$2:$P142,'Formula Sheet 1'!$D142,FALSE) -> 0 | E142: =IF('Formula Sheet 1'!B142>10, (0.00005*(D142^2))+(0.3389*D142)-1.431, 0.1423*(D142^1.2528)) -> 0
B143: 0 | C143: mg/L CaCO3 | D143: =HLOOKUP(C143,'Formula Sheet 1'!$E$2:$P143,'Formula Sheet 1'!$D143,FALSE) -> 0 | E143: =IF('Formula Sheet 1'!B143>10, (0.00005*(D143^2))+(0.3389*D143)-1.431, 0.1423*(D143^1.2528)) -> 0
B144: 0 | C144: mg/L CaCO3 | D144: =HLOOKUP(C144,'Formula Sheet 1'!$E$2:$P144,'Formula Sheet 1'!$D144,FALSE) -> 0 | E144: =IF('Formula Sheet 1'!B144>10, (0.00005*(D144^2))+(0.3389*D144)-1.431, 0.1423*(D144^1.2528)) -> 0
B145: 0 | C145: mg/L CaCO3 | D145: =HLOOKUP(C145,'Formula Sheet 1'!$E$2:$P145,'Formula Sheet 1'!$D145,FALSE) -> 0 | E145: =IF('Formula Sheet 1'!B145>10, (0.00005*(D145^2))+(0.3389*D145)-1.431, 0.1423*(D145^1.2528)) -> 0
B146: 0 | C146: mg/L CaCO3 | D146: =HLOOKUP(C146,'Formula Sheet 1'!$E$2:$P146,'Formula Sheet 1'!$D146,FALSE) -> 0 | E146: =IF('Formula Sheet 1'!B146>10, (0.00005*(D146^2))+(0.3389*D146)-1.431, 0.1423*(D146^1.2528)) -> 0
B147: 0 | C147: mg/L CaCO3 | D147: =HLOOKUP(C147,'Formula Sheet 1'!$E$2:$P147,'Formula Sheet 1'!$D147,FALSE) -> 0 | E147: =IF('Formula Sheet 1'!B147>10, (0.00005*(D147^2))+(0.3389*D147)-1.431, 0.1423*(D147^1.2528)) -> 0
B148: 0 | C148: mg/L CaCO3 | D148: =HLOOKUP(C148,'Formula Sheet 1'!$E$2:$P148,'Formula Sheet 1'!$D148,FALSE) -> 0 | E148: =IF('Formula Sheet 1'!B148>10, (0.00005*(D148^2))+(0.3389*D148)-1.431, 0.1423*(D148^1.2528)) -> 0
B149: 0 | C149: mg/L CaCO3 | D149: =HLOOKUP(C149,'Formula Sheet 1'!$E$2:$P149,'Formula Sheet 1'!$D149,FALSE) -> 0 | E149: =IF('Formula Sheet 1'!B149>10, (0.00005*(D149^2))+(0.3389*D149)-1.431, 0.1423*(D149^1.2528)) -> 0
B150: 0 | C150: mg/L CaCO3 | D150: =HLOOKUP(C150,'Formula Sheet 1'!$E$2:$P150,'Formula Sheet 1'!$D150,FALSE) -> 0 | E150: =IF('Formula Sheet 1'!B150>10, (0.00005*(D150^2))+(0.3389*D150)-1.431, 0.1423*(D150^1.2528)) -> 0
B151: 0 | C151: mg/L CaCO3 | D151: =HLOOKUP(C151,'Formula Sheet 1'!$E$2:$P151,'Formula Sheet 1'!$D151,FALSE) -> 0 | E151: =IF('Formula Sheet 1'!B151>10, (0.00005*(D151^2))+(0.3389*D151)-1.431, 0.1423*(D151^1.2528)) -> 0
B152: 0 | C152: mg/L CaCO3 | D152: =HLOOKUP(C152,'Formula Sheet 1'!$E$2:$P152,'Formula Sheet 1'!$D152,FALSE) -> 0 | E152: =IF('Formula Sheet 1'!B152>10, (0.00005*(D152^2))+(0.3389*D152)-1.431, 0.1423*(D152^1.2528)) -> 0
B153: 0 | C153: mg/L CaCO3 | D153: =HLOOKUP(C153,'Formula Sheet 1'!$E$2:$P153,'Formula Sheet 1'!$D153,FALSE) -> 0 | E153: =IF('Formula Sheet 1'!B153>10, (0.00005*(D153^2))+(0.3389*D153)-1.431, 0.1423*(D153^1.2528)) -> 0
B154: 0 | C154: mg/L CaCO3 | D154: =HLOOKUP(C154,'Formula Sheet 1'!$E$2:$P154,'Formula Sheet 1'!$D154,FALSE) -> 0 | E154: =IF('Formula Sheet 1'!B154>10, (0.00005*(D154^2))+(0.3389*D154)-1.431, 0.1423*(D154^1.2528)) -> 0
B155: 0 | C155: mg/L CaCO3 | D155: =HLOOKUP(C155,'Formula Sheet 1'!$E$2:$P155,'Formula Sheet 1'!$D155,FALSE) -> 0 | E155: =IF('Formula Sheet 1'!B155>10, (0.00005*(D155^2))+(0.3389*D155)-1.431, 0.1423*(D155^1.2528)) -> 0
B156: 0 | C156: mg/L CaCO3 | D156: =HLOOKUP(C156,'Formula Sheet 1'!$E$2:$P156,'Formula Sheet 1'!$D156,FALSE) -> 0 | E156: =IF('Formula Sheet 1'!B156>10, (0.00005*(D156^2))+(0.3389*D156)-1.431, 0.1423*(D156^1.2528)) -> 0
B157: 0 | C157: mg/L CaCO3 | D157: =HLOOKUP(C157,'Formula Sheet 1'!$E$2:$P157,'Formula Sheet 1'!$D157,FALSE) -> 0 | E157: =IF('Formula Sheet 1'!B157>10, (0.00005*(D157^2))+(0.3389*D157)-1.431, 0.1423*(D157^1.2528)) -> 0
B158: 0 | C158: mg/L CaCO3 | D158: =HLOOKUP(C158,'Formula Sheet 1'!$E$2:$P158,'Formula Sheet 1'!$D158,FALSE) -> 0 | E158: =IF('Formula Sheet 1'!B158>10, (0.00005*(D158^2))+(0.3389*D158)-1.431, 0.1423*(D158^1.2528)) -> 0
B159: 0 | C159: mg/L CaCO3 | D159: =HLOOKUP(C159,'Formula Sheet 1'!$E$2:$P159,'Formula Sheet 1'!$D159,FALSE) -> 0 | E159: =IF('Formula Sheet 1'!B159>10, (0.00005*(D159^2))+(0.3389*D159)-1.431, 0.1423*(D159^1.2528)) -> 0
B160: 0 | C160: mg/L CaCO3 | D160: =HLOOKUP(C160,'Formula Sheet 1'!$E$2:$P160,'Formula Sheet 1'!$D160,FALSE) -> 0 | E160: =IF('Formula Sheet 1'!B160>10, (0.00005*(D160^2))+(0.3389*D160)-1.431, 0.1423*(D160^1.2528)) -> 0
B161: 0 | C161: mg/L CaCO3 | D161: =HLOOKUP(C161,'Formula Sheet 1'!$E$2:$P161,'Formula Sheet 1'!$D161,FALSE) -> 0 | E161: =IF('Formula Sheet 1'!B161>10, (0.00005*(D161^2))+(0.3389*D161)-1.431, 0.1423*(D161^1.2528)) -> 0
B162: 0 | C162: mg/L CaCO3 | D162: =HLOOKUP(C162,'Formula Sheet 1'!$E$2:$P162,'Formula Sheet 1'!$D162,FALSE) -> 0 | E162: =IF('Formula Sheet 1'!B162>10, (0.00005*(D162^2))+(0.3389*D162)-1.431, 0.1423*(D162^1.2528)) -> 0
B163: 0 | C163: mg/L CaCO3 | D163: =HLOOKUP(C163,'Formula Sheet 1'!$E$2:$P163,'Formula Sheet 1'!$D163,FALSE) -> 0 | E163: =IF('Formula Sheet 1'!B163>10, (0.00005*(D163^2))+(0.3389*D163)-1.431, 0.1423*(D163^1.2528)) -> 0
B164: 0 | C164: mg/L CaCO3 | D164: =HLOOKUP(C164,'Formula Sheet 1'!$E$2:$P164,'Formula Sheet 1'!$D164,FALSE) -> 0 | E164: =IF('Formula Sheet 1'!B164>10, (0.00005*(D164^2))+(0.3389*D164)-1.431, 0.1423*(D164^1.2528)) -> 0
B165: 0 | C165: mg/L CaCO3 | D165: =HLOOKUP(C165,'Formula Sheet 1'!$E$2:$P165,'Formula Sheet 1'!$D165,FALSE) -> 0 | E165: =IF('Formula Sheet 1'!B165>10, (0.00005*(D165^2))+(0.3389*D165)-1.431, 0.1423*(D165^1.2528)) -> 0
B166: 0 | C166: mg/L CaCO3 | D166: =HLOOKUP(C166,'Formula Sheet 1'!$E$2:$P166,'Formula Sheet 1'!$D166,FALSE) -> 0 | E166: =IF('Formula Sheet 1'!B166>10, (0.00005*(D166^2))+(0.3389*D166)-1.431, 0.1423*(D166^1.2528)) -> 0
B167: 0 | C167: mg/L CaCO3 | D167: =HLOOKUP(C167,'Formula Sheet 1'!$E$2:$P167,'Formula Sheet 1'!$D167,FALSE) -> 0 | E167: =IF('Formula Sheet 1'!B167>10, (0.00005*(D167^2))+(0.3389*D167)-1.431, 0.1423*(D167^1.2528)) -> 0
B168: 0 | C168: mg/L CaCO3 | D168: =HLOOKUP(C168,'Formula Sheet 1'!$E$2:$P168,'Formula Sheet 1'!$D168,FALSE) -> 0 | E168: =IF('Formula Sheet 1'!B168>10, (0.00005*(D168^2))+(0.3389*D168)-1.431, 0.1423*(D168^1.2528)) -> 0
B169: 0 | C169: mg/L CaCO3 | D169: =HLOOKUP(C169,'Formula Sheet 1'!$E$2:$P169,'Formula Sheet 1'!$D169,FALSE) -> 0 | E169: =IF('Formula Sheet 1'!B169>10, (0.00005*(D169^2))+(0.3389*D169)-1.431, 0.1423*(D169^1.2528)) -> 0
B170: 0 | C170: mg/L CaCO3 | D170: =HLOOKUP(C170,'Formula Sheet 1'!$E$2:$P170,'Formula Sheet 1'!$D170,FALSE) -> 0 | E170: =IF('Formula Sheet 1'!B170>10, (0.00005*(D170^2))+(0.3389*D170)-1.431, 0.1423*(D170^1.2528)) -> 0
B171: 0 | C171: mg/L CaCO3 | D171: =HLOOKUP(C171,'Formula Sheet 1'!$E$2:$P171,'Formula Sheet 1'!$D171,FALSE) -> 0 | E171: =IF('Formula Sheet 1'!B171>10, (0.00005*(D171^2))+(0.3389*D171)-1.431, 0.1423*(D171^1.2528)) -> 0
B172: 0 | C172: mg/L CaCO3 | D172: =HLOOKUP(C172,'Formula Sheet 1'!$E$2:$P172,'Formula Sheet 1'!$D172,FALSE) -> 0 | E172: =IF('Formula Sheet 1'!B172>10, (0.00005*(D172^2))+(0.3389*D172)-1.431, 0.1423*(D172^1.2528)) -> 0
B173: 0 | C173: mg/L CaCO3 | D173: =HLOOKUP(C173,'Formula Sheet 1'!$E$2:$P173,'Formula Sheet 1'!$D173,FALSE) -> 0 | E173: =IF('Formula Sheet 1'!B173>10, (0.00005*(D173^2))+(0.3389*D173)-1.431, 0.1423*(D173^1.2528)) -> 0
B174: 0 | C174: mg/L CaCO3 | D174: =HLOOKUP(C174,'Formula Sheet 1'!$E$2:$P174,'Formula Sheet 1'!$D174,FALSE) -> 0 | E174: =IF('Formula Sheet 1'!B174>10, (0.00005*(D174^2))+(0.3389*D174)-1.431, 0.1423*(D174^1.2528)) -> 0
B175: 0 | C175: mg/L CaCO3 | D175: =HLOOKUP(C175,'Formula Sheet 1'!$E$2:$P175,'Formula Sheet 1'!$D175,FALSE) -> 0 | E175: =IF('Formula Sheet 1'!B175>10, (0.00005*(D175^2))+(0.3389*D175)-1.431, 0.1423*(D175^1.2528)) -> 0
B176: 0 | C176: mg/L CaCO3 | D176: =HLOOKUP(C176,'Formula Sheet 1'!$E$2:$P176,'Formula Sheet 1'!$D176,FALSE) -> 0 | E176: =IF('Formula Sheet 1'!B176>10, (0.00005*(D176^2))+(0.3389*D176)-1.431, 0.1423*(D176^1.2528)) -> 0
B177: 0 | C177: mg/L CaCO3 | D177: =HLOOKUP(C177,'Formula Sheet 1'!$E$2:$P177,'Formula Sheet 1'!$D177,FALSE) -> 0 | E177: =IF('Formula Sheet 1'!B177>10, (0.00005*(D177^2))+(0.3389*D177)-1.431, 0.1423*(D177^1.2528)) -> 0
B178: 0 | C178: mg/L CaCO3 | D178: =HLOOKUP(C178,'Formula Sheet 1'!$E$2:$P178,'Formula Sheet 1'!$D178,FALSE) -> 0 | E178: =IF('Formula Sheet 1'!B178>10, (0.00005*(D178^2))+(0.3389*D178)-1.431, 0.1423*(D178^1.2528)) -> 0
B179: 0 | C179: mg/L CaCO3 | D179: =HLOOKUP(C179,'Formula Sheet 1'!$E$2:$P179,'Formula Sheet 1'!$D179,FALSE) -> 0 | E179: =IF('Formula Sheet 1'!B179>10, (0.00005*(D179^2))+(0.3389*D179)-1.431, 0.1423*(D179^1.2528)) -> 0
B180: 0 | C180: mg/L CaCO3 | D180: =HLOOKUP(C180,'Formula Sheet 1'!$E$2:$P180,'Formula Sheet 1'!$D180,FALSE) -> 0 | E180: =IF('Formula Sheet 1'!B180>10, (0.00005*(D180^2))+(0.3389*D180)-1.431, 0.1423*(D180^1.2528)) -> 0
B181: 0 | C181: mg/L CaCO3 | D181: =HLOOKUP(C181,'Formula Sheet 1'!$E$2:$P181,'Formula Sheet 1'!$D181,FALSE) -> 0 | E181: =IF('Formula Sheet 1'!B181>10, (0.00005*(D181^2))+(0.3389*D181)-1.431, 0.1423*(D181^1.2528)) -> 0
B182: 0 | C182: mg/L CaCO3 | D182: =HLOOKUP(C182,'Formula Sheet 1'!$E$2:$P182,'Formula Sheet 1'!$D182,FALSE) -> 0 | E182: =IF('Formula Sheet 1'!B182>10, (0.00005*(D182^2))+(0.3389*D182)-1.431, 0.1423*(D182^1.2528)) -> 0
B183: 0 | C183: mg/L CaCO3 | D183: =HLOOKUP(C183,'Formula Sheet 1'!$E$2:$P183,'Formula Sheet 1'!$D183,FALSE) -> 0 | E183: =IF('Formula Sheet 1'!B183>10, (0.00005*(D183^2))+(0.3389*D183)-1.431, 0.1423*(D183^1.2528)) -> 0
B184: 0 | C184: mg/L CaCO3 | D184: =HLOOKUP(C184,'Formula Sheet 1'!$E$2:$P184,'Formula Sheet 1'!$D184,FALSE) -> 0 | E184: =IF('Formula Sheet 1'!B184>10, (0.00005*(D184^2))+(0.3389*D184)-1.431, 0.1423*(D184^1.2528)) -> 0
B185: 0 | C185: mg/L CaCO3 | D185: =HLOOKUP(C185,'Formula Sheet 1'!$E$2:$P185,'Formula Sheet 1'!$D185,FALSE) -> 0 | E185: =IF('Formula Sheet 1'!B185>10, (0.00005*(D185^2))+(0.3389*D185)-1.431, 0.1423*(D185^1.2528)) -> 0
B186: 0 | C186: mg/L CaCO3 | D186: =HLOOKUP(C186,'Formula Sheet 1'!$E$2:$P186,'Formula Sheet 1'!$D186,FALSE) -> 0 | E186: =IF('Formula Sheet 1'!B186>10, (0.00005*(D186^2))+(0.3389*D186)-1.431, 0.1423*(D186^1.2528)) -> 0
B187: 0 | C187: mg/L CaCO3 | D187: =HLOOKUP(C187,'Formula Sheet 1'!$E$2:$P187,'Formula Sheet 1'!$D187,FALSE) -> 0 | E187: =IF('Formula Sheet 1'!B187>10, (0.00005*(D187^2))+(0.3389*D187)-1.431, 0.1423*(D187^1.2528)) -> 0
B188: 0 | C188: mg/L CaCO3 | D188: =HLOOKUP(C188,'Formula Sheet 1'!$E$2:$P188,'Formula Sheet 1'!$D188,FALSE) -> 0 | E188: =IF('Formula Sheet 1'!B188>10, (0.00005*(D188^2))+(0.3389*D188)-1.431, 0.1423*(D188^1.2528)) -> 0
B189: 0 | C189: mg/L CaCO3 | D189: =HLOOKUP(C189,'Formula Sheet 1'!$E$2:$P189,'Formula Sheet 1'!$D189,FALSE) -> 0 | E189: =IF('Formula Sheet 1'!B189>10, (0.00005*(D189^2))+(0.3389*D189)-1.431, 0.1423*(D189^1.2528)) -> 0
B190: 0 | C190: mg/L CaCO3 | D190: =HLOOKUP(C190,'Formula Sheet 1'!$E$2:$P190,'Formula Sheet 1'!$D190,FALSE) -> 0 | E190: =IF('Formula Sheet 1'!B190>10, (0.00005*(D190^2))+(0.3389*D190)-1.431, 0.1423*(D190^1.2528)) -> 0
B191: 0 | C191: mg/L CaCO3 | D191: =HLOOKUP(C191,'Formula Sheet 1'!$E$2:$P191,'Formula Sheet 1'!$D191,FALSE) -> 0 | E191: =IF('Formula Sheet 1'!B191>10, (0.00005*(D191^2))+(0.3389*D191)-1.431, 0.1423*(D191^1.2528)) -> 0
B192: 0 | C192: mg/L CaCO3 | D192: =HLOOKUP(C192,'Formula Sheet 1'!$E$2:$P192,'Formula Sheet 1'!$D192,FALSE) -> 0 | E192: =IF('Formula Sheet 1'!B192>10, (0.00005*(D192^2))+(0.3389*D192)-1.431, 0.1423*(D192^1.2528)) -> 0
B193: 0 | C193: mg/L CaCO3 | D193: =HLOOKUP(C193,'Formula Sheet 1'!$E$2:$P193,'Formula Sheet 1'!$D193,FALSE) -> 0 | E193: =IF('Formula Sheet 1'!B193>10, (0.00005*(D193^2))+(0.3389*D193)-1.431, 0.1423*(D193^1.2528)) -> 0
B194: 0 | C194: mg/L CaCO3 | D194: =HLOOKUP(C194,'Formula Sheet 1'!$E$2:$P194,'Formula Sheet 1'!$D194,FALSE) -> 0 | E194: =IF('Formula Sheet 1'!B194>10, (0.00005*(D194^2))+(0.3389*D194)-1.431, 0.1423*(D194^1.2528)) -> 0
B195: 0 | C195: mg/L CaCO3 | D195: =HLOOKUP(C195,'Formula Sheet 1'!$E$2:$P195,'Formula Sheet 1'!$D195,FALSE) -> 0 | E195: =IF('Formula Sheet 1'!B195>10, (0.00005*(D195^2))+(0.3389*D195)-1.431, 0.1423*(D195^1.2528)) -> 0
B196: 0 | C196: mg/L CaCO3 | D196: =HLOOKUP(C196,'Formula Sheet 1'!$E$2:$P196,'Formula Sheet 1'!$D196,FALSE) -> 0 | E196: =IF('Formula Sheet 1'!B196>10, (0.00005*(D196^2))+(0.3389*D196)-1.431, 0.1423*(D196^1.2528)) -> 0
B197: 0 | C197: =C196 -> mg/L CaCO3 | D197: =HLOOKUP(C197,'Formula Sheet 1'!$E$2:$P197,'Formula Sheet 1'!$D197,FALSE) -> 0 | E197: =IF('Formula Sheet 1'!B197>10, (0.00005*(D197^2))+(0.3389*D197)-1.431, 0.1423*(D197^1.2528)) -> 0
B198: 0 | C198: mg/L CaCO3 | D198: =HLOOKUP(C198,'Formula Sheet 1'!$E$2:$P198,'Formula Sheet 1'!$D198,FALSE) -> 0 | E198: =IF('Formula Sheet 1'!B198>10, (0.00005*(D198^2))+(0.3389*D198)-1.431, 0.1423*(D198^1.2528)) -> 0
B199: 0 | C199: mg/L CaCO3 | D199: =HLOOKUP(C199,'Formula Sheet 1'!$E$2:$P199,'Formula Sheet 1'!$D199,FALSE) -> 0 | E199: =IF('Formula Sheet 1'!B199>10, (0.00005*(D199^2))+(0.3389*D199)-1.431, 0.1423*(D199^1.2528)) -> 0
B200: 0 | C200: mg/L CaCO3 | D200: =HLOOKUP(C200,'Formula Sheet 1'!$E$2:$P200,'Formula Sheet 1'!$D200,FALSE) -> 0 | E200: =IF('Formula Sheet 1'!B200>10, (0.00005*(D200^2))+(0.3389*D200)-1.431, 0.1423*(D200^1.2528)) -> 0
B201: 0 | C201: mg/L CaCO3 | D201: =HLOOKUP(C201,'Formula Sheet 1'!$E$2:$P201,'Formula Sheet 1'!$D201,FALSE) -> 0 | E201: =IF('Formula Sheet 1'!B201>10, (0.00005*(D201^2))+(0.3389*D201)-1.431, 0.1423*(D201^1.2528)) -> 0
B202: 0 | C202: mg/L CaCO3 | D202: =HLOOKUP(C202,'Formula Sheet 1'!$E$2:$P202,'Formula Sheet 1'!$D202,FALSE) -> 0 | E202: =IF('Formula Sheet 1'!B202>10, (0.00005*(D202^2))+(0.3389*D202)-1.431, 0.1423*(D202^1.2528)) -> 0
... 803 more rows

Sheet Formula Sheet 1 (hidden)
A1: mg/L CaCO3 | B1: Formulas | D1: 1 | E1: English Degree (grain CaCO3/gal) | F1: =HLOOKUP(E1,'Formula Sheet 1'!$E$2:$P3,'Formula Sheet 1'!$D3,FALSE) -> 14.28571429 | G1: =IF('Formula Sheet 1'!B3>10, (0.00005*(F1^2))+(0.3389*F1)-1.431, 0.1423*(F1^1.2528)) -> 3.98167745
A2: mg/L Ca (Ca+Mg) | B2: Output in mg/L Ca | C2: Output in mg/L Ca | E2: mg/L CaCO3 | F2: mg/L Ca (Ca+Mg) | G2: ppm Ca (Ca +Mg) | H2: ppm CaCO3 | I2: English Degree (grain CaCO3/gal) | J2: German Degree (10mg CaO/L) | K2: French Degree (10 mg CaCO3/L) | L2: USA degree (grain CaCO3/gal) | M2: mmol/L | N2: meq/L (or mval/L) | O2: mg CaO/ L | P2: mg Ca2+/L (Ca+Mg) | R2: mg/L Ca (Mg+Ca) | S2: mg/L Ca (Ca only) | T2: ppm Ca | U2: ppm CaCO3 | V2: English Degree (grain CaCO3/gal) | W2: German Degree (10mg CaO/L) | X2: French Degree (10 mg CaCO3/L) | Y2: USA degree (grain CaCO3/gal) | Z2: mmol/L | AA2: meq/L (or mval/L) | AB2: mg CaO/ L | AC2: mg Ca2+/L | AE2: Ca (mg/L) | AF2: Mg (mg/L) | AG2: Na (mg/L) | AH2: K (mg/L) | AI2: SO4 (mg/L) | AJ2: Cl (mg/L) | AK2: Alk | AL2: mg/L CaCO3
A3: ppm Ca (Ca +Mg) | B3: =0.1423*('Formula Sheet 1'!F1^1.2528) -> 3.98167745 | C3: =(0.00005*('Formula Sheet 1'!F1^2))+(0.3389*'Formula Sheet 1'!F1)-1.431 -> 3.420632653 | D3: 2 | E3: ='Formula Sheet 1'!D1 -> 1 | F3: ='Formula Sheet 1'!D1/0.4 -> 2.5 | G3: ='Formula Sheet 1'!D1/0.4 -> 2.5 | H3: ='Formula Sheet 1'!D1 -> 1 | I3: ='Formula Sheet 1'!D1/0.07 -> 14.28571429 | J3: ='Formula Sheet 1'!D1/0.056 -> 17.85714286 | K3: ='Formula Sheet 1'!D1/0.1 -> 10 | L3: ='Formula Sheet 1'!D1/0.058 -> 17.24137931 | M3: ='Formula Sheet 1'!D1/0.01 -> 100 | N3: ='Formula Sheet 1'!D1/0.02 -> 50 | O3: ='Formula Sheet 1'!D1/0.56 -> 1.785714286 | P3: ='Formula Sheet 1'!D1/0.4 -> 2.5 | R3: =AL3*0.4 -> 7.370550395 | S3: =(AL3-(4.188*AF3))*0.4 -> 4.994 | T3: =AL3*0.4 -> 7.370550395 | U3: =AL3 -> 18.42637599 | V3: =0.017*AL3 -> 0.3132483918 | W3: =0.056*AL3 -> 1.031877055 | X3: =0.1*AL3 -> 1.842637599 | Y3: =0.058*AL3 -> 1.068729807 | Z3: =0.01*AL3 -> 0.1842637599 | AA3: =0.02*AL3 -> 0.3685275197 | AB3: =0.56*AL3 -> 10.31877055 | AC3: =0.4*AL3 -> 7.370550395 | AE3: 5 | AF3: =10^(0.6113*(LOG10(AE3))-0.2754) -> 1.418666664 | AG3: =10^(0.7068*(LOG10(AE3))+0.1029) -> 3.953047192 | AH3: =10^(0.6685*(LOG10(AE3))-0.5387) -> 0.8483234024 | AI3: =10^(0.9535*(LOG10(AE3))-0.0773) -> 3.883004547 | AJ3: =10^(0.7178*(LOG10(AE3))+0.2764) -> 5.999577519 | AK3: =10^(1.0439*(LOG10(AE3))+0.1881) -> 8.274748208 | AL3: =(2.497*AE3)+(4.188*AF3) -> 18.42637599
A4: ppm CaCO3 | B4: =0.1423*('Conversion 1'!D4^1.2528) -> 0 | C4: =(0.00005*('Conversion 1'!D4^2))+(0.3389*'Conversion 1'!D4)-1.431 -> -1.431 | D4: 3 | E4: ='Conversion 1'!B4 -> 0 | F4: ='Conversion 1'!B4/0.4 -> 0 | G4: ='Conversion 1'!B4/0.4 -> 0 | H4: ='Conversion 1'!B4 -> 0 | I4: ='Conversion 1'!B4/0.07 -> 0 | J4: ='Conversion 1'!B4/0.056 -> 0 | K4: ='Conversion 1'!B4/0.1 -> 0 | L4: ='Conversion 1'!B4/0.058 -> 0 | M4: ='Conversion 1'!B4/0.01 -> 0 | N4: ='Conversion 1'!B4/0.02 -> 0 | O4: ='Conversion 1'!B4/0.56 -> 0 | P4: ='Conversion 1'!B4/0.4 -> 0 | R4: =AL4*0.4 -> 13.61850187 | S4: =(AL4-(4.188*AF4))*0.4 -> 9.988 | T4: =AL4*0.4 -> 13.61850187 | U4: =AL4 -> 34.04625467 | V4: =0.017*AL4 -> 0.5787863293 | W4: =0.056*AL4 -> 1.906590261 | X4: =0.1*AL4 -> 3.404625467 | Y4: =0.058*AL4 -> 1.974682771 | Z4: =0.01*AL4 -> 0.3404625467 | AA4: =0.02*AL4 -> 0.6809250933 | AB4: =0.56*AL4 -> 19.06590261 | AC4: =0.4*AL4 -> 13.61850187 | AE4: 10 | AF4: =10^(0.6113*(LOG10(AE4))-0.2754) -> 2.16720503 | AG4: =10^(0.7068*(LOG10(AE4))+0.1029) -> 6.452083809 | AH4: =10^(0.6685*(LOG10(AE4))-0.5387) -> 1.348341805 | AI4: =10^(0.9535*(LOG10(AE4))-0.0773) -> 7.519691089 | AJ4: =10^(0.7178*(LOG10(AE4))+0.2764) -> 9.867337887 | AK4: =10^(1.0439*(LOG10(AE4))+0.1881) -> 17.06082389 | AL4: =(2.497*AE4)+(4.188*AF4) -> 34.04625467
A5: English Degree (grain CaCO3/gal) | B5: =0.1423*('Conversion 1'!D5^1.2528) -> 0 | C5: =(0.00005*('Conversion 1'!D5^2))+(0.3389*'Conversion 1'!D5)-1.431 -> -1.431 | D5: 4 | E5: ='Conversion 1'!B5 -> 0 | F5: ='Conversion 1'!B5/0.4 -> 0 | G5: ='Conversion 1'!B5/0.4 -> 0 | H5: ='Conversion 1'!B5 -> 0 | I5: ='Conversion 1'!B5/0.07 -> 0 | J5: ='Conversion 1'!B5/0.056 -> 0 | K5: ='Conversion 1'!B5/0.1 -> 0 | L5: ='Conversion 1'!B5/0.058 -> 0 | M5: ='Conversion 1'!B5/0.01 -> 0 | N5: ='Conversion 1'!B5/0.02 -> 0 | O5: ='Conversion 1'!B5/0.56 -> 0 | P5: ='Conversion 1'!B5/0.4 -> 0
A6: German Degree (10mg CaO/L) | B6: =0.1423*('Conversion 1'!D6^1.2528) -> 0 | C6: =(0.00005*('Conversion 1'!D6^2))+(0.3389*'Conversion 1'!D6)-1.431 -> -1.431 | D6: 5 | E6: ='Conversion 1'!B6 -> 0 | F6: ='Conversion 1'!B6/0.4 -> 0 | G6: ='Conversion 1'!B6/0.4 -> 0 | H6: ='Conversion 1'!B6 -> 0 | I6: ='Conversion 1'!B6/0.07 -> 0 | J6: ='Conversion 1'!B6/0.056 -> 0 | K6: ='Conversion 1'!B6/0.1 -> 0 | L6: ='Conversion 1'!B6/0.058 -> 0 | M6: ='Conversion 1'!B6/0.01 -> 0 | N6: ='Conversion 1'!B6/0.02 -> 0 | O6: ='Conversion 1'!B6/0.56 -> 0 | P6: ='Conversion 1'!B6/0.4 -> 0
A7: French Degree (10 mg CaCO3/L) | B7: =0.1423*('Conversion 1'!D7^1.2528) -> 0 | C7: =(0.00005*('Conversion 1'!D7^2))+(0.3389*'Conversion 1'!D7)-1.431 -> -1.431 | D7: 6 | E7: ='Conversion 1'!B7 -> 0 | F7: ='Conversion 1'!B7/0.4 -> 0 | G7: ='Conversion 1'!B7/0.4 -> 0 | H7: ='Conversion 1'!B7 -> 0 | I7: ='Conversion 1'!B7/0.07 -> 0 | J7: ='Conversion 1'!B7/0.056 -> 0 | K7: ='Conversion 1'!B7/0.1 -> 0 | L7: ='Conversion 1'!B7/0.058 -> 0 | M7: ='Conversion 1'!B7/0.01 -> 0 | N7: ='Conversion 1'!B7/0.02 -> 0 | O7: ='Conversion 1'!B7/0.56 -> 0 | P7: ='Conversion 1'!B7/0.4 -> 0
A8: USA degree (grain CaCO3/gal) | B8: =0.1423*('Conversion 1'!D8^1.2528) -> 0 | C8: =(0.00005*('Conversion 1'!D8^2))+(0.3389*'Conversion 1'!D8)-1.431 -> -1.431 | D8: 7 | E8: ='Conversion 1'!B8 -> 0 | F8: ='Conversion 1'!B8/0.4 -> 0 | G8: ='Conversion 1'!B8/0.4 -> 0 | H8: ='Conversion 1'!B8 -> 0 | I8: ='Conversion 1'!B8/0.07 -> 0 | J8: ='Conversion 1'!B8/0.056 -> 0 | K8: ='Conversion 1'!B8/0.1 -> 0 | L8: ='Conversion 1'!B8/0.058 -> 0 | M8: ='Conversion 1'!B8/0.01 -> 0 | N8: ='Conversion 1'!B8/0.02 -> 0 | O8: ='Conversion 1'!B8/0.56 -> 0 | P8: ='Conversion 1'!B8/0.4 -> 0
A9: mmol/L | B9: =0.1423*('Conversion 1'!D9^1.2528) -> 0 | C9: =(0.00005*('Conversion 1'!D9^2))+(0.3389*'Conversion 1'!D9)-1.431 -> -1.431 | D9: 8 | E9: ='Conversion 1'!B9 -> 0 | F9: ='Conversion 1'!B9/0.4 -> 0 | G9: ='Conversion 1'!B9/0.4 -> 0 | H9: ='Conversion 1'!B9 -> 0 | I9: ='Conversion 1'!B9/0.07 -> 0 | J9: ='Conversion 1'!B9/0.056 -> 0 | K9: ='Conversion 1'!B9/0.1 -> 0 | L9: ='Conversion 1'!B9/0.058 -> 0 | M9: ='Conversion 1'!B9/0.01 -> 0 | N9: ='Conversion 1'!B9/0.02 -> 0 | O9: ='Conversion 1'!B9/0.56 -> 0 | P9: ='Conversion 1'!B9/0.4 -> 0
A10: meq/L (or mval/L) | B10: =0.1423*('Conversion 1'!D10^1.2528) -> 0 | C10: =(0.00005*('Conversion 1'!D10^2))+(0.3389*'Conversion 1'!D10)-1.431 -> -1.431 | D10: 9 | E10: ='Conversion 1'!B10 -> 0 | F10: ='Conversion 1'!B10/0.4 -> 0 | G10: ='Conversion 1'!B10/0.4 -> 0 | H10: ='Conversion 1'!B10 -> 0 | I10: ='Conversion 1'!B10/0.07 -> 0 | J10: ='Conversion 1'!B10/0.056 -> 0 | K10: ='Conversion 1'!B10/0.1 -> 0 | L10: ='Conversion 1'!B10/0.058 -> 0 | M10: ='Conversion 1'!B10/0.01 -> 0 | N10: ='Conversion 1'!B10/0.02 -> 0 | O10: ='Conversion 1'!B10/0.56 -> 0 | P10: ='Conversion 1'!B10/0.4 -> 0
A11: mg CaO/ L | B11: =0.1423*('Conversion 1'!D11^1.2528) -> 0 | C11: =(0.00005*('Conversion 1'!D11^2))+(0.3389*'Conversion 1'!D11)-1.431 -> -1.431 | D11: 10 | E11: ='Conversion 1'!B11 -> 0 | F11: ='Conversion 1'!B11/0.4 -> 0 | G11: ='Conversion 1'!B11/0.4 -> 0 | H11: ='Conversion 1'!B11 -> 0 | I11: ='Conversion 1'!B11/0.07 -> 0 | J11: ='Conversion 1'!B11/0.056 -> 0 | K11: ='Conversion 1'!B11/0.1 -> 0 | L11: ='Conversion 1'!B11/0.058 -> 0 | M11: ='Conversion 1'!B11/0.01 -> 0 | N11: ='Conversion 1'!B11/0.02 -> 0 | O11: ='Conversion 1'!B11/0.56 -> 0 | P11: ='Conversion 1'!B11/0.4 -> 0
A12: mg Ca2+/L (Ca+Mg) | B12: =0.1423*('Conversion 1'!D12^1.2528) -> 0 | C12: =(0.00005*('Conversion 1'!D12^2))+(0.3389*'Conversion 1'!D12)-1.431 -> -1.431 | D12: 11 | E12: ='Conversion 1'!B12 -> 0 | F12: ='Conversion 1'!B12/0.4 -> 0 | G12: ='Conversion 1'!B12/0.4 -> 0 | H12: ='Conversion 1'!B12 -> 0 | I12: ='Conversion 1'!B12/0.07 -> 0 | J12: ='Conversion 1'!B12/0.056 -> 0 | K12: ='Conversion 1'!B12/0.1 -> 0 | L12: ='Conversion 1'!B12/0.058 -> 0 | M12: ='Conversion 1'!B12/0.01 -> 0 | N12: ='Conversion 1'!B12/0.02 -> 0 | O12: ='Conversion 1'!B12/0.56 -> 0 | P12: ='Conversion 1'!B12/0.4 -> 0
B13: =0.1423*('Conversion 1'!D13^1.2528) -> 0 | C13: =(0.00005*('Conversion 1'!D13^2))+(0.3389*'Conversion 1'!D13)-1.431 -> -1.431 | D13: 12 | E13: ='Conversion 1'!B13 -> 0 | F13: ='Conversion 1'!B13/0.4 -> 0 | G13: ='Conversion 1'!B13/0.4 -> 0 | H13: ='Conversion 1'!B13 -> 0 | I13: ='Conversion 1'!B13/0.07 -> 0 | J13: ='Conversion 1'!B13/0.056 -> 0 | K13: ='Conversion 1'!B13/0.1 -> 0 | L13: ='Conversion 1'!B13/0.058 -> 0 | M13: ='Conversion 1'!B13/0.01 -> 0 | N13: ='Conversion 1'!B13/0.02 -> 0 | O13: ='Conversion 1'!B13/0.56 -> 0 | P13: ='Conversion 1'!B13/0.4 -> 0
B14: =0.1423*('Conversion 1'!D14^1.2528) -> 0 | C14: =(0.00005*('Conversion 1'!D14^2))+(0.3389*'Conversion 1'!D14)-1.431 -> -1.431 | D14: 13 | E14: ='Conversion 1'!B14 -> 0 | F14: ='Conversion 1'!B14/0.4 -> 0 | G14: ='Conversion 1'!B14/0.4 -> 0 | H14: ='Conversion 1'!B14 -> 0 | I14: ='Conversion 1'!B14/0.07 -> 0 | J14: ='Conversion 1'!B14/0.056 -> 0 | K14: ='Conversion 1'!B14/0.1 -> 0 | L14: ='Conversion 1'!B14/0.058 -> 0 | M14: ='Conversion 1'!B14/0.01 -> 0 | N14: ='Conversion 1'!B14/0.02 -> 0 | O14: ='Conversion 1'!B14/0.56 -> 0 | P14: ='Conversion 1'!B14/0.4 -> 0
B15: =0.1423*('Conversion 1'!D15^1.2528) -> 0 | C15: =(0.00005*('Conversion 1'!D15^2))+(0.3389*'Conversion 1'!D15)-1.431 -> -1.431 | D15: 14 | E15: ='Conversion 1'!B15 -> 0 | F15: ='Conversion 1'!B15/0.4 -> 0 | G15: ='Conversion 1'!B15/0.4 -> 0 | H15: ='Conversion 1'!B15 -> 0 | I15: ='Conversion 1'!B15/0.07 -> 0 | J15: ='Conversion 1'!B15/0.056 -> 0 | K15: ='Conversion 1'!B15/0.1 -> 0 | L15: ='Conversion 1'!B15/0.058 -> 0 | M15: ='Conversion 1'!B15/0.01 -> 0 | N15: ='Conversion 1'!B15/0.02 -> 0 | O15: ='Conversion 1'!B15/0.56 -> 0 | P15: ='Conversion 1'!B15/0.4 -> 0
B16: =0.1423*('Conversion 1'!D16^1.2528) -> 0 | C16: =(0.00005*('Conversion 1'!D16^2))+(0.3389*'Conversion 1'!D16)-1.431 -> -1.431 | D16: 15 | E16: ='Conversion 1'!B16 -> 0 | F16: ='Conversion 1'!B16/0.4 -> 0 | G16: ='Conversion 1'!B16/0.4 -> 0 | H16: ='Conversion 1'!B16 -> 0 | I16: ='Conversion 1'!B16/0.07 -> 0 | J16: ='Conversion 1'!B16/0.056 -> 0 | K16: ='Conversion 1'!B16/0.1 -> 0 | L16: ='Conversion 1'!B16/0.058 -> 0 | M16: ='Conversion 1'!B16/0.01 -> 0 | N16: ='Conversion 1'!B16/0.02 -> 0 | O16: ='Conversion 1'!B16/0.56 -> 0 | P16: ='Conversion 1'!B16/0.4 -> 0
B17: =0.1423*('Conversion 1'!D17^1.2528) -> 0 | C17: =(0.00005*('Conversion 1'!D17^2))+(0.3389*'Conversion 1'!D17)-1.431 -> -1.431 | D17: 16 | E17: ='Conversion 1'!B17 -> 0 | F17: ='Conversion 1'!B17/0.4 -> 0 | G17: ='Conversion 1'!B17/0.4 -> 0 | H17: ='Conversion 1'!B17 -> 0 | I17: ='Conversion 1'!B17/0.07 -> 0 | J17: ='Conversion 1'!B17/0.056 -> 0 | K17: ='Conversion 1'!B17/0.1 -> 0 | L17: ='Conversion 1'!B17/0.058 -> 0 | M17: ='Conversion 1'!B17/0.01 -> 0 | N17: ='Conversion 1'!B17/0.02 -> 0 | O17: ='Conversion 1'!B17/0.56 -> 0 | P17: ='Conversion 1'!B17/0.4 -> 0
B18: =0.1423*('Conversion 1'!D18^1.2528) -> 0 | C18: =(0.00005*('Conversion 1'!D18^2))+(0.3389*'Conversion 1'!D18)-1.431 -> -1.431 | D18: 17 | E18: ='Conversion 1'!B18 -> 0 | F18: ='Conversion 1'!B18/0.4 -> 0 | G18: ='Conversion 1'!B18/0.4 -> 0 | H18: ='Conversion 1'!B18 -> 0 | I18: ='Conversion 1'!B18/0.07 -> 0 | J18: ='Conversion 1'!B18/0.056 -> 0 | K18: ='Conversion 1'!B18/0.1 -> 0 | L18: ='Conversion 1'!B18/0.058 -> 0 | M18: ='Conversion 1'!B18/0.01 -> 0 | N18: ='Conversion 1'!B18/0.02 -> 0 | O18: ='Conversion 1'!B18/0.56 -> 0 | P18: ='Conversion 1'!B18/0.4 -> 0
B19: =0.1423*('Conversion 1'!D19^1.2528) -> 0 | C19: =(0.00005*('Conversion 1'!D19^2))+(0.3389*'Conversion 1'!D19)-1.431 -> -1.431 | D19: 18 | E19: ='Conversion 1'!B19 -> 0 | F19: ='Conversion 1'!B19/0.4 -> 0 | G19: ='Conversion 1'!B19/0.4 -> 0 | H19: ='Conversion 1'!B19 -> 0 | I19: ='Conversion 1'!B19/0.07 -> 0 | J19: ='Conversion 1'!B19/0.056 -> 0 | K19: ='Conversion 1'!B19/0.1 -> 0 | L19: ='Conversion 1'!B19/0.058 -> 0 | M19: ='Conversion 1'!B19/0.01 -> 0 | N19: ='Conversion 1'!B19/0.02 -> 0 | O19: ='Conversion 1'!B19/0.56 -> 0 | P19: ='Conversion 1'!B19/0.4 -> 0
B20: =0.1423*('Conversion 1'!D20^1.2528) -> 0 | C20: =(0.00005*('Conversion 1'!D20^2))+(0.3389*'Conversion 1'!D20)-1.431 -> -1.431 | D20: 19 | E20: ='Conversion 1'!B20 -> 0 | F20: ='Conversion 1'!B20/0.4 -> 0 | G20: ='Conversion 1'!B20/0.4 -> 0 | H20: ='Conversion 1'!B20 -> 0 | I20: ='Conversion 1'!B20/0.07 -> 0 | J20: ='Conversion 1'!B20/0.056 -> 0 | K20: ='Conversion 1'!B20/0.1 -> 0 | L20: ='Conversion 1'!B20/0.058 -> 0 | M20: ='Conversion 1'!B20/0.01 -> 0 | N20: ='Conversion 1'!B20/0.02 -> 0 | O20: ='Conversion 1'!B20/0.56 -> 0 | P20: ='Conversion 1'!B20/0.4 -> 0
B21: =0.1423*('Conversion 1'!D21^1.2528) -> 0 | C21: =(0.00005*('Conversion 1'!D21^2))+(0.3389*'Conversion 1'!D21)-1.431 -> -1.431 | D21: 20 | E21: ='Conversion 1'!B21 -> 0 | F21: ='Conversion 1'!B21/0.4 -> 0 | G21: ='Conversion 1'!B21/0.4 -> 0 | H21: ='Conversion 1'!B21 -> 0 | I21: ='Conversion 1'!B21/0.07 -> 0 | J21: ='Conversion 1'!B21/0.056 -> 0 | K21: ='Conversion 1'!B21/0.1 -> 0 | L21: ='Conversion 1'!B21/0.058 -> 0 | M21: ='Conversion 1'!B21/0.01 -> 0 | N21: ='Conversion 1'!B21/0.02 -> 0 | O21: ='Conversion 1'!B21/0.56 -> 0 | P21: ='Conversion 1'!B21/0.4 -> 0
B22: =0.1423*('Conversion 1'!D22^1.2528) -> 0 | C22: =(0.00005*('Conversion 1'!D22^2))+(0.3389*'Conversion 1'!D22)-1.431 -> -1.431 | D22: 21 | E22: ='Conversion 1'!B22 -> 0 | F22: ='Conversion 1'!B22/0.4 -> 0 | G22: ='Conversion 1'!B22/0.4 -> 0 | H22: ='Conversion 1'!B22 -> 0 | I22: ='Conversion 1'!B22/0.07 -> 0 | J22: ='Conversion 1'!B22/0.056 -> 0 | K22: ='Conversion 1'!B22/0.1 -> 0 | L22: ='Conversion 1'!B22/0.058 -> 0 | M22: ='Conversion 1'!B22/0.01 -> 0 | N22: ='Conversion 1'!B22/0.02 -> 0 | O22: ='Conversion 1'!B22/0.56 -> 0 | P22: ='Conversion 1'!B22/0.4 -> 0
B23: =0.1423*('Conversion 1'!D23^1.2528) -> 0 | C23: =(0.00005*('Conversion 1'!D23^2))+(0.3389*'Conversion 1'!D23)-1.431 -> -1.431 | D23: 22 | E23: ='Conversion 1'!B23 -> 0 | F23: ='Conversion 1'!B23/0.4 -> 0 | G23: ='Conversion 1'!B23/0.4 -> 0 | H23: ='Conversion 1'!B23 -> 0 | I23: ='Conversion 1'!B23/0.07 -> 0 | J23: ='Conversion 1'!B23/0.056 -> 0 | K23: ='Conversion 1'!B23/0.1 -> 0 | L23: ='Conversion 1'!B23/0.058 -> 0 | M23: ='Conversion 1'!B23/0.01 -> 0 | N23: ='Conversion 1'!B23/0.02 -> 0 | O23: ='Conversion 1'!B23/0.56 -> 0 | P23: ='Conversion 1'!B23/0.4 -> 0
B24: =0.1423*('Conversion 1'!D24^1.2528) -> 0 | C24: =(0.00005*('Conversion 1'!D24^2))+(0.3389*'Conversion 1'!D24)-1.431 -> -1.431 | D24: 23 | E24: ='Conversion 1'!B24 -> 0 | F24: ='Conversion 1'!B24/0.4 -> 0 | G24: ='Conversion 1'!B24/0.4 -> 0 | H24: ='Conversion 1'!B24 -> 0 | I24: ='Conversion 1'!B24/0.07 -> 0 | J24: ='Conversion 1'!B24/0.056 -> 0 | K24: ='Conversion 1'!B24/0.1 -> 0 | L24: ='Conversion 1'!B24/0.058 -> 0 | M24: ='Conversion 1'!B24/0.01 -> 0 | N24: ='Conversion 1'!B24/0.02 -> 0 | O24: ='Conversion 1'!B24/0.56 -> 0 | P24: ='Conversion 1'!B24/0.4 -> 0
B25: =0.1423*('Conversion 1'!D25^1.2528) -> 0 | C25: =(0.00005*('Conversion 1'!D25^2))+(0.3389*'Conversion 1'!D25)-1.431 -> -1.431 | D25: 24 | E25: ='Conversion 1'!B25 -> 0 | F25: ='Conversion 1'!B25/0.4 -> 0 | G25: ='Conversion 1'!B25/0.4 -> 0 | H25: ='Conversion 1'!B25 -> 0 | I25: ='Conversion 1'!B25/0.07 -> 0 | J25: ='Conversion 1'!B25/0.056 -> 0 | K25: ='Conversion 1'!B25/0.1 -> 0 | L25: ='Conversion 1'!B25/0.058 -> 0 | M25: ='Conversion 1'!B25/0.01 -> 0 | N25: ='Conversion 1'!B25/0.02 -> 0 | O25: ='Conversion 1'!B25/0.56 -> 0 | P25: ='Conversion 1'!B25/0.4 -> 0
B26: =0.1423*('Conversion 1'!D26^1.2528) -> 0 | C26: =(0.00005*('Conversion 1'!D26^2))+(0.3389*'Conversion 1'!D26)-1.431 -> -1.431 | D26: 25 | E26: ='Conversion 1'!B26 -> 0 | F26: ='Conversion 1'!B26/0.4 -> 0 | G26: ='Conversion 1'!B26/0.4 -> 0 | H26: ='Conversion 1'!B26 -> 0 | I26: ='Conversion 1'!B26/0.07 -> 0 | J26: ='Conversion 1'!B26/0.056 -> 0 | K26: ='Conversion 1'!B26/0.1 -> 0 | L26: ='Conversion 1'!B26/0.058 -> 0 | M26: ='Conversion 1'!B26/0.01 -> 0 | N26: ='Conversion 1'!B26/0.02 -> 0 | O26: ='Conversion 1'!B26/0.56 -> 0 | P26: ='Conversion 1'!B26/0.4 -> 0
B27: =0.1423*('Conversion 1'!D27^1.2528) -> 0 | C27: =(0.00005*('Conversion 1'!D27^2))+(0.3389*'Conversion 1'!D27)-1.431 -> -1.431 | D27: 26 | E27: ='Conversion 1'!B27 -> 0 | F27: ='Conversion 1'!B27/0.4 -> 0 | G27: ='Conversion 1'!B27/0.4 -> 0 | H27: ='Conversion 1'!B27 -> 0 | I27: ='Conversion 1'!B27/0.07 -> 0 | J27: ='Conversion 1'!B27/0.056 -> 0 | K27: ='Conversion 1'!B27/0.1 -> 0 | L27: ='Conversion 1'!B27/0.058 -> 0 | M27: ='Conversion 1'!B27/0.01 -> 0 | N27: ='Conversion 1'!B27/0.02 -> 0 | O27: ='Conversion 1'!B27/0.56 -> 0 | P27: ='Conversion 1'!B27/0.4 -> 0
B28: =0.1423*('Conversion 1'!D28^1.2528) -> 0 | C28: =(0.00005*('Conversion 1'!D28^2))+(0.3389*'Conversion 1'!D28)-1.431 -> -1.431 | D28: 27 | E28: ='Conversion 1'!B28 -> 0 | F28: ='Conversion 1'!B28/0.4 -> 0 | G28: ='Conversion 1'!B28/0.4 -> 0 | H28: ='Conversion 1'!B28 -> 0 | I28: ='Conversion 1'!B28/0.07 -> 0 | J28: ='Conversion 1'!B28/0.056 -> 0 | K28: ='Conversion 1'!B28/0.1 -> 0 | L28: ='Conversion 1'!B28/0.058 -> 0 | M28: ='Conversion 1'!B28/0.01 -> 0 | N28: ='Conversion 1'!B28/0.02 -> 0 | O28: ='Conversion 1'!B28/0.56 -> 0 | P28: ='Conversion 1'!B28/0.4 -> 0
B29: =0.1423*('Conversion 1'!D29^1.2528) -> 0 | C29: =(0.00005*('Conversion 1'!D29^2))+(0.3389*'Conversion 1'!D29)-1.431 -> -1.431 | D29: 28 | E29: ='Conversion 1'!B29 -> 0 | F29: ='Conversion 1'!B29/0.4 -> 0 | G29: ='Conversion 1'!B29/0.4 -> 0 | H29: ='Conversion 1'!B29 -> 0 | I29: ='Conversion 1'!B29/0.07 -> 0 | J29: ='Conversion 1'!B29/0.056 -> 0 | K29: ='Conversion 1'!B29/0.1 -> 0 | L29: ='Conversion 1'!B29/0.058 -> 0 | M29: ='Conversion 1'!B29/0.01 -> 0 | N29: ='Conversion 1'!B29/0.02 -> 0 | O29: ='Conversion 1'!B29/0.56 -> 0 | P29: ='Conversion 1'!B29/0.4 -> 0
B30: =0.1423*('Conversion 1'!D30^1.2528) -> 0 | C30: =(0.00005*('Conversion 1'!D30^2))+(0.3389*'Conversion 1'!D30)-1.431 -> -1.431 | D30: 29 | E30: ='Conversion 1'!B30 -> 0 | F30: ='Conversion 1'!B30/0.4 -> 0 | G30: ='Conversion 1'!B30/0.4 -> 0 | H30: ='Conversion 1'!B30 -> 0 | I30: ='Conversion 1'!B30/0.07 -> 0 | J30: ='Conversion 1'!B30/0.056 -> 0 | K30: ='Conversion 1'!B30/0.1 -> 0 | L30: ='Conversion 1'!B30/0.058 -> 0 | M30: ='Conversion 1'!B30/0.01 -> 0 | N30: ='Conversion 1'!B30/0.02 -> 0 | O30: ='Conversion 1'!B30/0.56 -> 0 | P30: ='Conversion 1'!B30/0.4 -> 0
B31: =0.1423*('Conversion 1'!D31^1.2528) -> 0 | C31: =(0.00005*('Conversion 1'!D31^2))+(0.3389*'Conversion 1'!D31)-1.431 -> -1.431 | D31: 30 | E31: ='Conversion 1'!B31 -> 0 | F31: ='Conversion 1'!B31/0.4 -> 0 | G31: ='Conversion 1'!B31/0.4 -> 0 | H31: ='Conversion 1'!B31 -> 0 | I31: ='Conversion 1'!B31/0.07 -> 0 | J31: ='Conversion 1'!B31/0.056 -> 0 | K31: ='Conversion 1'!B31/0.1 -> 0 | L31: ='Conversion 1'!B31/0.058 -> 0 | M31: ='Conversion 1'!B31/0.01 -> 0 | N31: ='Conversion 1'!B31/0.02 -> 0 | O31: ='Conversion 1'!B31/0.56 -> 0 | P31: ='Conversion 1'!B31/0.4 -> 0
B32: =0.1423*('Conversion 1'!D32^1.2528) -> 0 | C32: =(0.00005*('Conversion 1'!D32^2))+(0.3389*'Conversion 1'!D32)-1.431 -> -1.431 | D32: 31 | E32: ='Conversion 1'!B32 -> 0 | F32: ='Conversion 1'!B32/0.4 -> 0 | G32: ='Conversion 1'!B32/0.4 -> 0 | H32: ='Conversion 1'!B32 -> 0 | I32: ='Conversion 1'!B32/0.07 -> 0 | J32: ='Conversion 1'!B32/0.056 -> 0 | K32: ='Conversion 1'!B32/0.1 -> 0 | L32: ='Conversion 1'!B32/0.058 -> 0 | M32: ='Conversion 1'!B32/0.01 -> 0 | N32: ='Conversion 1'!B32/0.02 -> 0 | O32: ='Conversion 1'!B32/0.56 -> 0 | P32: ='Conversion 1'!B32/0.4 -> 0
B33: =0.1423*('Conversion 1'!D33^1.2528) -> 0 | C33: =(0.00005*('Conversion 1'!D33^2))+(0.3389*'Conversion 1'!D33)-1.431 -> -1.431 | D33: 32 | E33: ='Conversion 1'!B33 -> 0 | F33: ='Conversion 1'!B33/0.4 -> 0 | G33: ='Conversion 1'!B33/0.4 -> 0 | H33: ='Conversion 1'!B33 -> 0 | I33: ='Conversion 1'!B33/0.07 -> 0 | J33: ='Conversion 1'!B33/0.056 -> 0 | K33: ='Conversion 1'!B33/0.1 -> 0 | L33: ='Conversion 1'!B33/0.058 -> 0 | M33: ='Conversion 1'!B33/0.01 -> 0 | N33: ='Conversion 1'!B33/0.02 -> 0 | O33: ='Conversion 1'!B33/0.56 -> 0 | P33: ='Conversion 1'!B33/0.4 -> 0
B34: =0.1423*('Conversion 1'!D34^1.2528) -> 0 | C34: =(0.00005*('Conversion 1'!D34^2))+(0.3389*'Conversion 1'!D34)-1.431 -> -1.431 | D34: 33 | E34: ='Conversion 1'!B34 -> 0 | F34: ='Conversion 1'!B34/0.4 -> 0 | G34: ='Conversion 1'!B34/0.4 -> 0 | H34: ='Conversion 1'!B34 -> 0 | I34: ='Conversion 1'!B34/0.07 -> 0 | J34: ='Conversion 1'!B34/0.056 -> 0 | K34: ='Conversion 1'!B34/0.1 -> 0 | L34: ='Conversion 1'!B34/0.058 -> 0 | M34: ='Conversion 1'!B34/0.01 -> 0 | N34: ='Conversion 1'!B34/0.02 -> 0 | O34: ='Conversion 1'!B34/0.56 -> 0 | P34: ='Conversion 1'!B34/0.4 -> 0
B35: =0.1423*('Conversion 1'!D35^1.2528) -> 0 | C35: =(0.00005*('Conversion 1'!D35^2))+(0.3389*'Conversion 1'!D35)-1.431 -> -1.431 | D35: 34 | E35: ='Conversion 1'!B35 -> 0 | F35: ='Conversion 1'!B35/0.4 -> 0 | G35: ='Conversion 1'!B35/0.4 -> 0 | H35: ='Conversion 1'!B35 -> 0 | I35: ='Conversion 1'!B35/0.07 -> 0 | J35: ='Conversion 1'!B35/0.056 -> 0 | K35: ='Conversion 1'!B35/0.1 -> 0 | L35: ='Conversion 1'!B35/0.058 -> 0 | M35: ='Conversion 1'!B35/0.01 -> 0 | N35: ='Conversion 1'!B35/0.02 -> 0 | O35: ='Conversion 1'!B35/0.56 -> 0 | P35: ='Conversion 1'!B35/0.4 -> 0
B36: =0.1423*('Conversion 1'!D36^1.2528) -> 0 | C36: =(0.00005*('Conversion 1'!D36^2))+(0.3389*'Conversion 1'!D36)-1.431 -> -1.431 | D36: 35 | E36: ='Conversion 1'!B36 -> 0 | F36: ='Conversion 1'!B36/0.4 -> 0 | G36: ='Conversion 1'!B36/0.4 -> 0 | H36: ='Conversion 1'!B36 -> 0 | I36: ='Conversion 1'!B36/0.07 -> 0 | J36: ='Conversion 1'!B36/0.056 -> 0 | K36: ='Conversion 1'!B36/0.1 -> 0 | L36: ='Conversion 1'!B36/0.058 -> 0 | M36: ='Conversion 1'!B36/0.01 -> 0 | N36: ='Conversion 1'!B36/0.02 -> 0 | O36: ='Conversion 1'!B36/0.56 -> 0 | P36: ='Conversion 1'!B36/0.4 -> 0
B37: =0.1423*('Conversion 1'!D37^1.2528) -> 0 | C37: =(0.00005*('Conversion 1'!D37^2))+(0.3389*'Conversion 1'!D37)-1.431 -> -1.431 | D37: 36 | E37: ='Conversion 1'!B37 -> 0 | F37: ='Conversion 1'!B37/0.4 -> 0 | G37: ='Conversion 1'!B37/0.4 -> 0 | H37: ='Conversion 1'!B37 -> 0 | I37: ='Conversion 1'!B37/0.07 -> 0 | J37: ='Conversion 1'!B37/0.056 -> 0 | K37: ='Conversion 1'!B37/0.1 -> 0 | L37: ='Conversion 1'!B37/0.058 -> 0 | M37: ='Conversion 1'!B37/0.01 -> 0 | N37: ='Conversion 1'!B37/0.02 -> 0 | O37: ='Conversion 1'!B37/0.56 -> 0 | P37: ='Conversion 1'!B37/0.4 -> 0
B38: =0.1423*('Conversion 1'!D38^1.2528) -> 0 | C38: =(0.00005*('Conversion 1'!D38^2))+(0.3389*'Conversion 1'!D38)-1.431 -> -1.431 | D38: 37 | E38: ='Conversion 1'!B38 -> 0 | F38: ='Conversion 1'!B38/0.4 -> 0 | G38: ='Conversion 1'!B38/0.4 -> 0 | H38: ='Conversion 1'!B38 -> 0 | I38: ='Conversion 1'!B38/0.07 -> 0 | J38: ='Conversion 1'!B38/0.056 -> 0 | K38: ='Conversion 1'!B38/0.1 -> 0 | L38: ='Conversion 1'!B38/0.058 -> 0 | M38: ='Conversion 1'!B38/0.01 -> 0 | N38: ='Conversion 1'!B38/0.02 -> 0 | O38: ='Conversion 1'!B38/0.56 -> 0 | P38: ='Conversion 1'!B38/0.4 -> 0
B39: =0.1423*('Conversion 1'!D39^1.2528) -> 0 | C39: =(0.00005*('Conversion 1'!D39^2))+(0.3389*'Conversion 1'!D39)-1.431 -> -1.431 | D39: 38 | E39: ='Conversion 1'!B39 -> 0 | F39: ='Conversion 1'!B39/0.4 -> 0 | G39: ='Conversion 1'!B39/0.4 -> 0 | H39: ='Conversion 1'!B39 -> 0 | I39: ='Conversion 1'!B39/0.07 -> 0 | J39: ='Conversion 1'!B39/0.056 -> 0 | K39: ='Conversion 1'!B39/0.1 -> 0 | L39: ='Conversion 1'!B39/0.058 -> 0 | M39: ='Conversion 1'!B39/0.01 -> 0 | N39: ='Conversion 1'!B39/0.02 -> 0 | O39: ='Conversion 1'!B39/0.56 -> 0 | P39: ='Conversion 1'!B39/0.4 -> 0
B40: =0.1423*('Conversion 1'!D40^1.2528) -> 0 | C40: =(0.00005*('Conversion 1'!D40^2))+(0.3389*'Conversion 1'!D40)-1.431 -> -1.431 | D40: 39 | E40: ='Conversion 1'!B40 -> 0 | F40: ='Conversion 1'!B40/0.4 -> 0 | G40: ='Conversion 1'!B40/0.4 -> 0 | H40: ='Conversion 1'!B40 -> 0 | I40: ='Conversion 1'!B40/0.07 -> 0 | J40: ='Conversion 1'!B40/0.056 -> 0 | K40: ='Conversion 1'!B40/0.1 -> 0 | L40: ='Conversion 1'!B40/0.058 -> 0 | M40: ='Conversion 1'!B40/0.01 -> 0 | N40: ='Conversion 1'!B40/0.02 -> 0 | O40: ='Conversion 1'!B40/0.56 -> 0 | P40: ='Conversion 1'!B40/0.4 -> 0
B41: =0.1423*('Conversion 1'!D41^1.2528) -> 0 | C41: =(0.00005*('Conversion 1'!D41^2))+(0.3389*'Conversion 1'!D41)-1.431 -> -1.431 | D41: 40 | E41: ='Conversion 1'!B41 -> 0 | F41: ='Conversion 1'!B41/0.4 -> 0 | G41: ='Conversion 1'!B41/0.4 -> 0 | H41: ='Conversion 1'!B41 -> 0 | I41: ='Conversion 1'!B41/0.07 -> 0 | J41: ='Conversion 1'!B41/0.056 -> 0 | K41: ='Conversion 1'!B41/0.1 -> 0 | L41: ='Conversion 1'!B41/0.058 -> 0 | M41: ='Conversion 1'!B41/0.01 -> 0 | N41: ='Conversion 1'!B41/0.02 -> 0 | O41: ='Conversion 1'!B41/0.56 -> 0 | P41: ='Conversion 1'!B41/0.4 -> 0
B42: =0.1423*('Conversion 1'!D42^1.2528) -> 0 | C42: =(0.00005*('Conversion 1'!D42^2))+(0.3389*'Conversion 1'!D42)-1.431 -> -1.431 | D42: 41 | E42: ='Conversion 1'!B42 -> 0 | F42: ='Conversion 1'!B42/0.4 -> 0 | G42: ='Conversion 1'!B42/0.4 -> 0 | H42: ='Conversion 1'!B42 -> 0 | I42: ='Conversion 1'!B42/0.07 -> 0 | J42: ='Conversion 1'!B42/0.056 -> 0 | K42: ='Conversion 1'!B42/0.1 -> 0 | L42: ='Conversion 1'!B42/0.058 -> 0 | M42: ='Conversion 1'!B42/0.01 -> 0 | N42: ='Conversion 1'!B42/0.02 -> 0 | O42: ='Conversion 1'!B42/0.56 -> 0 | P42: ='Conversion 1'!B42/0.4 -> 0
B43: =0.1423*('Conversion 1'!D43^1.2528) -> 0 | C43: =(0.00005*('Conversion 1'!D43^2))+(0.3389*'Conversion 1'!D43)-1.431 -> -1.431 | D43: 42 | E43: ='Conversion 1'!B43 -> 0 | F43: ='Conversion 1'!B43/0.4 -> 0 | G43: ='Conversion 1'!B43/0.4 -> 0 | H43: ='Conversion 1'!B43 -> 0 | I43: ='Conversion 1'!B43/0.07 -> 0 | J43: ='Conversion 1'!B43/0.056 -> 0 | K43: ='Conversion 1'!B43/0.1 -> 0 | L43: ='Conversion 1'!B43/0.058 -> 0 | M43: ='Conversion 1'!B43/0.01 -> 0 | N43: ='Conversion 1'!B43/0.02 -> 0 | O43: ='Conversion 1'!B43/0.56 -> 0 | P43: ='Conversion 1'!B43/0.4 -> 0
B44: =0.1423*('Conversion 1'!D44^1.2528) -> 0 | C44: =(0.00005*('Conversion 1'!D44^2))+(0.3389*'Conversion 1'!D44)-1.431 -> -1.431 | D44: 43 | E44: ='Conversion 1'!B44 -> 0 | F44: ='Conversion 1'!B44/0.4 -> 0 | G44: ='Conversion 1'!B44/0.4 -> 0 | H44: ='Conversion 1'!B44 -> 0 | I44: ='Conversion 1'!B44/0.07 -> 0 | J44: ='Conversion 1'!B44/0.056 -> 0 | K44: ='Conversion 1'!B44/0.1 -> 0 | L44: ='Conversion 1'!B44/0.058 -> 0 | M44: ='Conversion 1'!B44/0.01 -> 0 | N44: ='Conversion 1'!B44/0.02 -> 0 | O44: ='Conversion 1'!B44/0.56 -> 0 | P44: ='Conversion 1'!B44/0.4 -> 0
B45: =0.1423*('Conversion 1'!D45^1.2528) -> 0 | C45: =(0.00005*('Conversion 1'!D45^2))+(0.3389*'Conversion 1'!D45)-1.431 -> -1.431 | D45: 44 | E45: ='Conversion 1'!B45 -> 0 | F45: ='Conversion 1'!B45/0.4 -> 0 | G45: ='Conversion 1'!B45/0.4 -> 0 | H45: ='Conversion 1'!B45 -> 0 | I45: ='Conversion 1'!B45/0.07 -> 0 | J45: ='Conversion 1'!B45/0.056 -> 0 | K45: ='Conversion 1'!B45/0.1 -> 0 | L45: ='Conversion 1'!B45/0.058 -> 0 | M45: ='Conversion 1'!B45/0.01 -> 0 | N45: ='Conversion 1'!B45/0.02 -> 0 | O45: ='Conversion 1'!B45/0.56 -> 0 | P45: ='Conversion 1'!B45/0.4 -> 0
B46: =0.1423*('Conversion 1'!D46^1.2528) -> 0 | C46: =(0.00005*('Conversion 1'!D46^2))+(0.3389*'Conversion 1'!D46)-1.431 -> -1.431 | D46: 45 | E46: ='Conversion 1'!B46 -> 0 | F46: ='Conversion 1'!B46/0.4 -> 0 | G46: ='Conversion 1'!B46/0.4 -> 0 | H46: ='Conversion 1'!B46 -> 0 | I46: ='Conversion 1'!B46/0.07 -> 0 | J46: ='Conversion 1'!B46/0.056 -> 0 | K46: ='Conversion 1'!B46/0.1 -> 0 | L46: ='Conversion 1'!B46/0.058 -> 0 | M46: ='Conversion 1'!B46/0.01 -> 0 | N46: ='Conversion 1'!B46/0.02 -> 0 | O46: ='Conversion 1'!B46/0.56 -> 0 | P46: ='Conversion 1'!B46/0.4 -> 0
B47: =0.1423*('Conversion 1'!D47^1.2528) -> 0 | C47: =(0.00005*('Conversion 1'!D47^2))+(0.3389*'Conversion 1'!D47)-1.431 -> -1.431 | D47: 46 | E47: ='Conversion 1'!B47 -> 0 | F47: ='Conversion 1'!B47/0.4 -> 0 | G47: ='Conversion 1'!B47/0.4 -> 0 | H47: ='Conversion 1'!B47 -> 0 | I47: ='Conversion 1'!B47/0.07 -> 0 | J47: ='Conversion 1'!B47/0.056 -> 0 | K47: ='Conversion 1'!B47/0.1 -> 0 | L47: ='Conversion 1'!B47/0.058 -> 0 | M47: ='Conversion 1'!B47/0.01 -> 0 | N47: ='Conversion 1'!B47/0.02 -> 0 | O47: ='Conversion 1'!B47/0.56 -> 0 | P47: ='Conversion 1'!B47/0.4 -> 0
B48: =0.1423*('Conversion 1'!D48^1.2528) -> 0 | C48: =(0.00005*('Conversion 1'!D48^2))+(0.3389*'Conversion 1'!D48)-1.431 -> -1.431 | D48: 47 | E48: ='Conversion 1'!B48 -> 0 | F48: ='Conversion 1'!B48/0.4 -> 0 | G48: ='Conversion 1'!B48/0.4 -> 0 | H48: ='Conversion 1'!B48 -> 0 | I48: ='Conversion 1'!B48/0.07 -> 0 | J48: ='Conversion 1'!B48/0.056 -> 0 | K48: ='Conversion 1'!B48/0.1 -> 0 | L48: ='Conversion 1'!B48/0.058 -> 0 | M48: ='Conversion 1'!B48/0.01 -> 0 | N48: ='Conversion 1'!B48/0.02 -> 0 | O48: ='Conversion 1'!B48/0.56 -> 0 | P48: ='Conversion 1'!B48/0.4 -> 0
B49: =0.1423*('Conversion 1'!D49^1.2528) -> 0 | C49: =(0.00005*('Conversion 1'!D49^2))+(0.3389*'Conversion 1'!D49)-1.431 -> -1.431 | D49: 48 | E49: ='Conversion 1'!B49 -> 0 | F49: ='Conversion 1'!B49/0.4 -> 0 | G49: ='Conversion 1'!B49/0.4 -> 0 | H49: ='Conversion 1'!B49 -> 0 | I49: ='Conversion 1'!B49/0.07 -> 0 | J49: ='Conversion 1'!B49/0.056 -> 0 | K49: ='Conversion 1'!B49/0.1 -> 0 | L49: ='Conversion 1'!B49/0.058 -> 0 | M49: ='Conversion 1'!B49/0.01 -> 0 | N49: ='Conversion 1'!B49/0.02 -> 0 | O49: ='Conversion 1'!B49/0.56 -> 0 | P49: ='Conversion 1'!B49/0.4 -> 0
B50: =0.1423*('Conversion 1'!D50^1.2528) -> 0 | C50: =(0.00005*('Conversion 1'!D50^2))+(0.3389*'Conversion 1'!D50)-1.431 -> -1.431 | D50: 49 | E50: ='Conversion 1'!B50 -> 0 | F50: ='Conversion 1'!B50/0.4 -> 0 | G50: ='Conversion 1'!B50/0.4 -> 0 | H50: ='Conversion 1'!B50 -> 0 | I50: ='Conversion 1'!B50/0.07 -> 0 | J50: ='Conversion 1'!B50/0.056 -> 0 | K50: ='Conversion 1'!B50/0.1 -> 0 | L50: ='Conversion 1'!B50/0.058 -> 0 | M50: ='Conversion 1'!B50/0.01 -> 0 | N50: ='Conversion 1'!B50/0.02 -> 0 | O50: ='Conversion 1'!B50/0.56 -> 0 | P50: ='Conversion 1'!B50/0.4 -> 0
B51: =0.1423*('Conversion 1'!D51^1.2528) -> 0 | C51: =(0.00005*('Conversion 1'!D51^2))+(0.3389*'Conversion 1'!D51)-1.431 -> -1.431 | D51: 50 | E51: ='Conversion 1'!B51 -> 0 | F51: ='Conversion 1'!B51/0.4 -> 0 | G51: ='Conversion 1'!B51/0.4 -> 0 | H51: ='Conversion 1'!B51 -> 0 | I51: ='Conversion 1'!B51/0.07 -> 0 | J51: ='Conversion 1'!B51/0.056 -> 0 | K51: ='Conversion 1'!B51/0.1 -> 0 | L51: ='Conversion 1'!B51/0.058 -> 0 | M51: ='Conversion 1'!B51/0.01 -> 0 | N51: ='Conversion 1'!B51/0.02 -> 0 | O51: ='Conversion 1'!B51/0.56 -> 0 | P51: ='Conversion 1'!B51/0.4 -> 0
B52: =0.1423*('Conversion 1'!D52^1.2528) -> 0 | C52: =(0.00005*('Conversion 1'!D52^2))+(0.3389*'Conversion 1'!D52)-1.431 -> -1.431 | D52: 51 | E52: ='Conversion 1'!B52 -> 0 | F52: ='Conversion 1'!B52/0.4 -> 0 | G52: ='Conversion 1'!B52/0.4 -> 0 | H52: ='Conversion 1'!B52 -> 0 | I52: ='Conversion 1'!B52/0.07 -> 0 | J52: ='Conversion 1'!B52/0.056 -> 0 | K52: ='Conversion 1'!B52/0.1 -> 0 | L52: ='Conversion 1'!B52/0.058 -> 0 | M52: ='Conversion 1'!B52/0.01 -> 0 | N52: ='Conversion 1'!B52/0.02 -> 0 | O52: ='Conversion 1'!B52/0.56 -> 0 | P52: ='Conversion 1'!B52/0.4 -> 0
B53: =0.1423*('Conversion 1'!D53^1.2528) -> 0 | C53: =(0.00005*('Conversion 1'!D53^2))+(0.3389*'Conversion 1'!D53)-1.431 -> -1.431 | D53: 52 | E53: ='Conversion 1'!B53 -> 0 | F53: ='Conversion 1'!B53/0.4 -> 0 | G53: ='Conversion 1'!B53/0.4 -> 0 | H53: ='Conversion 1'!B53 -> 0 | I53: ='Conversion 1'!B53/0.07 -> 0 | J53: ='Conversion 1'!B53/0.056 -> 0 | K53: ='Conversion 1'!B53/0.1 -> 0 | L53: ='Conversion 1'!B53/0.058 -> 0 | M53: ='Conversion 1'!B53/0.01 -> 0 | N53: ='Conversion 1'!B53/0.02 -> 0 | O53: ='Conversion 1'!B53/0.56 -> 0 | P53: ='Conversion 1'!B53/0.4 -> 0
B54: =0.1423*('Conversion 1'!D54^1.2528) -> 0 | C54: =(0.00005*('Conversion 1'!D54^2))+(0.3389*'Conversion 1'!D54)-1.431 -> -1.431 | D54: 53 | E54: ='Conversion 1'!B54 -> 0 | F54: ='Conversion 1'!B54/0.4 -> 0 | G54: ='Conversion 1'!B54/0.4 -> 0 | H54: ='Conversion 1'!B54 -> 0 | I54: ='Conversion 1'!B54/0.07 -> 0 | J54: ='Conversion 1'!B54/0.056 -> 0 | K54: ='Conversion 1'!B54/0.1 -> 0 | L54: ='Conversion 1'!B54/0.058 -> 0 | M54: ='Conversion 1'!B54/0.01 -> 0 | N54: ='Conversion 1'!B54/0.02 -> 0 | O54: ='Conversion 1'!B54/0.56 -> 0 | P54: ='Conversion 1'!B54/0.4 -> 0
B55: =0.1423*('Conversion 1'!D55^1.2528) -> 0 | C55: =(0.00005*('Conversion 1'!D55^2))+(0.3389*'Conversion 1'!D55)-1.431 -> -1.431 | D55: 54 | E55: ='Conversion 1'!B55 -> 0 | F55: ='Conversion 1'!B55/0.4 -> 0 | G55: ='Conversion 1'!B55/0.4 -> 0 | H55: ='Conversion 1'!B55 -> 0 | I55: ='Conversion 1'!B55/0.07 -> 0 | J55: ='Conversion 1'!B55/0.056 -> 0 | K55: ='Conversion 1'!B55/0.1 -> 0 | L55: ='Conversion 1'!B55/0.058 -> 0 | M55: ='Conversion 1'!B55/0.01 -> 0 | N55: ='Conversion 1'!B55/0.02 -> 0 | O55: ='Conversion 1'!B55/0.56 -> 0 | P55: ='Conversion 1'!B55/0.4 -> 0
B56: =0.1423*('Conversion 1'!D56^1.2528) -> 0 | C56: =(0.00005*('Conversion 1'!D56^2))+(0.3389*'Conversion 1'!D56)-1.431 -> -1.431 | D56: 55 | E56: ='Conversion 1'!B56 -> 0 | F56: ='Conversion 1'!B56/0.4 -> 0 | G56: ='Conversion 1'!B56/0.4 -> 0 | H56: ='Conversion 1'!B56 -> 0 | I56: ='Conversion 1'!B56/0.07 -> 0 | J56: ='Conversion 1'!B56/0.056 -> 0 | K56: ='Conversion 1'!B56/0.1 -> 0 | L56: ='Conversion 1'!B56/0.058 -> 0 | M56: ='Conversion 1'!B56/0.01 -> 0 | N56: ='Conversion 1'!B56/0.02 -> 0 | O56: ='Conversion 1'!B56/0.56 -> 0 | P56: ='Conversion 1'!B56/0.4 -> 0
B57: =0.1423*('Conversion 1'!D57^1.2528) -> 0 | C57: =(0.00005*('Conversion 1'!D57^2))+(0.3389*'Conversion 1'!D57)-1.431 -> -1.431 | D57: 56 | E57: ='Conversion 1'!B57 -> 0 | F57: ='Conversion 1'!B57/0.4 -> 0 | G57: ='Conversion 1'!B57/0.4 -> 0 | H57: ='Conversion 1'!B57 -> 0 | I57: ='Conversion 1'!B57/0.07 -> 0 | J57: ='Conversion 1'!B57/0.056 -> 0 | K57: ='Conversion 1'!B57/0.1 -> 0 | L57: ='Conversion 1'!B57/0.058 -> 0 | M57: ='Conversion 1'!B57/0.01 -> 0 | N57: ='Conversion 1'!B57/0.02 -> 0 | O57: ='Conversion 1'!B57/0.56 -> 0 | P57: ='Conversion 1'!B57/0.4 -> 0
B58: =0.1423*('Conversion 1'!D58^1.2528) -> 0 | C58: =(0.00005*('Conversion 1'!D58^2))+(0.3389*'Conversion 1'!D58)-1.431 -> -1.431 | D58: 57 | E58: ='Conversion 1'!B58 -> 0 | F58: ='Conversion 1'!B58/0.4 -> 0 | G58: ='Conversion 1'!B58/0.4 -> 0 | H58: ='Conversion 1'!B58 -> 0 | I58: ='Conversion 1'!B58/0.07 -> 0 | J58: ='Conversion 1'!B58/0.056 -> 0 | K58: ='Conversion 1'!B58/0.1 -> 0 | L58: ='Conversion 1'!B58/0.058 -> 0 | M58: ='Conversion 1'!B58/0.01 -> 0 | N58: ='Conversion 1'!B58/0.02 -> 0 | O58: ='Conversion 1'!B58/0.56 -> 0 | P58: ='Conversion 1'!B58/0.4 -> 0
B59: =0.1423*('Conversion 1'!D59^1.2528) -> 0 | C59: =(0.00005*('Conversion 1'!D59^2))+(0.3389*'Conversion 1'!D59)-1.431 -> -1.431 | D59: 58 | E59: ='Conversion 1'!B59 -> 0 | F59: ='Conversion 1'!B59/0.4 -> 0 | G59: ='Conversion 1'!B59/0.4 -> 0 | H59: ='Conversion 1'!B59 -> 0 | I59: ='Conversion 1'!B59/0.07 -> 0 | J59: ='Conversion 1'!B59/0.056 -> 0 | K59: ='Conversion 1'!B59/0.1 -> 0 | L59: ='Conversion 1'!B59/0.058 -> 0 | M59: ='Conversion 1'!B59/0.01 -> 0 | N59: ='Conversion 1'!B59/0.02 -> 0 | O59: ='Conversion 1'!B59/0.56 -> 0 | P59: ='Conversion 1'!B59/0.4 -> 0
B60: =0.1423*('Conversion 1'!D60^1.2528) -> 0 | C60: =(0.00005*('Conversion 1'!D60^2))+(0.3389*'Conversion 1'!D60)-1.431 -> -1.431 | D60: 59 | E60: ='Conversion 1'!B60 -> 0 | F60: ='Conversion 1'!B60/0.4 -> 0 | G60: ='Conversion 1'!B60/0.4 -> 0 | H60: ='Conversion 1'!B60 -> 0 | I60: ='Conversion 1'!B60/0.07 -> 0 | J60: ='Conversion 1'!B60/0.056 -> 0 | K60: ='Conversion 1'!B60/0.1 -> 0 | L60: ='Conversion 1'!B60/0.058 -> 0 | M60: ='Conversion 1'!B60/0.01 -> 0 | N60: ='Conversion 1'!B60/0.02 -> 0 | O60: ='Conversion 1'!B60/0.56 -> 0 | P60: ='Conversion 1'!B60/0.4 -> 0
B61: =0.1423*('Conversion 1'!D61^1.2528) -> 0 | C61: =(0.00005*('Conversion 1'!D61^2))+(0.3389*'Conversion 1'!D61)-1.431 -> -1.431 | D61: 60 | E61: ='Conversion 1'!B61 -> 0 | F61: ='Conversion 1'!B61/0.4 -> 0 | G61: ='Conversion 1'!B61/0.4 -> 0 | H61: ='Conversion 1'!B61 -> 0 | I61: ='Conversion 1'!B61/0.07 -> 0 | J61: ='Conversion 1'!B61/0.056 -> 0 | K61: ='Conversion 1'!B61/0.1 -> 0 | L61: ='Conversion 1'!B61/0.058 -> 0 | M61: ='Conversion 1'!B61/0.01 -> 0 | N61: ='Conversion 1'!B61/0.02 -> 0 | O61: ='Conversion 1'!B61/0.56 -> 0 | P61: ='Conversion 1'!B61/0.4 -> 0
B62: =0.1423*('Conversion 1'!D62^1.2528) -> 0 | C62: =(0.00005*('Conversion 1'!D62^2))+(0.3389*'Conversion 1'!D62)-1.431 -> -1.431 | D62: 61 | E62: ='Conversion 1'!B62 -> 0 | F62: ='Conversion 1'!B62/0.4 -> 0 | G62: ='Conversion 1'!B62/0.4 -> 0 | H62: ='Conversion 1'!B62 -> 0 | I62: ='Conversion 1'!B62/0.07 -> 0 | J62: ='Conversion 1'!B62/0.056 -> 0 | K62: ='Conversion 1'!B62/0.1 -> 0 | L62: ='Conversion 1'!B62/0.058 -> 0 | M62: ='Conversion 1'!B62/0.01 -> 0 | N62: ='Conversion 1'!B62/0.02 -> 0 | O62: ='Conversion 1'!B62/0.56 -> 0 | P62: ='Conversion 1'!B62/0.4 -> 0
B63: =0.1423*('Conversion 1'!D63^1.2528) -> 0 | C63: =(0.00005*('Conversion 1'!D63^2))+(0.3389*'Conversion 1'!D63)-1.431 -> -1.431 | D63: 62 | E63: ='Conversion 1'!B63 -> 0 | F63: ='Conversion 1'!B63/0.4 -> 0 | G63: ='Conversion 1'!B63/0.4 -> 0 | H63: ='Conversion 1'!B63 -> 0 | I63: ='Conversion 1'!B63/0.07 -> 0 | J63: ='Conversion 1'!B63/0.056 -> 0 | K63: ='Conversion 1'!B63/0.1 -> 0 | L63: ='Conversion 1'!B63/0.058 -> 0 | M63: ='Conversion 1'!B63/0.01 -> 0 | N63: ='Conversion 1'!B63/0.02 -> 0 | O63: ='Conversion 1'!B63/0.56 -> 0 | P63: ='Conversion 1'!B63/0.4 -> 0
B64: =0.1423*('Conversion 1'!D64^1.2528) -> 0 | C64: =(0.00005*('Conversion 1'!D64^2))+(0.3389*'Conversion 1'!D64)-1.431 -> -1.431 | D64: 63 | E64: ='Conversion 1'!B64 -> 0 | F64: ='Conversion 1'!B64/0.4 -> 0 | G64: ='Conversion 1'!B64/0.4 -> 0 | H64: ='Conversion 1'!B64 -> 0 | I64: ='Conversion 1'!B64/0.07 -> 0 | J64: ='Conversion 1'!B64/0.056 -> 0 | K64: ='Conversion 1'!B64/0.1 -> 0 | L64: ='Conversion 1'!B64/0.058 -> 0 | M64: ='Conversion 1'!B64/0.01 -> 0 | N64: ='Conversion 1'!B64/0.02 -> 0 | O64: ='Conversion 1'!B64/0.56 -> 0 | P64: ='Conversion 1'!B64/0.4 -> 0
B65: =0.1423*('Conversion 1'!D65^1.2528) -> 0 | C65: =(0.00005*('Conversion 1'!D65^2))+(0.3389*'Conversion 1'!D65)-1.431 -> -1.431 | D65: 64 | E65: ='Conversion 1'!B65 -> 0 | F65: ='Conversion 1'!B65/0.4 -> 0 | G65: ='Conversion 1'!B65/0.4 -> 0 | H65: ='Conversion 1'!B65 -> 0 | I65: ='Conversion 1'!B65/0.07 -> 0 | J65: ='Conversion 1'!B65/0.056 -> 0 | K65: ='Conversion 1'!B65/0.1 -> 0 | L65: ='Conversion 1'!B65/0.058 -> 0 | M65: ='Conversion 1'!B65/0.01 -> 0 | N65: ='Conversion 1'!B65/0.02 -> 0 | O65: ='Conversion 1'!B65/0.56 -> 0 | P65: ='Conversion 1'!B65/0.4 -> 0
B66: =0.1423*('Conversion 1'!D66^1.2528) -> 0 | C66: =(0.00005*('Conversion 1'!D66^2))+(0.3389*'Conversion 1'!D66)-1.431 -> -1.431 | D66: 65 | E66: ='Conversion 1'!B66 -> 0 | F66: ='Conversion 1'!B66/0.4 -> 0 | G66: ='Conversion 1'!B66/0.4 -> 0 | H66: ='Conversion 1'!B66 -> 0 | I66: ='Conversion 1'!B66/0.07 -> 0 | J66: ='Conversion 1'!B66/0.056 -> 0 | K66: ='Conversion 1'!B66/0.1 -> 0 | L66: ='Conversion 1'!B66/0.058 -> 0 | M66: ='Conversion 1'!B66/0.01 -> 0 | N66: ='Conversion 1'!B66/0.02 -> 0 | O66: ='Conversion 1'!B66/0.56 -> 0 | P66: ='Conversion 1'!B66/0.4 -> 0
B67: =0.1423*('Conversion 1'!D67^1.2528) -> 0 | C67: =(0.00005*('Conversion 1'!D67^2))+(0.3389*'Conversion 1'!D67)-1.431 -> -1.431 | D67: 66 | E67: ='Conversion 1'!B67 -> 0 | F67: ='Conversion 1'!B67/0.4 -> 0 | G67: ='Conversion 1'!B67/0.4 -> 0 | H67: ='Conversion 1'!B67 -> 0 | I67: ='Conversion 1'!B67/0.07 -> 0 | J67: ='Conversion 1'!B67/0.056 -> 0 | K67: ='Conversion 1'!B67/0.1 -> 0 | L67: ='Conversion 1'!B67/0.058 -> 0 | M67: ='Conversion 1'!B67/0.01 -> 0 | N67: ='Conversion 1'!B67/0.02 -> 0 | O67: ='Conversion 1'!B67/0.56 -> 0 | P67: ='Conversion 1'!B67/0.4 -> 0
B68: =0.1423*('Conversion 1'!D68^1.2528) -> 0 | C68: =(0.00005*('Conversion 1'!D68^2))+(0.3389*'Conversion 1'!D68)-1.431 -> -1.431 | D68: 67 | E68: ='Conversion 1'!B68 -> 0 | F68: ='Conversion 1'!B68/0.4 -> 0 | G68: ='Conversion 1'!B68/0.4 -> 0 | H68: ='Conversion 1'!B68 -> 0 | I68: ='Conversion 1'!B68/0.07 -> 0 | J68: ='Conversion 1'!B68/0.056 -> 0 | K68: ='Conversion 1'!B68/0.1 -> 0 | L68: ='Conversion 1'!B68/0.058 -> 0 | M68: ='Conversion 1'!B68/0.01 -> 0 | N68: ='Conversion 1'!B68/0.02 -> 0 | O68: ='Conversion 1'!B68/0.56 -> 0 | P68: ='Conversion 1'!B68/0.4 -> 0
B69: =0.1423*('Conversion 1'!D69^1.2528) -> 0 | C69: =(0.00005*('Conversion 1'!D69^2))+(0.3389*'Conversion 1'!D69)-1.431 -> -1.431 | D69: 68 | E69: ='Conversion 1'!B69 -> 0 | F69: ='Conversion 1'!B69/0.4 -> 0 | G69: ='Conversion 1'!B69/0.4 -> 0 | H69: ='Conversion 1'!B69 -> 0 | I69: ='Conversion 1'!B69/0.07 -> 0 | J69: ='Conversion 1'!B69/0.056 -> 0 | K69: ='Conversion 1'!B69/0.1 -> 0 | L69: ='Conversion 1'!B69/0.058 -> 0 | M69: ='Conversion 1'!B69/0.01 -> 0 | N69: ='Conversion 1'!B69/0.02 -> 0 | O69: ='Conversion 1'!B69/0.56 -> 0 | P69: ='Conversion 1'!B69/0.4 -> 0
B70: =0.1423*('Conversion 1'!D70^1.2528) -> 0 | C70: =(0.00005*('Conversion 1'!D70^2))+(0.3389*'Conversion 1'!D70)-1.431 -> -1.431 | D70: 69 | E70: ='Conversion 1'!B70 -> 0 | F70: ='Conversion 1'!B70/0.4 -> 0 | G70: ='Conversion 1'!B70/0.4 -> 0 | H70: ='Conversion 1'!B70 -> 0 | I70: ='Conversion 1'!B70/0.07 -> 0 | J70: ='Conversion 1'!B70/0.056 -> 0 | K70: ='Conversion 1'!B70/0.1 -> 0 | L70: ='Conversion 1'!B70/0.058 -> 0 | M70: ='Conversion 1'!B70/0.01 -> 0 | N70: ='Conversion 1'!B70/0.02 -> 0 | O70: ='Conversion 1'!B70/0.56 -> 0 | P70: ='Conversion 1'!B70/0.4 -> 0
B71: =0.1423*('Conversion 1'!D71^1.2528) -> 0 | C71: =(0.00005*('Conversion 1'!D71^2))+(0.3389*'Conversion 1'!D71)-1.431 -> -1.431 | D71: 70 | E71: ='Conversion 1'!B71 -> 0 | F71: ='Conversion 1'!B71/0.4 -> 0 | G71: ='Conversion 1'!B71/0.4 -> 0 | H71: ='Conversion 1'!B71 -> 0 | I71: ='Conversion 1'!B71/0.07 -> 0 | J71: ='Conversion 1'!B71/0.056 -> 0 | K71: ='Conversion 1'!B71/0.1 -> 0 | L71: ='Conversion 1'!B71/0.058 -> 0 | M71: ='Conversion 1'!B71/0.01 -> 0 | N71: ='Conversion 1'!B71/0.02 -> 0 | O71: ='Conversion 1'!B71/0.56 -> 0 | P71: ='Conversion 1'!B71/0.4 -> 0
B72: =0.1423*('Conversion 1'!D72^1.2528) -> 0 | C72: =(0.00005*('Conversion 1'!D72^2))+(0.3389*'Conversion 1'!D72)-1.431 -> -1.431 | D72: 71 | E72: ='Conversion 1'!B72 -> 0 | F72: ='Conversion 1'!B72/0.4 -> 0 | G72: ='Conversion 1'!B72/0.4 -> 0 | H72: ='Conversion 1'!B72 -> 0 | I72: ='Conversion 1'!B72/0.07 -> 0 | J72: ='Conversion 1'!B72/0.056 -> 0 | K72: ='Conversion 1'!B72/0.1 -> 0 | L72: ='Conversion 1'!B72/0.058 -> 0 | M72: ='Conversion 1'!B72/0.01 -> 0 | N72: ='Conversion 1'!B72/0.02 -> 0 | O72: ='Conversion 1'!B72/0.56 -> 0 | P72: ='Conversion 1'!B72/0.4 -> 0
B73: =0.1423*('Conversion 1'!D73^1.2528) -> 0 | C73: =(0.00005*('Conversion 1'!D73^2))+(0.3389*'Conversion 1'!D73)-1.431 -> -1.431 | D73: 72 | E73: ='Conversion 1'!B73 -> 0 | F73: ='Conversion 1'!B73/0.4 -> 0 | G73: ='Conversion 1'!B73/0.4 -> 0 | H73: ='Conversion 1'!B73 -> 0 | I73: ='Conversion 1'!B73/0.07 -> 0 | J73: ='Conversion 1'!B73/0.056 -> 0 | K73: ='Conversion 1'!B73/0.1 -> 0 | L73: ='Conversion 1'!B73/0.058 -> 0 | M73: ='Conversion 1'!B73/0.01 -> 0 | N73: ='Conversion 1'!B73/0.02 -> 0 | O73: ='Conversion 1'!B73/0.56 -> 0 | P73: ='Conversion 1'!B73/0.4 -> 0
B74: =0.1423*('Conversion 1'!D74^1.2528) -> 0 | C74: =(0.00005*('Conversion 1'!D74^2))+(0.3389*'Conversion 1'!D74)-1.431 -> -1.431 | D74: 73 | E74: ='Conversion 1'!B74 -> 0 | F74: ='Conversion 1'!B74/0.4 -> 0 | G74: ='Conversion 1'!B74/0.4 -> 0 | H74: ='Conversion 1'!B74 -> 0 | I74: ='Conversion 1'!B74/0.07 -> 0 | J74: ='Conversion 1'!B74/0.056 -> 0 | K74: ='Conversion 1'!B74/0.1 -> 0 | L74: ='Conversion 1'!B74/0.058 -> 0 | M74: ='Conversion 1'!B74/0.01 -> 0 | N74: ='Conversion 1'!B74/0.02 -> 0 | O74: ='Conversion 1'!B74/0.56 -> 0 | P74: ='Conversion 1'!B74/0.4 -> 0
B75: =0.1423*('Conversion 1'!D75^1.2528) -> 0 | C75: =(0.00005*('Conversion 1'!D75^2))+(0.3389*'Conversion 1'!D75)-1.431 -> -1.431 | D75: 74 | E75: ='Conversion 1'!B75 -> 0 | F75: ='Conversion 1'!B75/0.4 -> 0 | G75: ='Conversion 1'!B75/0.4 -> 0 | H75: ='Conversion 1'!B75 -> 0 | I75: ='Conversion 1'!B75/0.07 -> 0 | J75: ='Conversion 1'!B75/0.056 -> 0 | K75: ='Conversion 1'!B75/0.1 -> 0 | L75: ='Conversion 1'!B75/0.058 -> 0 | M75: ='Conversion 1'!B75/0.01 -> 0 | N75: ='Conversion 1'!B75/0.02 -> 0 | O75: ='Conversion 1'!B75/0.56 -> 0 | P75: ='Conversion 1'!B75/0.4 -> 0
B76: =0.1423*('Conversion 1'!D76^1.2528) -> 0 | C76: =(0.00005*('Conversion 1'!D76^2))+(0.3389*'Conversion 1'!D76)-1.431 -> -1.431 | D76: 75 | E76: ='Conversion 1'!B76 -> 0 | F76: ='Conversion 1'!B76/0.4 -> 0 | G76: ='Conversion 1'!B76/0.4 -> 0 | H76: ='Conversion 1'!B76 -> 0 | I76: ='Conversion 1'!B76/0.07 -> 0 | J76: ='Conversion 1'!B76/0.056 -> 0 | K76: ='Conversion 1'!B76/0.1 -> 0 | L76: ='Conversion 1'!B76/0.058 -> 0 | M76: ='Conversion 1'!B76/0.01 -> 0 | N76: ='Conversion 1'!B76/0.02 -> 0 | O76: ='Conversion 1'!B76/0.56 -> 0 | P76: ='Conversion 1'!B76/0.4 -> 0
B77: =0.1423*('Conversion 1'!D77^1.2528) -> 0 | C77: =(0.00005*('Conversion 1'!D77^2))+(0.3389*'Conversion 1'!D77)-1.431 -> -1.431 | D77: 76 | E77: ='Conversion 1'!B77 -> 0 | F77: ='Conversion 1'!B77/0.4 -> 0 | G77: ='Conversion 1'!B77/0.4 -> 0 | H77: ='Conversion 1'!B77 -> 0 | I77: ='Conversion 1'!B77/0.07 -> 0 | J77: ='Conversion 1'!B77/0.056 -> 0 | K77: ='Conversion 1'!B77/0.1 -> 0 | L77: ='Conversion 1'!B77/0.058 -> 0 | M77: ='Conversion 1'!B77/0.01 -> 0 | N77: ='Conversion 1'!B77/0.02 -> 0 | O77: ='Conversion 1'!B77/0.56 -> 0 | P77: ='Conversion 1'!B77/0.4 -> 0
B78: =0.1423*('Conversion 1'!D78^1.2528) -> 0 | C78: =(0.00005*('Conversion 1'!D78^2))+(0.3389*'Conversion 1'!D78)-1.431 -> -1.431 | D78: 77 | E78: ='Conversion 1'!B78 -> 0 | F78: ='Conversion 1'!B78/0.4 -> 0 | G78: ='Conversion 1'!B78/0.4 -> 0 | H78: ='Conversion 1'!B78 -> 0 | I78: ='Conversion 1'!B78/0.07 -> 0 | J78: ='Conversion 1'!B78/0.056 -> 0 | K78: ='Conversion 1'!B78/0.1 -> 0 | L78: ='Conversion 1'!B78/0.058 -> 0 | M78: ='Conversion 1'!B78/0.01 -> 0 | N78: ='Conversion 1'!B78/0.02 -> 0 | O78: ='Conversion 1'!B78/0.56 -> 0 | P78: ='Conversion 1'!B78/0.4 -> 0
B79: =0.1423*('Conversion 1'!D79^1.2528) -> 0 | C79: =(0.00005*('Conversion 1'!D79^2))+(0.3389*'Conversion 1'!D79)-1.431 -> -1.431 | D79: 78 | E79: ='Conversion 1'!B79 -> 0 | F79: ='Conversion 1'!B79/0.4 -> 0 | G79: ='Conversion 1'!B79/0.4 -> 0 | H79: ='Conversion 1'!B79 -> 0 | I79: ='Conversion 1'!B79/0.07 -> 0 | J79: ='Conversion 1'!B79/0.056 -> 0 | K79: ='Conversion 1'!B79/0.1 -> 0 | L79: ='Conversion 1'!B79/0.058 -> 0 | M79: ='Conversion 1'!B79/0.01 -> 0 | N79: ='Conversion 1'!B79/0.02 -> 0 | O79: ='Conversion 1'!B79/0.56 -> 0 | P79: ='Conversion 1'!B79/0.4 -> 0
B80: =0.1423*('Conversion 1'!D80^1.2528) -> 0 | C80: =(0.00005*('Conversion 1'!D80^2))+(0.3389*'Conversion 1'!D80)-1.431 -> -1.431 | D80: 79 | E80: ='Conversion 1'!B80 -> 0 | F80: ='Conversion 1'!B80/0.4 -> 0 | G80: ='Conversion 1'!B80/0.4 -> 0 | H80: ='Conversion 1'!B80 -> 0 | I80: ='Conversion 1'!B80/0.07 -> 0 | J80: ='Conversion 1'!B80/0.056 -> 0 | K80: ='Conversion 1'!B80/0.1 -> 0 | L80: ='Conversion 1'!B80/0.058 -> 0 | M80: ='Conversion 1'!B80/0.01 -> 0 | N80: ='Conversion 1'!B80/0.02 -> 0 | O80: ='Conversion 1'!B80/0.56 -> 0 | P80: ='Conversion 1'!B80/0.4 -> 0
B81: =0.1423*('Conversion 1'!D81^1.2528) -> 0 | C81: =(0.00005*('Conversion 1'!D81^2))+(0.3389*'Conversion 1'!D81)-1.431 -> -1.431 | D81: 80 | E81: ='Conversion 1'!B81 -> 0 | F81: ='Conversion 1'!B81/0.4 -> 0 | G81: ='Conversion 1'!B81/0.4 -> 0 | H81: ='Conversion 1'!B81 -> 0 | I81: ='Conversion 1'!B81/0.07 -> 0 | J81: ='Conversion 1'!B81/0.056 -> 0 | K81: ='Conversion 1'!B81/0.1 -> 0 | L81: ='Conversion 1'!B81/0.058 -> 0 | M81: ='Conversion 1'!B81/0.01 -> 0 | N81: ='Conversion 1'!B81/0.02 -> 0 | O81: ='Conversion 1'!B81/0.56 -> 0 | P81: ='Conversion 1'!B81/0.4 -> 0
B82: =0.1423*('Conversion 1'!D82^1.2528) -> 0 | C82: =(0.00005*('Conversion 1'!D82^2))+(0.3389*'Conversion 1'!D82)-1.431 -> -1.431 | D82: 81 | E82: ='Conversion 1'!B82 -> 0 | F82: ='Conversion 1'!B82/0.4 -> 0 | G82: ='Conversion 1'!B82/0.4 -> 0 | H82: ='Conversion 1'!B82 -> 0 | I82: ='Conversion 1'!B82/0.07 -> 0 | J82: ='Conversion 1'!B82/0.056 -> 0 | K82: ='Conversion 1'!B82/0.1 -> 0 | L82: ='Conversion 1'!B82/0.058 -> 0 | M82: ='Conversion 1'!B82/0.01 -> 0 | N82: ='Conversion 1'!B82/0.02 -> 0 | O82: ='Conversion 1'!B82/0.56 -> 0 | P82: ='Conversion 1'!B82/0.4 -> 0
B83: =0.1423*('Conversion 1'!D83^1.2528) -> 0 | C83: =(0.00005*('Conversion 1'!D83^2))+(0.3389*'Conversion 1'!D83)-1.431 -> -1.431 | D83: 82 | E83: ='Conversion 1'!B83 -> 0 | F83: ='Conversion 1'!B83/0.4 -> 0 | G83: ='Conversion 1'!B83/0.4 -> 0 | H83: ='Conversion 1'!B83 -> 0 | I83: ='Conversion 1'!B83/0.07 -> 0 | J83: ='Conversion 1'!B83/0.056 -> 0 | K83: ='Conversion 1'!B83/0.1 -> 0 | L83: ='Conversion 1'!B83/0.058 -> 0 | M83: ='Conversion 1'!B83/0.01 -> 0 | N83: ='Conversion 1'!B83/0.02 -> 0 | O83: ='Conversion 1'!B83/0.56 -> 0 | P83: ='Conversion 1'!B83/0.4 -> 0
B84: =0.1423*('Conversion 1'!D84^1.2528) -> 0 | C84: =(0.00005*('Conversion 1'!D84^2))+(0.3389*'Conversion 1'!D84)-1.431 -> -1.431 | D84: 83 | E84: ='Conversion 1'!B84 -> 0 | F84: ='Conversion 1'!B84/0.4 -> 0 | G84: ='Conversion 1'!B84/0.4 -> 0 | H84: ='Conversion 1'!B84 -> 0 | I84: ='Conversion 1'!B84/0.07 -> 0 | J84: ='Conversion 1'!B84/0.056 -> 0 | K84: ='Conversion 1'!B84/0.1 -> 0 | L84: ='Conversion 1'!B84/0.058 -> 0 | M84: ='Conversion 1'!B84/0.01 -> 0 | N84: ='Conversion 1'!B84/0.02 -> 0 | O84: ='Conversion 1'!B84/0.56 -> 0 | P84: ='Conversion 1'!B84/0.4 -> 0
B85: =0.1423*('Conversion 1'!D85^1.2528) -> 0 | C85: =(0.00005*('Conversion 1'!D85^2))+(0.3389*'Conversion 1'!D85)-1.431 -> -1.431 | D85: 84 | E85: ='Conversion 1'!B85 -> 0 | F85: ='Conversion 1'!B85/0.4 -> 0 | G85: ='Conversion 1'!B85/0.4 -> 0 | H85: ='Conversion 1'!B85 -> 0 | I85: ='Conversion 1'!B85/0.07 -> 0 | J85: ='Conversion 1'!B85/0.056 -> 0 | K85: ='Conversion 1'!B85/0.1 -> 0 | L85: ='Conversion 1'!B85/0.058 -> 0 | M85: ='Conversion 1'!B85/0.01 -> 0 | N85: ='Conversion 1'!B85/0.02 -> 0 | O85: ='Conversion 1'!B85/0.56 -> 0 | P85: ='Conversion 1'!B85/0.4 -> 0
B86: =0.1423*('Conversion 1'!D86^1.2528) -> 0 | C86: =(0.00005*('Conversion 1'!D86^2))+(0.3389*'Conversion 1'!D86)-1.431 -> -1.431 | D86: 85 | E86: ='Conversion 1'!B86 -> 0 | F86: ='Conversion 1'!B86/0.4 -> 0 | G86: ='Conversion 1'!B86/0.4 -> 0 | H86: ='Conversion 1'!B86 -> 0 | I86: ='Conversion 1'!B86/0.07 -> 0 | J86: ='Conversion 1'!B86/0.056 -> 0 | K86: ='Conversion 1'!B86/0.1 -> 0 | L86: ='Conversion 1'!B86/0.058 -> 0 | M86: ='Conversion 1'!B86/0.01 -> 0 | N86: ='Conversion 1'!B86/0.02 -> 0 | O86: ='Conversion 1'!B86/0.56 -> 0 | P86: ='Conversion 1'!B86/0.4 -> 0
B87: =0.1423*('Conversion 1'!D87^1.2528) -> 0 | C87: =(0.00005*('Conversion 1'!D87^2))+(0.3389*'Conversion 1'!D87)-1.431 -> -1.431 | D87: 86 | E87: ='Conversion 1'!B87 -> 0 | F87: ='Conversion 1'!B87/0.4 -> 0 | G87: ='Conversion 1'!B87/0.4 -> 0 | H87: ='Conversion 1'!B87 -> 0 | I87: ='Conversion 1'!B87/0.07 -> 0 | J87: ='Conversion 1'!B87/0.056 -> 0 | K87: ='Conversion 1'!B87/0.1 -> 0 | L87: ='Conversion 1'!B87/0.058 -> 0 | M87: ='Conversion 1'!B87/0.01 -> 0 | N87: ='Conversion 1'!B87/0.02 -> 0 | O87: ='Conversion 1'!B87/0.56 -> 0 | P87: ='Conversion 1'!B87/0.4 -> 0
B88: =0.1423*('Conversion 1'!D88^1.2528) -> 0 | C88: =(0.00005*('Conversion 1'!D88^2))+(0.3389*'Conversion 1'!D88)-1.431 -> -1.431 | D88: 87 | E88: ='Conversion 1'!B88 -> 0 | F88: ='Conversion 1'!B88/0.4 -> 0 | G88: ='Conversion 1'!B88/0.4 -> 0 | H88: ='Conversion 1'!B88 -> 0 | I88: ='Conversion 1'!B88/0.07 -> 0 | J88: ='Conversion 1'!B88/0.056 -> 0 | K88: ='Conversion 1'!B88/0.1 -> 0 | L88: ='Conversion 1'!B88/0.058 -> 0 | M88: ='Conversion 1'!B88/0.01 -> 0 | N88: ='Conversion 1'!B88/0.02 -> 0 | O88: ='Conversion 1'!B88/0.56 -> 0 | P88: ='Conversion 1'!B88/0.4 -> 0
B89: =0.1423*('Conversion 1'!D89^1.2528) -> 0 | C89: =(0.00005*('Conversion 1'!D89^2))+(0.3389*'Conversion 1'!D89)-1.431 -> -1.431 | D89: 88 | E89: ='Conversion 1'!B89 -> 0 | F89: ='Conversion 1'!B89/0.4 -> 0 | G89: ='Conversion 1'!B89/0.4 -> 0 | H89: ='Conversion 1'!B89 -> 0 | I89: ='Conversion 1'!B89/0.07 -> 0 | J89: ='Conversion 1'!B89/0.056 -> 0 | K89: ='Conversion 1'!B89/0.1 -> 0 | L89: ='Conversion 1'!B89/0.058 -> 0 | M89: ='Conversion 1'!B89/0.01 -> 0 | N89: ='Conversion 1'!B89/0.02 -> 0 | O89: ='Conversion 1'!B89/0.56 -> 0 | P89: ='Conversion 1'!B89/0.4 -> 0
B90: =0.1423*('Conversion 1'!D90^1.2528) -> 0 | C90: =(0.00005*('Conversion 1'!D90^2))+(0.3389*'Conversion 1'!D90)-1.431 -> -1.431 | D90: 89 | E90: ='Conversion 1'!B90 -> 0 | F90: ='Conversion 1'!B90/0.4 -> 0 | G90: ='Conversion 1'!B90/0.4 -> 0 | H90: ='Conversion 1'!B90 -> 0 | I90: ='Conversion 1'!B90/0.07 -> 0 | J90: ='Conversion 1'!B90/0.056 -> 0 | K90: ='Conversion 1'!B90/0.1 -> 0 | L90: ='Conversion 1'!B90/0.058 -> 0 | M90: ='Conversion 1'!B90/0.01 -> 0 | N90: ='Conversion 1'!B90/0.02 -> 0 | O90: ='Conversion 1'!B90/0.56 -> 0 | P90: ='Conversion 1'!B90/0.4 -> 0
B91: =0.1423*('Conversion 1'!D91^1.2528) -> 0 | C91: =(0.00005*('Conversion 1'!D91^2))+(0.3389*'Conversion 1'!D91)-1.431 -> -1.431 | D91: 90 | E91: ='Conversion 1'!B91 -> 0 | F91: ='Conversion 1'!B91/0.4 -> 0 | G91: ='Conversion 1'!B91/0.4 -> 0 | H91: ='Conversion 1'!B91 -> 0 | I91: ='Conversion 1'!B91/0.07 -> 0 | J91: ='Conversion 1'!B91/0.056 -> 0 | K91: ='Conversion 1'!B91/0.1 -> 0 | L91: ='Conversion 1'!B91/0.058 -> 0 | M91: ='Conversion 1'!B91/0.01 -> 0 | N91: ='Conversion 1'!B91/0.02 -> 0 | O91: ='Conversion 1'!B91/0.56 -> 0 | P91: ='Conversion 1'!B91/0.4 -> 0
B92: =0.1423*('Conversion 1'!D92^1.2528) -> 0 | C92: =(0.00005*('Conversion 1'!D92^2))+(0.3389*'Conversion 1'!D92)-1.431 -> -1.431 | D92: 91 | E92: ='Conversion 1'!B92 -> 0 | F92: ='Conversion 1'!B92/0.4 -> 0 | G92: ='Conversion 1'!B92/0.4 -> 0 | H92: ='Conversion 1'!B92 -> 0 | I92: ='Conversion 1'!B92/0.07 -> 0 | J92: ='Conversion 1'!B92/0.056 -> 0 | K92: ='Conversion 1'!B92/0.1 -> 0 | L92: ='Conversion 1'!B92/0.058 -> 0 | M92: ='Conversion 1'!B92/0.01 -> 0 | N92: ='Conversion 1'!B92/0.02 -> 0 | O92: ='Conversion 1'!B92/0.56 -> 0 | P92: ='Conversion 1'!B92/0.4 -> 0
B93: =0.1423*('Conversion 1'!D93^1.2528) -> 0 | C93: =(0.00005*('Conversion 1'!D93^2))+(0.3389*'Conversion 1'!D93)-1.431 -> -1.431 | D93: 92 | E93: ='Conversion 1'!B93 -> 0 | F93: ='Conversion 1'!B93/0.4 -> 0 | G93: ='Conversion 1'!B93/0.4 -> 0 | H93: ='Conversion 1'!B93 -> 0 | I93: ='Conversion 1'!B93/0.07 -> 0 | J93: ='Conversion 1'!B93/0.056 -> 0 | K93: ='Conversion 1'!B93/0.1 -> 0 | L93: ='Conversion 1'!B93/0.058 -> 0 | M93: ='Conversion 1'!B93/0.01 -> 0 | N93: ='Conversion 1'!B93/0.02 -> 0 | O93: ='Conversion 1'!B93/0.56 -> 0 | P93: ='Conversion 1'!B93/0.4 -> 0
B94: =0.1423*('Conversion 1'!D94^1.2528) -> 0 | C94: =(0.00005*('Conversion 1'!D94^2))+(0.3389*'Conversion 1'!D94)-1.431 -> -1.431 | D94: 93 | E94: ='Conversion 1'!B94 -> 0 | F94: ='Conversion 1'!B94/0.4 -> 0 | G94: ='Conversion 1'!B94/0.4 -> 0 | H94: ='Conversion 1'!B94 -> 0 | I94: ='Conversion 1'!B94/0.07 -> 0 | J94: ='Conversion 1'!B94/0.056 -> 0 | K94: ='Conversion 1'!B94/0.1 -> 0 | L94: ='Conversion 1'!B94/0.058 -> 0 | M94: ='Conversion 1'!B94/0.01 -> 0 | N94: ='Conversion 1'!B94/0.02 -> 0 | O94: ='Conversion 1'!B94/0.56 -> 0 | P94: ='Conversion 1'!B94/0.4 -> 0
B95: =0.1423*('Conversion 1'!D95^1.2528) -> 0 | C95: =(0.00005*('Conversion 1'!D95^2))+(0.3389*'Conversion 1'!D95)-1.431 -> -1.431 | D95: 94 | E95: ='Conversion 1'!B95 -> 0 | F95: ='Conversion 1'!B95/0.4 -> 0 | G95: ='Conversion 1'!B95/0.4 -> 0 | H95: ='Conversion 1'!B95 -> 0 | I95: ='Conversion 1'!B95/0.07 -> 0 | J95: ='Conversion 1'!B95/0.056 -> 0 | K95: ='Conversion 1'!B95/0.1 -> 0 | L95: ='Conversion 1'!B95/0.058 -> 0 | M95: ='Conversion 1'!B95/0.01 -> 0 | N95: ='Conversion 1'!B95/0.02 -> 0 | O95: ='Conversion 1'!B95/0.56 -> 0 | P95: ='Conversion 1'!B95/0.4 -> 0
B96: =0.1423*('Conversion 1'!D96^1.2528) -> 0 | C96: =(0.00005*('Conversion 1'!D96^2))+(0.3389*'Conversion 1'!D96)-1.431 -> -1.431 | D96: 95 | E96: ='Conversion 1'!B96 -> 0 | F96: ='Conversion 1'!B96/0.4 -> 0 | G96: ='Conversion 1'!B96/0.4 -> 0 | H96: ='Conversion 1'!B96 -> 0 | I96: ='Conversion 1'!B96/0.07 -> 0 | J96: ='Conversion 1'!B96/0.056 -> 0 | K96: ='Conversion 1'!B96/0.1 -> 0 | L96: ='Conversion 1'!B96/0.058 -> 0 | M96: ='Conversion 1'!B96/0.01 -> 0 | N96: ='Conversion 1'!B96/0.02 -> 0 | O96: ='Conversion 1'!B96/0.56 -> 0 | P96: ='Conversion 1'!B96/0.4 -> 0
B97: =0.1423*('Conversion 1'!D97^1.2528) -> 0 | C97: =(0.00005*('Conversion 1'!D97^2))+(0.3389*'Conversion 1'!D97)-1.431 -> -1.431 | D97: 96 | E97: ='Conversion 1'!B97 -> 0 | F97: ='Conversion 1'!B97/0.4 -> 0 | G97: ='Conversion 1'!B97/0.4 -> 0 | H97: ='Conversion 1'!B97 -> 0 | I97: ='Conversion 1'!B97/0.07 -> 0 | J97: ='Conversion 1'!B97/0.056 -> 0 | K97: ='Conversion 1'!B97/0.1 -> 0 | L97: ='Conversion 1'!B97/0.058 -> 0 | M97: ='Conversion 1'!B97/0.01 -> 0 | N97: ='Conversion 1'!B97/0.02 -> 0 | O97: ='Conversion 1'!B97/0.56 -> 0 | P97: ='Conversion 1'!B97/0.4 -> 0
B98: =0.1423*('Conversion 1'!D98^1.2528) -> 0 | C98: =(0.00005*('Conversion 1'!D98^2))+(0.3389*'Conversion 1'!D98)-1.431 -> -1.431 | D98: 97 | E98: ='Conversion 1'!B98 -> 0 | F98: ='Conversion 1'!B98/0.4 -> 0 | G98: ='Conversion 1'!B98/0.4 -> 0 | H98: ='Conversion 1'!B98 -> 0 | I98: ='Conversion 1'!B98/0.07 -> 0 | J98: ='Conversion 1'!B98/0.056 -> 0 | K98: ='Conversion 1'!B98/0.1 -> 0 | L98: ='Conversion 1'!B98/0.058 -> 0 | M98: ='Conversion 1'!B98/0.01 -> 0 | N98: ='Conversion 1'!B98/0.02 -> 0 | O98: ='Conversion 1'!B98/0.56 -> 0 | P98: ='Conversion 1'!B98/0.4 -> 0
B99: =0.1423*('Conversion 1'!D99^1.2528) -> 0 | C99: =(0.00005*('Conversion 1'!D99^2))+(0.3389*'Conversion 1'!D99)-1.431 -> -1.431 | D99: 98 | E99: ='Conversion 1'!B99 -> 0 | F99: ='Conversion 1'!B99/0.4 -> 0 | G99: ='Conversion 1'!B99/0.4 -> 0 | H99: ='Conversion 1'!B99 -> 0 | I99: ='Conversion 1'!B99/0.07 -> 0 | J99: ='Conversion 1'!B99/0.056 -> 0 | K99: ='Conversion 1'!B99/0.1 -> 0 | L99: ='Conversion 1'!B99/0.058 -> 0 | M99: ='Conversion 1'!B99/0.01 -> 0 | N99: ='Conversion 1'!B99/0.02 -> 0 | O99: ='Conversion 1'!B99/0.56 -> 0 | P99: ='Conversion 1'!B99/0.4 -> 0
B100: =0.1423*('Conversion 1'!D100^1.2528) -> 0 | C100: =(0.00005*('Conversion 1'!D100^2))+(0.3389*'Conversion 1'!D100)-1.431 -> -1.431 | D100: 99 | E100: ='Conversion 1'!B100 -> 0 | F100: ='Conversion 1'!B100/0.4 -> 0 | G100: ='Conversion 1'!B100/0.4 -> 0 | H100: ='Conversion 1'!B100 -> 0 | I100: ='Conversion 1'!B100/0.07 -> 0 | J100: ='Conversion 1'!B100/0.056 -> 0 | K100: ='Conversion 1'!B100/0.1 -> 0 | L100: ='Conversion 1'!B100/0.058 -> 0 | M100: ='Conversion 1'!B100/0.01 -> 0 | N100: ='Conversion 1'!B100/0.02 -> 0 | O100: ='Conversion 1'!B100/0.56 -> 0 | P100: ='Conversion 1'!B100/0.4 -> 0
B101: =0.1423*('Conversion 1'!D101^1.2528) -> 0 | C101: =(0.00005*('Conversion 1'!D101^2))+(0.3389*'Conversion 1'!D101)-1.431 -> -1.431 | D101: 100 | E101: ='Conversion 1'!B101 -> 0 | F101: ='Conversion 1'!B101/0.4 -> 0 | G101: ='Conversion 1'!B101/0.4 -> 0 | H101: ='Conversion 1'!B101 -> 0 | I101: ='Conversion 1'!B101/0.07 -> 0 | J101: ='Conversion 1'!B101/0.056 -> 0 | K101: ='Conversion 1'!B101/0.1 -> 0 | L101: ='Conversion 1'!B101/0.058 -> 0 | M101: ='Conversion 1'!B101/0.01 -> 0 | N101: ='Conversion 1'!B101/0.02 -> 0 | O101: ='Conversion 1'!B101/0.56 -> 0 | P101: ='Conversion 1'!B101/0.4 -> 0
B102: =0.1423*('Conversion 1'!D102^1.2528) -> 0 | C102: =(0.00005*('Conversion 1'!D102^2))+(0.3389*'Conversion 1'!D102)-1.431 -> -1.431 | D102: 101 | E102: ='Conversion 1'!B102 -> 0 | F102: ='Conversion 1'!B102/0.4 -> 0 | G102: ='Conversion 1'!B102/0.4 -> 0 | H102: ='Conversion 1'!B102 -> 0 | I102: ='Conversion 1'!B102/0.07 -> 0 | J102: ='Conversion 1'!B102/0.056 -> 0 | K102: ='Conversion 1'!B102/0.1 -> 0 | L102: ='Conversion 1'!B102/0.058 -> 0 | M102: ='Conversion 1'!B102/0.01 -> 0 | N102: ='Conversion 1'!B102/0.02 -> 0 | O102: ='Conversion 1'!B102/0.56 -> 0 | P102: ='Conversion 1'!B102/0.4 -> 0
B103: =0.1423*('Conversion 1'!D103^1.2528) -> 0 | C103: =(0.00005*('Conversion 1'!D103^2))+(0.3389*'Conversion 1'!D103)-1.431 -> -1.431 | D103: 102 | E103: ='Conversion 1'!B103 -> 0 | F103: ='Conversion 1'!B103/0.4 -> 0 | G103: ='Conversion 1'!B103/0.4 -> 0 | H103: ='Conversion 1'!B103 -> 0 | I103: ='Conversion 1'!B103/0.07 -> 0 | J103: ='Conversion 1'!B103/0.056 -> 0 | K103: ='Conversion 1'!B103/0.1 -> 0 | L103: ='Conversion 1'!B103/0.058 -> 0 | M103: ='Conversion 1'!B103/0.01 -> 0 | N103: ='Conversion 1'!B103/0.02 -> 0 | O103: ='Conversion 1'!B103/0.56 -> 0 | P103: ='Conversion 1'!B103/0.4 -> 0
B104: =0.1423*('Conversion 1'!D104^1.2528) -> 0 | C104: =(0.00005*('Conversion 1'!D104^2))+(0.3389*'Conversion 1'!D104)-1.431 -> -1.431 | D104: 103 | E104: ='Conversion 1'!B104 -> 0 | F104: ='Conversion 1'!B104/0.4 -> 0 | G104: ='Conversion 1'!B104/0.4 -> 0 | H104: ='Conversion 1'!B104 -> 0 | I104: ='Conversion 1'!B104/0.07 -> 0 | J104: ='Conversion 1'!B104/0.056 -> 0 | K104: ='Conversion 1'!B104/0.1 -> 0 | L104: ='Conversion 1'!B104/0.058 -> 0 | M104: ='Conversion 1'!B104/0.01 -> 0 | N104: ='Conversion 1'!B104/0.02 -> 0 | O104: ='Conversion 1'!B104/0.56 -> 0 | P104: ='Conversion 1'!B104/0.4 -> 0
B105: =0.1423*('Conversion 1'!D105^1.2528) -> 0 | C105: =(0.00005*('Conversion 1'!D105^2))+(0.3389*'Conversion 1'!D105)-1.431 -> -1.431 | D105: 104 | E105: ='Conversion 1'!B105 -> 0 | F105: ='Conversion 1'!B105/0.4 -> 0 | G105: ='Conversion 1'!B105/0.4 -> 0 | H105: ='Conversion 1'!B105 -> 0 | I105: ='Conversion 1'!B105/0.07 -> 0 | J105: ='Conversion 1'!B105/0.056 -> 0 | K105: ='Conversion 1'!B105/0.1 -> 0 | L105: ='Conversion 1'!B105/0.058 -> 0 | M105: ='Conversion 1'!B105/0.01 -> 0 | N105: ='Conversion 1'!B105/0.02 -> 0 | O105: ='Conversion 1'!B105/0.56 -> 0 | P105: ='Conversion 1'!B105/0.4 -> 0
B106: =0.1423*('Conversion 1'!D106^1.2528) -> 0 | C106: =(0.00005*('Conversion 1'!D106^2))+(0.3389*'Conversion 1'!D106)-1.431 -> -1.431 | D106: 105 | E106: ='Conversion 1'!B106 -> 0 | F106: ='Conversion 1'!B106/0.4 -> 0 | G106: ='Conversion 1'!B106/0.4 -> 0 | H106: ='Conversion 1'!B106 -> 0 | I106: ='Conversion 1'!B106/0.07 -> 0 | J106: ='Conversion 1'!B106/0.056 -> 0 | K106: ='Conversion 1'!B106/0.1 -> 0 | L106: ='Conversion 1'!B106/0.058 -> 0 | M106: ='Conversion 1'!B106/0.01 -> 0 | N106: ='Conversion 1'!B106/0.02 -> 0 | O106: ='Conversion 1'!B106/0.56 -> 0 | P106: ='Conversion 1'!B106/0.4 -> 0
B107: =0.1423*('Conversion 1'!D107^1.2528) -> 0 | C107: =(0.00005*('Conversion 1'!D107^2))+(0.3389*'Conversion 1'!D107)-1.431 -> -1.431 | D107: 106 | E107: ='Conversion 1'!B107 -> 0 | F107: ='Conversion 1'!B107/0.4 -> 0 | G107: ='Conversion 1'!B107/0.4 -> 0 | H107: ='Conversion 1'!B107 -> 0 | I107: ='Conversion 1'!B107/0.07 -> 0 | J107: ='Conversion 1'!B107/0.056 -> 0 | K107: ='Conversion 1'!B107/0.1 -> 0 | L107: ='Conversion 1'!B107/0.058 -> 0 | M107: ='Conversion 1'!B107/0.01 -> 0 | N107: ='Conversion 1'!B107/0.02 -> 0 | O107: ='Conversion 1'!B107/0.56 -> 0 | P107: ='Conversion 1'!B107/0.4 -> 0
B108: =0.1423*('Conversion 1'!D108^1.2528) -> 0 | C108: =(0.00005*('Conversion 1'!D108^2))+(0.3389*'Conversion 1'!D108)-1.431 -> -1.431 | D108: 107 | E108: ='Conversion 1'!B108 -> 0 | F108: ='Conversion 1'!B108/0.4 -> 0 | G108: ='Conversion 1'!B108/0.4 -> 0 | H108: ='Conversion 1'!B108 -> 0 | I108: ='Conversion 1'!B108/0.07 -> 0 | J108: ='Conversion 1'!B108/0.056 -> 0 | K108: ='Conversion 1'!B108/0.1 -> 0 | L108: ='Conversion 1'!B108/0.058 -> 0 | M108: ='Conversion 1'!B108/0.01 -> 0 | N108: ='Conversion 1'!B108/0.02 -> 0 | O108: ='Conversion 1'!B108/0.56 -> 0 | P108: ='Conversion 1'!B108/0.4 -> 0
B109: =0.1423*('Conversion 1'!D109^1.2528) -> 0 | C109: =(0.00005*('Conversion 1'!D109^2))+(0.3389*'Conversion 1'!D109)-1.431 -> -1.431 | D109: 108 | E109: ='Conversion 1'!B109 -> 0 | F109: ='Conversion 1'!B109/0.4 -> 0 | G109: ='Conversion 1'!B109/0.4 -> 0 | H109: ='Conversion 1'!B109 -> 0 | I109: ='Conversion 1'!B109/0.07 -> 0 | J109: ='Conversion 1'!B109/0.056 -> 0 | K109: ='Conversion 1'!B109/0.1 -> 0 | L109: ='Conversion 1'!B109/0.058 -> 0 | M109: ='Conversion 1'!B109/0.01 -> 0 | N109: ='Conversion 1'!B109/0.02 -> 0 | O109: ='Conversion 1'!B109/0.56 -> 0 | P109: ='Conversion 1'!B109/0.4 -> 0
B110: =0.1423*('Conversion 1'!D110^1.2528) -> 0 | C110: =(0.00005*('Conversion 1'!D110^2))+(0.3389*'Conversion 1'!D110)-1.431 -> -1.431 | D110: 109 | E110: ='Conversion 1'!B110 -> 0 | F110: ='Conversion 1'!B110/0.4 -> 0 | G110: ='Conversion 1'!B110/0.4 -> 0 | H110: ='Conversion 1'!B110 -> 0 | I110: ='Conversion 1'!B110/0.07 -> 0 | J110: ='Conversion 1'!B110/0.056 -> 0 | K110: ='Conversion 1'!B110/0.1 -> 0 | L110: ='Conversion 1'!B110/0.058 -> 0 | M110: ='Conversion 1'!B110/0.01 -> 0 | N110: ='Conversion 1'!B110/0.02 -> 0 | O110: ='Conversion 1'!B110/0.56 -> 0 | P110: ='Conversion 1'!B110/0.4 -> 0
B111: =0.1423*('Conversion 1'!D111^1.2528) -> 0 | C111: =(0.00005*('Conversion 1'!D111^2))+(0.3389*'Conversion 1'!D111)-1.431 -> -1.431 | D111: 110 | E111: ='Conversion 1'!B111 -> 0 | F111: ='Conversion 1'!B111/0.4 -> 0 | G111: ='Conversion 1'!B111/0.4 -> 0 | H111: ='Conversion 1'!B111 -> 0 | I111: ='Conversion 1'!B111/0.07 -> 0 | J111: ='Conversion 1'!B111/0.056 -> 0 | K111: ='Conversion 1'!B111/0.1 -> 0 | L111: ='Conversion 1'!B111/0.058 -> 0 | M111: ='Conversion 1'!B111/0.01 -> 0 | N111: ='Conversion 1'!B111/0.02 -> 0 | O111: ='Conversion 1'!B111/0.56 -> 0 | P111: ='Conversion 1'!B111/0.4 -> 0
B112: =0.1423*('Conversion 1'!D112^1.2528) -> 0 | C112: =(0.00005*('Conversion 1'!D112^2))+(0.3389*'Conversion 1'!D112)-1.431 -> -1.431 | D112: 111 | E112: ='Conversion 1'!B112 -> 0 | F112: ='Conversion 1'!B112/0.4 -> 0 | G112: ='Conversion 1'!B112/0.4 -> 0 | H112: ='Conversion 1'!B112 -> 0 | I112: ='Conversion 1'!B112/0.07 -> 0 | J112: ='Conversion 1'!B112/0.056 -> 0 | K112: ='Conversion 1'!B112/0.1 -> 0 | L112: ='Conversion 1'!B112/0.058 -> 0 | M112: ='Conversion 1'!B112/0.01 -> 0 | N112: ='Conversion 1'!B112/0.02 -> 0 | O112: ='Conversion 1'!B112/0.56 -> 0 | P112: ='Conversion 1'!B112/0.4 -> 0
B113: =0.1423*('Conversion 1'!D113^1.2528) -> 0 | C113: =(0.00005*('Conversion 1'!D113^2))+(0.3389*'Conversion 1'!D113)-1.431 -> -1.431 | D113: 112 | E113: ='Conversion 1'!B113 -> 0 | F113: ='Conversion 1'!B113/0.4 -> 0 | G113: ='Conversion 1'!B113/0.4 -> 0 | H113: ='Conversion 1'!B113 -> 0 | I113: ='Conversion 1'!B113/0.07 -> 0 | J113: ='Conversion 1'!B113/0.056 -> 0 | K113: ='Conversion 1'!B113/0.1 -> 0 | L113: ='Conversion 1'!B113/0.058 -> 0 | M113: ='Conversion 1'!B113/0.01 -> 0 | N113: ='Conversion 1'!B113/0.02 -> 0 | O113: ='Conversion 1'!B113/0.56 -> 0 | P113: ='Conversion 1'!B113/0.4 -> 0
B114: =0.1423*('Conversion 1'!D114^1.2528) -> 0 | C114: =(0.00005*('Conversion 1'!D114^2))+(0.3389*'Conversion 1'!D114)-1.431 -> -1.431 | D114: 113 | E114: ='Conversion 1'!B114 -> 0 | F114: ='Conversion 1'!B114/0.4 -> 0 | G114: ='Conversion 1'!B114/0.4 -> 0 | H114: ='Conversion 1'!B114 -> 0 | I114: ='Conversion 1'!B114/0.07 -> 0 | J114: ='Conversion 1'!B114/0.056 -> 0 | K114: ='Conversion 1'!B114/0.1 -> 0 | L114: ='Conversion 1'!B114/0.058 -> 0 | M114: ='Conversion 1'!B114/0.01 -> 0 | N114: ='Conversion 1'!B114/0.02 -> 0 | O114: ='Conversion 1'!B114/0.56 -> 0 | P114: ='Conversion 1'!B114/0.4 -> 0
B115: =0.1423*('Conversion 1'!D115^1.2528) -> 0 | C115: =(0.00005*('Conversion 1'!D115^2))+(0.3389*'Conversion 1'!D115)-1.431 -> -1.431 | D115: 114 | E115: ='Conversion 1'!B115 -> 0 | F115: ='Conversion 1'!B115/0.4 -> 0 | G115: ='Conversion 1'!B115/0.4 -> 0 | H115: ='Conversion 1'!B115 -> 0 | I115: ='Conversion 1'!B115/0.07 -> 0 | J115: ='Conversion 1'!B115/0.056 -> 0 | K115: ='Conversion 1'!B115/0.1 -> 0 | L115: ='Conversion 1'!B115/0.058 -> 0 | M115: ='Conversion 1'!B115/0.01 -> 0 | N115: ='Conversion 1'!B115/0.02 -> 0 | O115: ='Conversion 1'!B115/0.56 -> 0 | P115: ='Conversion 1'!B115/0.4 -> 0
B116: =0.1423*('Conversion 1'!D116^1.2528) -> 0 | C116: =(0.00005*('Conversion 1'!D116^2))+(0.3389*'Conversion 1'!D116)-1.431 -> -1.431 | D116: 115 | E116: ='Conversion 1'!B116 -> 0 | F116: ='Conversion 1'!B116/0.4 -> 0 | G116: ='Conversion 1'!B116/0.4 -> 0 | H116: ='Conversion 1'!B116 -> 0 | I116: ='Conversion 1'!B116/0.07 -> 0 | J116: ='Conversion 1'!B116/0.056 -> 0 | K116: ='Conversion 1'!B116/0.1 -> 0 | L116: ='Conversion 1'!B116/0.058 -> 0 | M116: ='Conversion 1'!B116/0.01 -> 0 | N116: ='Conversion 1'!B116/0.02 -> 0 | O116: ='Conversion 1'!B116/0.56 -> 0 | P116: ='Conversion 1'!B116/0.4 -> 0
B117: =0.1423*('Conversion 1'!D117^1.2528) -> 0 | C117: =(0.00005*('Conversion 1'!D117^2))+(0.3389*'Conversion 1'!D117)-1.431 -> -1.431 | D117: 116 | E117: ='Conversion 1'!B117 -> 0 | F117: ='Conversion 1'!B117/0.4 -> 0 | G117: ='Conversion 1'!B117/0.4 -> 0 | H117: ='Conversion 1'!B117 -> 0 | I117: ='Conversion 1'!B117/0.07 -> 0 | J117: ='Conversion 1'!B117/0.056 -> 0 | K117: ='Conversion 1'!B117/0.1 -> 0 | L117: ='Conversion 1'!B117/0.058 -> 0 | M117: ='Conversion 1'!B117/0.01 -> 0 | N117: ='Conversion 1'!B117/0.02 -> 0 | O117: ='Conversion 1'!B117/0.56 -> 0 | P117: ='Conversion 1'!B117/0.4 -> 0
B118: =0.1423*('Conversion 1'!D118^1.2528) -> 0 | C118: =(0.00005*('Conversion 1'!D118^2))+(0.3389*'Conversion 1'!D118)-1.431 -> -1.431 | D118: 117 | E118: ='Conversion 1'!B118 -> 0 | F118: ='Conversion 1'!B118/0.4 -> 0 | G118: ='Conversion 1'!B118/0.4 -> 0 | H118: ='Conversion 1'!B118 -> 0 | I118: ='Conversion 1'!B118/0.07 -> 0 | J118: ='Conversion 1'!B118/0.056 -> 0 | K118: ='Conversion 1'!B118/0.1 -> 0 | L118: ='Conversion 1'!B118/0.058 -> 0 | M118: ='Conversion 1'!B118/0.01 -> 0 | N118: ='Conversion 1'!B118/0.02 -> 0 | O118: ='Conversion 1'!B118/0.56 -> 0 | P118: ='Conversion 1'!B118/0.4 -> 0
B119: =0.1423*('Conversion 1'!D119^1.2528) -> 0 | C119: =(0.00005*('Conversion 1'!D119^2))+(0.3389*'Conversion 1'!D119)-1.431 -> -1.431 | D119: 118 | E119: ='Conversion 1'!B119 -> 0 | F119: ='Conversion 1'!B119/0.4 -> 0 | G119: ='Conversion 1'!B119/0.4 -> 0 | H119: ='Conversion 1'!B119 -> 0 | I119: ='Conversion 1'!B119/0.07 -> 0 | J119: ='Conversion 1'!B119/0.056 -> 0 | K119: ='Conversion 1'!B119/0.1 -> 0 | L119: ='Conversion 1'!B119/0.058 -> 0 | M119: ='Conversion 1'!B119/0.01 -> 0 | N119: ='Conversion 1'!B119/0.02 -> 0 | O119: ='Conversion 1'!B119/0.56 -> 0 | P119: ='Conversion 1'!B119/0.4 -> 0
B120: =0.1423*('Conversion 1'!D120^1.2528) -> 0 | C120: =(0.00005*('Conversion 1'!D120^2))+(0.3389*'Conversion 1'!D120)-1.431 -> -1.431 | D120: 119 | E120: ='Conversion 1'!B120 -> 0 | F120: ='Conversion 1'!B120/0.4 -> 0 | G120: ='Conversion 1'!B120/0.4 -> 0 | H120: ='Conversion 1'!B120 -> 0 | I120: ='Conversion 1'!B120/0.07 -> 0 | J120: ='Conversion 1'!B120/0.056 -> 0 | K120: ='Conversion 1'!B120/0.1 -> 0 | L120: ='Conversion 1'!B120/0.058 -> 0 | M120: ='Conversion 1'!B120/0.01 -> 0 | N120: ='Conversion 1'!B120/0.02 -> 0 | O120: ='Conversion 1'!B120/0.56 -> 0 | P120: ='Conversion 1'!B120/0.4 -> 0
B121: =0.1423*('Conversion 1'!D121^1.2528) -> 0 | C121: =(0.00005*('Conversion 1'!D121^2))+(0.3389*'Conversion 1'!D121)-1.431 -> -1.431 | D121: 120 | E121: ='Conversion 1'!B121 -> 0 | F121: ='Conversion 1'!B121/0.4 -> 0 | G121: ='Conversion 1'!B121/0.4 -> 0 | H121: ='Conversion 1'!B121 -> 0 | I121: ='Conversion 1'!B121/0.07 -> 0 | J121: ='Conversion 1'!B121/0.056 -> 0 | K121: ='Conversion 1'!B121/0.1 -> 0 | L121: ='Conversion 1'!B121/0.058 -> 0 | M121: ='Conversion 1'!B121/0.01 -> 0 | N121: ='Conversion 1'!B121/0.02 -> 0 | O121: ='Conversion 1'!B121/0.56 -> 0 | P121: ='Conversion 1'!B121/0.4 -> 0
B122: =0.1423*('Conversion 1'!D122^1.2528) -> 0 | C122: =(0.00005*('Conversion 1'!D122^2))+(0.3389*'Conversion 1'!D122)-1.431 -> -1.431 | D122: 121 | E122: ='Conversion 1'!B122 -> 0 | F122: ='Conversion 1'!B122/0.4 -> 0 | G122: ='Conversion 1'!B122/0.4 -> 0 | H122: ='Conversion 1'!B122 -> 0 | I122: ='Conversion 1'!B122/0.07 -> 0 | J122: ='Conversion 1'!B122/0.056 -> 0 | K122: ='Conversion 1'!B122/0.1 -> 0 | L122: ='Conversion 1'!B122/0.058 -> 0 | M122: ='Conversion 1'!B122/0.01 -> 0 | N122: ='Conversion 1'!B122/0.02 -> 0 | O122: ='Conversion 1'!B122/0.56 -> 0 | P122: ='Conversion 1'!B122/0.4 -> 0
B123: =0.1423*('Conversion 1'!D123^1.2528) -> 0 | C123: =(0.00005*('Conversion 1'!D123^2))+(0.3389*'Conversion 1'!D123)-1.431 -> -1.431 | D123: 122 | E123: ='Conversion 1'!B123 -> 0 | F123: ='Conversion 1'!B123/0.4 -> 0 | G123: ='Conversion 1'!B123/0.4 -> 0 | H123: ='Conversion 1'!B123 -> 0 | I123: ='Conversion 1'!B123/0.07 -> 0 | J123: ='Conversion 1'!B123/0.056 -> 0 | K123: ='Conversion 1'!B123/0.1 -> 0 | L123: ='Conversion 1'!B123/0.058 -> 0 | M123: ='Conversion 1'!B123/0.01 -> 0 | N123: ='Conversion 1'!B123/0.02 -> 0 | O123: ='Conversion 1'!B123/0.56 -> 0 | P123: ='Conversion 1'!B123/0.4 -> 0
B124: =0.1423*('Conversion 1'!D124^1.2528) -> 0 | C124: =(0.00005*('Conversion 1'!D124^2))+(0.3389*'Conversion 1'!D124)-1.431 -> -1.431 | D124: 123 | E124: ='Conversion 1'!B124 -> 0 | F124: ='Conversion 1'!B124/0.4 -> 0 | G124: ='Conversion 1'!B124/0.4 -> 0 | H124: ='Conversion 1'!B124 -> 0 | I124: ='Conversion 1'!B124/0.07 -> 0 | J124: ='Conversion 1'!B124/0.056 -> 0 | K124: ='Conversion 1'!B124/0.1 -> 0 | L124: ='Conversion 1'!B124/0.058 -> 0 | M124: ='Conversion 1'!B124/0.01 -> 0 | N124: ='Conversion 1'!B124/0.02 -> 0 | O124: ='Conversion 1'!B124/0.56 -> 0 | P124: ='Conversion 1'!B124/0.4 -> 0
B125: =0.1423*('Conversion 1'!D125^1.2528) -> 0 | C125: =(0.00005*('Conversion 1'!D125^2))+(0.3389*'Conversion 1'!D125)-1.431 -> -1.431 | D125: 124 | E125: ='Conversion 1'!B125 -> 0 | F125: ='Conversion 1'!B125/0.4 -> 0 | G125: ='Conversion 1'!B125/0.4 -> 0 | H125: ='Conversion 1'!B125 -> 0 | I125: ='Conversion 1'!B125/0.07 -> 0 | J125: ='Conversion 1'!B125/0.056 -> 0 | K125: ='Conversion 1'!B125/0.1 -> 0 | L125: ='Conversion 1'!B125/0.058 -> 0 | M125: ='Conversion 1'!B125/0.01 -> 0 | N125: ='Conversion 1'!B125/0.02 -> 0 | O125: ='Conversion 1'!B125/0.56 -> 0 | P125: ='Conversion 1'!B125/0.4 -> 0
B126: =0.1423*('Conversion 1'!D126^1.2528) -> 0 | C126: =(0.00005*('Conversion 1'!D126^2))+(0.3389*'Conversion 1'!D126)-1.431 -> -1.431 | D126: 125 | E126: ='Conversion 1'!B126 -> 0 | F126: ='Conversion 1'!B126/0.4 -> 0 | G126: ='Conversion 1'!B126/0.4 -> 0 | H126: ='Conversion 1'!B126 -> 0 | I126: ='Conversion 1'!B126/0.07 -> 0 | J126: ='Conversion 1'!B126/0.056 -> 0 | K126: ='Conversion 1'!B126/0.1 -> 0 | L126: ='Conversion 1'!B126/0.058 -> 0 | M126: ='Conversion 1'!B126/0.01 -> 0 | N126: ='Conversion 1'!B126/0.02 -> 0 | O126: ='Conversion 1'!B126/0.56 -> 0 | P126: ='Conversion 1'!B126/0.4 -> 0
B127: =0.1423*('Conversion 1'!D127^1.2528) -> 0 | C127: =(0.00005*('Conversion 1'!D127^2))+(0.3389*'Conversion 1'!D127)-1.431 -> -1.431 | D127: 126 | E127: ='Conversion 1'!B127 -> 0 | F127: ='Conversion 1'!B127/0.4 -> 0 | G127: ='Conversion 1'!B127/0.4 -> 0 | H127: ='Conversion 1'!B127 -> 0 | I127: ='Conversion 1'!B127/0.07 -> 0 | J127: ='Conversion 1'!B127/0.056 -> 0 | K127: ='Conversion 1'!B127/0.1 -> 0 | L127: ='Conversion 1'!B127/0.058 -> 0 | M127: ='Conversion 1'!B127/0.01 -> 0 | N127: ='Conversion 1'!B127/0.02 -> 0 | O127: ='Conversion 1'!B127/0.56 -> 0 | P127: ='Conversion 1'!B127/0.4 -> 0
B128: =0.1423*('Conversion 1'!D128^1.2528) -> 0 | C128: =(0.00005*('Conversion 1'!D128^2))+(0.3389*'Conversion 1'!D128)-1.431 -> -1.431 | D128: 127 | E128: ='Conversion 1'!B128 -> 0 | F128: ='Conversion 1'!B128/0.4 -> 0 | G128: ='Conversion 1'!B128/0.4 -> 0 | H128: ='Conversion 1'!B128 -> 0 | I128: ='Conversion 1'!B128/0.07 -> 0 | J128: ='Conversion 1'!B128/0.056 -> 0 | K128: ='Conversion 1'!B128/0.1 -> 0 | L128: ='Conversion 1'!B128/0.058 -> 0 | M128: ='Conversion 1'!B128/0.01 -> 0 | N128: ='Conversion 1'!B128/0.02 -> 0 | O128: ='Conversion 1'!B128/0.56 -> 0 | P128: ='Conversion 1'!B128/0.4 -> 0
B129: =0.1423*('Conversion 1'!D129^1.2528) -> 0 | C129: =(0.00005*('Conversion 1'!D129^2))+(0.3389*'Conversion 1'!D129)-1.431 -> -1.431 | D129: 128 | E129: ='Conversion 1'!B129 -> 0 | F129: ='Conversion 1'!B129/0.4 -> 0 | G129: ='Conversion 1'!B129/0.4 -> 0 | H129: ='Conversion 1'!B129 -> 0 | I129: ='Conversion 1'!B129/0.07 -> 0 | J129: ='Conversion 1'!B129/0.056 -> 0 | K129: ='Conversion 1'!B129/0.1 -> 0 | L129: ='Conversion 1'!B129/0.058 -> 0 | M129: ='Conversion 1'!B129/0.01 -> 0 | N129: ='Conversion 1'!B129/0.02 -> 0 | O129: ='Conversion 1'!B129/0.56 -> 0 | P129: ='Conversion 1'!B129/0.4 -> 0
B130: =0.1423*('Conversion 1'!D130^1.2528) -> 0 | C130: =(0.00005*('Conversion 1'!D130^2))+(0.3389*'Conversion 1'!D130)-1.431 -> -1.431 | D130: 129 | E130: ='Conversion 1'!B130 -> 0 | F130: ='Conversion 1'!B130/0.4 -> 0 | G130: ='Conversion 1'!B130/0.4 -> 0 | H130: ='Conversion 1'!B130 -> 0 | I130: ='Conversion 1'!B130/0.07 -> 0 | J130: ='Conversion 1'!B130/0.056 -> 0 | K130: ='Conversion 1'!B130/0.1 -> 0 | L130: ='Conversion 1'!B130/0.058 -> 0 | M130: ='Conversion 1'!B130/0.01 -> 0 | N130: ='Conversion 1'!B130/0.02 -> 0 | O130: ='Conversion 1'!B130/0.56 -> 0 | P130: ='Conversion 1'!B130/0.4 -> 0
B131: =0.1423*('Conversion 1'!D131^1.2528) -> 0 | C131: =(0.00005*('Conversion 1'!D131^2))+(0.3389*'Conversion 1'!D131)-1.431 -> -1.431 | D131: 130 | E131: ='Conversion 1'!B131 -> 0 | F131: ='Conversion 1'!B131/0.4 -> 0 | G131: ='Conversion 1'!B131/0.4 -> 0 | H131: ='Conversion 1'!B131 -> 0 | I131: ='Conversion 1'!B131/0.07 -> 0 | J131: ='Conversion 1'!B131/0.056 -> 0 | K131: ='Conversion 1'!B131/0.1 -> 0 | L131: ='Conversion 1'!B131/0.058 -> 0 | M131: ='Conversion 1'!B131/0.01 -> 0 | N131: ='Conversion 1'!B131/0.02 -> 0 | O131: ='Conversion 1'!B131/0.56 -> 0 | P131: ='Conversion 1'!B131/0.4 -> 0
B132: =0.1423*('Conversion 1'!D132^1.2528) -> 0 | C132: =(0.00005*('Conversion 1'!D132^2))+(0.3389*'Conversion 1'!D132)-1.431 -> -1.431 | D132: 131 | E132: ='Conversion 1'!B132 -> 0 | F132: ='Conversion 1'!B132/0.4 -> 0 | G132: ='Conversion 1'!B132/0.4 -> 0 | H132: ='Conversion 1'!B132 -> 0 | I132: ='Conversion 1'!B132/0.07 -> 0 | J132: ='Conversion 1'!B132/0.056 -> 0 | K132: ='Conversion 1'!B132/0.1 -> 0 | L132: ='Conversion 1'!B132/0.058 -> 0 | M132: ='Conversion 1'!B132/0.01 -> 0 | N132: ='Conversion 1'!B132/0.02 -> 0 | O132: ='Conversion 1'!B132/0.56 -> 0 | P132: ='Conversion 1'!B132/0.4 -> 0
B133: =0.1423*('Conversion 1'!D133^1.2528) -> 0 | C133: =(0.00005*('Conversion 1'!D133^2))+(0.3389*'Conversion 1'!D133)-1.431 -> -1.431 | D133: 132 | E133: ='Conversion 1'!B133 -> 0 | F133: ='Conversion 1'!B133/0.4 -> 0 | G133: ='Conversion 1'!B133/0.4 -> 0 | H133: ='Conversion 1'!B133 -> 0 | I133: ='Conversion 1'!B133/0.07 -> 0 | J133: ='Conversion 1'!B133/0.056 -> 0 | K133: ='Conversion 1'!B133/0.1 -> 0 | L133: ='Conversion 1'!B133/0.058 -> 0 | M133: ='Conversion 1'!B133/0.01 -> 0 | N133: ='Conversion 1'!B133/0.02 -> 0 | O133: ='Conversion 1'!B133/0.56 -> 0 | P133: ='Conversion 1'!B133/0.4 -> 0
B134: =0.1423*('Conversion 1'!D134^1.2528) -> 0 | C134: =(0.00005*('Conversion 1'!D134^2))+(0.3389*'Conversion 1'!D134)-1.431 -> -1.431 | D134: 133 | E134: ='Conversion 1'!B134 -> 0 | F134: ='Conversion 1'!B134/0.4 -> 0 | G134: ='Conversion 1'!B134/0.4 -> 0 | H134: ='Conversion 1'!B134 -> 0 | I134: ='Conversion 1'!B134/0.07 -> 0 | J134: ='Conversion 1'!B134/0.056 -> 0 | K134: ='Conversion 1'!B134/0.1 -> 0 | L134: ='Conversion 1'!B134/0.058 -> 0 | M134: ='Conversion 1'!B134/0.01 -> 0 | N134: ='Conversion 1'!B134/0.02 -> 0 | O134: ='Conversion 1'!B134/0.56 -> 0 | P134: ='Conversion 1'!B134/0.4 -> 0
B135: =0.1423*('Conversion 1'!D135^1.2528) -> 0 | C135: =(0.00005*('Conversion 1'!D135^2))+(0.3389*'Conversion 1'!D135)-1.431 -> -1.431 | D135: 134 | E135: ='Conversion 1'!B135 -> 0 | F135: ='Conversion 1'!B135/0.4 -> 0 | G135: ='Conversion 1'!B135/0.4 -> 0 | H135: ='Conversion 1'!B135 -> 0 | I135: ='Conversion 1'!B135/0.07 -> 0 | J135: ='Conversion 1'!B135/0.056 -> 0 | K135: ='Conversion 1'!B135/0.1 -> 0 | L135: ='Conversion 1'!B135/0.058 -> 0 | M135: ='Conversion 1'!B135/0.01 -> 0 | N135: ='Conversion 1'!B135/0.02 -> 0 | O135: ='Conversion 1'!B135/0.56 -> 0 | P135: ='Conversion 1'!B135/0.4 -> 0
B136: =0.1423*('Conversion 1'!D136^1.2528) -> 0 | C136: =(0.00005*('Conversion 1'!D136^2))+(0.3389*'Conversion 1'!D136)-1.431 -> -1.431 | D136: 135 | E136: ='Conversion 1'!B136 -> 0 | F136: ='Conversion 1'!B136/0.4 -> 0 | G136: ='Conversion 1'!B136/0.4 -> 0 | H136: ='Conversion 1'!B136 -> 0 | I136: ='Conversion 1'!B136/0.07 -> 0 | J136: ='Conversion 1'!B136/0.056 -> 0 | K136: ='Conversion 1'!B136/0.1 -> 0 | L136: ='Conversion 1'!B136/0.058 -> 0 | M136: ='Conversion 1'!B136/0.01 -> 0 | N136: ='Conversion 1'!B136/0.02 -> 0 | O136: ='Conversion 1'!B136/0.56 -> 0 | P136: ='Conversion 1'!B136/0.4 -> 0
B137: =0.1423*('Conversion 1'!D137^1.2528) -> 0 | C137: =(0.00005*('Conversion 1'!D137^2))+(0.3389*'Conversion 1'!D137)-1.431 -> -1.431 | D137: 136 | E137: ='Conversion 1'!B137 -> 0 | F137: ='Conversion 1'!B137/0.4 -> 0 | G137: ='Conversion 1'!B137/0.4 -> 0 | H137: ='Conversion 1'!B137 -> 0 | I137: ='Conversion 1'!B137/0.07 -> 0 | J137: ='Conversion 1'!B137/0.056 -> 0 | K137: ='Conversion 1'!B137/0.1 -> 0 | L137: ='Conversion 1'!B137/0.058 -> 0 | M137: ='Conversion 1'!B137/0.01 -> 0 | N137: ='Conversion 1'!B137/0.02 -> 0 | O137: ='Conversion 1'!B137/0.56 -> 0 | P137: ='Conversion 1'!B137/0.4 -> 0
B138: =0.1423*('Conversion 1'!D138^1.2528) -> 0 | C138: =(0.00005*('Conversion 1'!D138^2))+(0.3389*'Conversion 1'!D138)-1.431 -> -1.431 | D138: 137 | E138: ='Conversion 1'!B138 -> 0 | F138: ='Conversion 1'!B138/0.4 -> 0 | G138: ='Conversion 1'!B138/0.4 -> 0 | H138: ='Conversion 1'!B138 -> 0 | I138: ='Conversion 1'!B138/0.07 -> 0 | J138: ='Conversion 1'!B138/0.056 -> 0 | K138: ='Conversion 1'!B138/0.1 -> 0 | L138: ='Conversion 1'!B138/0.058 -> 0 | M138: ='Conversion 1'!B138/0.01 -> 0 | N138: ='Conversion 1'!B138/0.02 -> 0 | O138: ='Conversion 1'!B138/0.56 -> 0 | P138: ='Conversion 1'!B138/0.4 -> 0
B139: =0.1423*('Conversion 1'!D139^1.2528) -> 0 | C139: =(0.00005*('Conversion 1'!D139^2))+(0.3389*'Conversion 1'!D139)-1.431 -> -1.431 | D139: 138 | E139: ='Conversion 1'!B139 -> 0 | F139: ='Conversion 1'!B139/0.4 -> 0 | G139: ='Conversion 1'!B139/0.4 -> 0 | H139: ='Conversion 1'!B139 -> 0 | I139: ='Conversion 1'!B139/0.07 -> 0 | J139: ='Conversion 1'!B139/0.056 -> 0 | K139: ='Conversion 1'!B139/0.1 -> 0 | L139: ='Conversion 1'!B139/0.058 -> 0 | M139: ='Conversion 1'!B139/0.01 -> 0 | N139: ='Conversion 1'!B139/0.02 -> 0 | O139: ='Conversion 1'!B139/0.56 -> 0 | P139: ='Conversion 1'!B139/0.4 -> 0
B140: =0.1423*('Conversion 1'!D140^1.2528) -> 0 | C140: =(0.00005*('Conversion 1'!D140^2))+(0.3389*'Conversion 1'!D140)-1.431 -> -1.431 | D140: 139 | E140: ='Conversion 1'!B140 -> 0 | F140: ='Conversion 1'!B140/0.4 -> 0 | G140: ='Conversion 1'!B140/0.4 -> 0 | H140: ='Conversion 1'!B140 -> 0 | I140: ='Conversion 1'!B140/0.07 -> 0 | J140: ='Conversion 1'!B140/0.056 -> 0 | K140: ='Conversion 1'!B140/0.1 -> 0 | L140: ='Conversion 1'!B140/0.058 -> 0 | M140: ='Conversion 1'!B140/0.01 -> 0 | N140: ='Conversion 1'!B140/0.02 -> 0 | O140: ='Conversion 1'!B140/0.56 -> 0 | P140: ='Conversion 1'!B140/0.4 -> 0
B141: =0.1423*('Conversion 1'!D141^1.2528) -> 0 | C141: =(0.00005*('Conversion 1'!D141^2))+(0.3389*'Conversion 1'!D141)-1.431 -> -1.431 | D141: 140 | E141: ='Conversion 1'!B141 -> 0 | F141: ='Conversion 1'!B141/0.4 -> 0 | G141: ='Conversion 1'!B141/0.4 -> 0 | H141: ='Conversion 1'!B141 -> 0 | I141: ='Conversion 1'!B141/0.07 -> 0 | J141: ='Conversion 1'!B141/0.056 -> 0 | K141: ='Conversion 1'!B141/0.1 -> 0 | L141: ='Conversion 1'!B141/0.058 -> 0 | M141: ='Conversion 1'!B141/0.01 -> 0 | N141: ='Conversion 1'!B141/0.02 -> 0 | O141: ='Conversion 1'!B141/0.56 -> 0 | P141: ='Conversion 1'!B141/0.4 -> 0
B142: =0.1423*('Conversion 1'!D142^1.2528) -> 0 | C142: =(0.00005*('Conversion 1'!D142^2))+(0.3389*'Conversion 1'!D142)-1.431 -> -1.431 | D142: 141 | E142: ='Conversion 1'!B142 -> 0 | F142: ='Conversion 1'!B142/0.4 -> 0 | G142: ='Conversion 1'!B142/0.4 -> 0 | H142: ='Conversion 1'!B142 -> 0 | I142: ='Conversion 1'!B142/0.07 -> 0 | J142: ='Conversion 1'!B142/0.056 -> 0 | K142: ='Conversion 1'!B142/0.1 -> 0 | L142: ='Conversion 1'!B142/0.058 -> 0 | M142: ='Conversion 1'!B142/0.01 -> 0 | N142: ='Conversion 1'!B142/0.02 -> 0 | O142: ='Conversion 1'!B142/0.56 -> 0 | P142: ='Conversion 1'!B142/0.4 -> 0
B143: =0.1423*('Conversion 1'!D143^1.2528) -> 0 | C143: =(0.00005*('Conversion 1'!D143^2))+(0.3389*'Conversion 1'!D143)-1.431 -> -1.431 | D143: 142 | E143: ='Conversion 1'!B143 -> 0 | F143: ='Conversion 1'!B143/0.4 -> 0 | G143: ='Conversion 1'!B143/0.4 -> 0 | H143: ='Conversion 1'!B143 -> 0 | I143: ='Conversion 1'!B143/0.07 -> 0 | J143: ='Conversion 1'!B143/0.056 -> 0 | K143: ='Conversion 1'!B143/0.1 -> 0 | L143: ='Conversion 1'!B143/0.058 -> 0 | M143: ='Conversion 1'!B143/0.01 -> 0 | N143: ='Conversion 1'!B143/0.02 -> 0 | O143: ='Conversion 1'!B143/0.56 -> 0 | P143: ='Conversion 1'!B143/0.4 -> 0
B144: =0.1423*('Conversion 1'!D144^1.2528) -> 0 | C144: =(0.00005*('Conversion 1'!D144^2))+(0.3389*'Conversion 1'!D144)-1.431 -> -1.431 | D144: 143 | E144: ='Conversion 1'!B144 -> 0 | F144: ='Conversion 1'!B144/0.4 -> 0 | G144: ='Conversion 1'!B144/0.4 -> 0 | H144: ='Conversion 1'!B144 -> 0 | I144: ='Conversion 1'!B144/0.07 -> 0 | J144: ='Conversion 1'!B144/0.056 -> 0 | K144: ='Conversion 1'!B144/0.1 -> 0 | L144: ='Conversion 1'!B144/0.058 -> 0 | M144: ='Conversion 1'!B144/0.01 -> 0 | N144: ='Conversion 1'!B144/0.02 -> 0 | O144: ='Conversion 1'!B144/0.56 -> 0 | P144: ='Conversion 1'!B144/0.4 -> 0
B145: =0.1423*('Conversion 1'!D145^1.2528) -> 0 | C145: =(0.00005*('Conversion 1'!D145^2))+(0.3389*'Conversion 1'!D145)-1.431 -> -1.431 | D145: 144 | E145: ='Conversion 1'!B145 -> 0 | F145: ='Conversion 1'!B145/0.4 -> 0 | G145: ='Conversion 1'!B145/0.4 -> 0 | H145: ='Conversion 1'!B145 -> 0 | I145: ='Conversion 1'!B145/0.07 -> 0 | J145: ='Conversion 1'!B145/0.056 -> 0 | K145: ='Conversion 1'!B145/0.1 -> 0 | L145: ='Conversion 1'!B145/0.058 -> 0 | M145: ='Conversion 1'!B145/0.01 -> 0 | N145: ='Conversion 1'!B145/0.02 -> 0 | O145: ='Conversion 1'!B145/0.56 -> 0 | P145: ='Conversion 1'!B145/0.4 -> 0
B146: =0.1423*('Conversion 1'!D146^1.2528) -> 0 | C146: =(0.00005*('Conversion 1'!D146^2))+(0.3389*'Conversion 1'!D146)-1.431 -> -1.431 | D146: 145 | E146: ='Conversion 1'!B146 -> 0 | F146: ='Conversion 1'!B146/0.4 -> 0 | G146: ='Conversion 1'!B146/0.4 -> 0 | H146: ='Conversion 1'!B146 -> 0 | I146: ='Conversion 1'!B146/0.07 -> 0 | J146: ='Conversion 1'!B146/0.056 -> 0 | K146: ='Conversion 1'!B146/0.1 -> 0 | L146: ='Conversion 1'!B146/0.058 -> 0 | M146: ='Conversion 1'!B146/0.01 -> 0 | N146: ='Conversion 1'!B146/0.02 -> 0 | O146: ='Conversion 1'!B146/0.56 -> 0 | P146: ='Conversion 1'!B146/0.4 -> 0
B147: =0.1423*('Conversion 1'!D147^1.2528) -> 0 | C147: =(0.00005*('Conversion 1'!D147^2))+(0.3389*'Conversion 1'!D147)-1.431 -> -1.431 | D147: 146 | E147: ='Conversion 1'!B147 -> 0 | F147: ='Conversion 1'!B147/0.4 -> 0 | G147: ='Conversion 1'!B147/0.4 -> 0 | H147: ='Conversion 1'!B147 -> 0 | I147: ='Conversion 1'!B147/0.07 -> 0 | J147: ='Conversion 1'!B147/0.056 -> 0 | K147: ='Conversion 1'!B147/0.1 -> 0 | L147: ='Conversion 1'!B147/0.058 -> 0 | M147: ='Conversion 1'!B147/0.01 -> 0 | N147: ='Conversion 1'!B147/0.02 -> 0 | O147: ='Conversion 1'!B147/0.56 -> 0 | P147: ='Conversion 1'!B147/0.4 -> 0
B148: =0.1423*('Conversion 1'!D148^1.2528) -> 0 | C148: =(0.00005*('Conversion 1'!D148^2))+(0.3389*'Conversion 1'!D148)-1.431 -> -1.431 | D148: 147 | E148: ='Conversion 1'!B148 -> 0 | F148: ='Conversion 1'!B148/0.4 -> 0 | G148: ='Conversion 1'!B148/0.4 -> 0 | H148: ='Conversion 1'!B148 -> 0 | I148: ='Conversion 1'!B148/0.07 -> 0 | J148: ='Conversion 1'!B148/0.056 -> 0 | K148: ='Conversion 1'!B148/0.1 -> 0 | L148: ='Conversion 1'!B148/0.058 -> 0 | M148: ='Conversion 1'!B148/0.01 -> 0 | N148: ='Conversion 1'!B148/0.02 -> 0 | O148: ='Conversion 1'!B148/0.56 -> 0 | P148: ='Conversion 1'!B148/0.4 -> 0
B149: =0.1423*('Conversion 1'!D149^1.2528) -> 0 | C149: =(0.00005*('Conversion 1'!D149^2))+(0.3389*'Conversion 1'!D149)-1.431 -> -1.431 | D149: 148 | E149: ='Conversion 1'!B149 -> 0 | F149: ='Conversion 1'!B149/0.4 -> 0 | G149: ='Conversion 1'!B149/0.4 -> 0 | H149: ='Conversion 1'!B149 -> 0 | I149: ='Conversion 1'!B149/0.07 -> 0 | J149: ='Conversion 1'!B149/0.056 -> 0 | K149: ='Conversion 1'!B149/0.1 -> 0 | L149: ='Conversion 1'!B149/0.058 -> 0 | M149: ='Conversion 1'!B149/0.01 -> 0 | N149: ='Conversion 1'!B149/0.02 -> 0 | O149: ='Conversion 1'!B149/0.56 -> 0 | P149: ='Conversion 1'!B149/0.4 -> 0
B150: =0.1423*('Conversion 1'!D150^1.2528) -> 0 | C150: =(0.00005*('Conversion 1'!D150^2))+(0.3389*'Conversion 1'!D150)-1.431 -> -1.431 | D150: 149 | E150: ='Conversion 1'!B150 -> 0 | F150: ='Conversion 1'!B150/0.4 -> 0 | G150: ='Conversion 1'!B150/0.4 -> 0 | H150: ='Conversion 1'!B150 -> 0 | I150: ='Conversion 1'!B150/0.07 -> 0 | J150: ='Conversion 1'!B150/0.056 -> 0 | K150: ='Conversion 1'!B150/0.1 -> 0 | L150: ='Conversion 1'!B150/0.058 -> 0 | M150: ='Conversion 1'!B150/0.01 -> 0 | N150: ='Conversion 1'!B150/0.02 -> 0 | O150: ='Conversion 1'!B150/0.56 -> 0 | P150: ='Conversion 1'!B150/0.4 -> 0
B151: =0.1423*('Conversion 1'!D151^1.2528) -> 0 | C151: =(0.00005*('Conversion 1'!D151^2))+(0.3389*'Conversion 1'!D151)-1.431 -> -1.431 | D151: 150 | E151: ='Conversion 1'!B151 -> 0 | F151: ='Conversion 1'!B151/0.4 -> 0 | G151: ='Conversion 1'!B151/0.4 -> 0 | H151: ='Conversion 1'!B151 -> 0 | I151: ='Conversion 1'!B151/0.07 -> 0 | J151: ='Conversion 1'!B151/0.056 -> 0 | K151: ='Conversion 1'!B151/0.1 -> 0 | L151: ='Conversion 1'!B151/0.058 -> 0 | M151: ='Conversion 1'!B151/0.01 -> 0 | N151: ='Conversion 1'!B151/0.02 -> 0 | O151: ='Conversion 1'!B151/0.56 -> 0 | P151: ='Conversion 1'!B151/0.4 -> 0
B152: =0.1423*('Conversion 1'!D152^1.2528) -> 0 | C152: =(0.00005*('Conversion 1'!D152^2))+(0.3389*'Conversion 1'!D152)-1.431 -> -1.431 | D152: 151 | E152: ='Conversion 1'!B152 -> 0 | F152: ='Conversion 1'!B152/0.4 -> 0 | G152: ='Conversion 1'!B152/0.4 -> 0 | H152: ='Conversion 1'!B152 -> 0 | I152: ='Conversion 1'!B152/0.07 -> 0 | J152: ='Conversion 1'!B152/0.056 -> 0 | K152: ='Conversion 1'!B152/0.1 -> 0 | L152: ='Conversion 1'!B152/0.058 -> 0 | M152: ='Conversion 1'!B152/0.01 -> 0 | N152: ='Conversion 1'!B152/0.02 -> 0 | O152: ='Conversion 1'!B152/0.56 -> 0 | P152: ='Conversion 1'!B152/0.4 -> 0
B153: =0.1423*('Conversion 1'!D153^1.2528) -> 0 | C153: =(0.00005*('Conversion 1'!D153^2))+(0.3389*'Conversion 1'!D153)-1.431 -> -1.431 | D153: 152 | E153: ='Conversion 1'!B153 -> 0 | F153: ='Conversion 1'!B153/0.4 -> 0 | G153: ='Conversion 1'!B153/0.4 -> 0 | H153: ='Conversion 1'!B153 -> 0 | I153: ='Conversion 1'!B153/0.07 -> 0 | J153: ='Conversion 1'!B153/0.056 -> 0 | K153: ='Conversion 1'!B153/0.1 -> 0 | L153: ='Conversion 1'!B153/0.058 -> 0 | M153: ='Conversion 1'!B153/0.01 -> 0 | N153: ='Conversion 1'!B153/0.02 -> 0 | O153: ='Conversion 1'!B153/0.56 -> 0 | P153: ='Conversion 1'!B153/0.4 -> 0
B154: =0.1423*('Conversion 1'!D154^1.2528) -> 0 | C154: =(0.00005*('Conversion 1'!D154^2))+(0.3389*'Conversion 1'!D154)-1.431 -> -1.431 | D154: 153 | E154: ='Conversion 1'!B154 -> 0 | F154: ='Conversion 1'!B154/0.4 -> 0 | G154: ='Conversion 1'!B154/0.4 -> 0 | H154: ='Conversion 1'!B154 -> 0 | I154: ='Conversion 1'!B154/0.07 -> 0 | J154: ='Conversion 1'!B154/0.056 -> 0 | K154: ='Conversion 1'!B154/0.1 -> 0 | L154: ='Conversion 1'!B154/0.058 -> 0 | M154: ='Conversion 1'!B154/0.01 -> 0 | N154: ='Conversion 1'!B154/0.02 -> 0 | O154: ='Conversion 1'!B154/0.56 -> 0 | P154: ='Conversion 1'!B154/0.4 -> 0
B155: =0.1423*('Conversion 1'!D155^1.2528) -> 0 | C155: =(0.00005*('Conversion 1'!D155^2))+(0.3389*'Conversion 1'!D155)-1.431 -> -1.431 | D155: 154 | E155: ='Conversion 1'!B155 -> 0 | F155: ='Conversion 1'!B155/0.4 -> 0 | G155: ='Conversion 1'!B155/0.4 -> 0 | H155: ='Conversion 1'!B155 -> 0 | I155: ='Conversion 1'!B155/0.07 -> 0 | J155: ='Conversion 1'!B155/0.056 -> 0 | K155: ='Conversion 1'!B155/0.1 -> 0 | L155: ='Conversion 1'!B155/0.058 -> 0 | M155: ='Conversion 1'!B155/0.01 -> 0 | N155: ='Conversion 1'!B155/0.02 -> 0 | O155: ='Conversion 1'!B155/0.56 -> 0 | P155: ='Conversion 1'!B155/0.4 -> 0
B156: =0.1423*('Conversion 1'!D156^1.2528) -> 0 | C156: =(0.00005*('Conversion 1'!D156^2))+(0.3389*'Conversion 1'!D156)-1.431 -> -1.431 | D156: 155 | E156: ='Conversion 1'!B156 -> 0 | F156: ='Conversion 1'!B156/0.4 -> 0 | G156: ='Conversion 1'!B156/0.4 -> 0 | H156: ='Conversion 1'!B156 -> 0 | I156: ='Conversion 1'!B156/0.07 -> 0 | J156: ='Conversion 1'!B156/0.056 -> 0 | K156: ='Conversion 1'!B156/0.1 -> 0 | L156: ='Conversion 1'!B156/0.058 -> 0 | M156: ='Conversion 1'!B156/0.01 -> 0 | N156: ='Conversion 1'!B156/0.02 -> 0 | O156: ='Conversion 1'!B156/0.56 -> 0 | P156: ='Conversion 1'!B156/0.4 -> 0
B157: =0.1423*('Conversion 1'!D157^1.2528) -> 0 | C157: =(0.00005*('Conversion 1'!D157^2))+(0.3389*'Conversion 1'!D157)-1.431 -> -1.431 | D157: 156 | E157: ='Conversion 1'!B157 -> 0 | F157: ='Conversion 1'!B157/0.4 -> 0 | G157: ='Conversion 1'!B157/0.4 -> 0 | H157: ='Conversion 1'!B157 -> 0 | I157: ='Conversion 1'!B157/0.07 -> 0 | J157: ='Conversion 1'!B157/0.056 -> 0 | K157: ='Conversion 1'!B157/0.1 -> 0 | L157: ='Conversion 1'!B157/0.058 -> 0 | M157: ='Conversion 1'!B157/0.01 -> 0 | N157: ='Conversion 1'!B157/0.02 -> 0 | O157: ='Conversion 1'!B157/0.56 -> 0 | P157: ='Conversion 1'!B157/0.4 -> 0
B158: =0.1423*('Conversion 1'!D158^1.2528) -> 0 | C158: =(0.00005*('Conversion 1'!D158^2))+(0.3389*'Conversion 1'!D158)-1.431 -> -1.431 | D158: 157 | E158: ='Conversion 1'!B158 -> 0 | F158: ='Conversion 1'!B158/0.4 -> 0 | G158: ='Conversion 1'!B158/0.4 -> 0 | H158: ='Conversion 1'!B158 -> 0 | I158: ='Conversion 1'!B158/0.07 -> 0 | J158: ='Conversion 1'!B158/0.056 -> 0 | K158: ='Conversion 1'!B158/0.1 -> 0 | L158: ='Conversion 1'!B158/0.058 -> 0 | M158: ='Conversion 1'!B158/0.01 -> 0 | N158: ='Conversion 1'!B158/0.02 -> 0 | O158: ='Conversion 1'!B158/0.56 -> 0 | P158: ='Conversion 1'!B158/0.4 -> 0
B159: =0.1423*('Conversion 1'!D159^1.2528) -> 0 | C159: =(0.00005*('Conversion 1'!D159^2))+(0.3389*'Conversion 1'!D159)-1.431 -> -1.431 | D159: 158 | E159: ='Conversion 1'!B159 -> 0 | F159: ='Conversion 1'!B159/0.4 -> 0 | G159: ='Conversion 1'!B159/0.4 -> 0 | H159: ='Conversion 1'!B159 -> 0 | I159: ='Conversion 1'!B159/0.07 -> 0 | J159: ='Conversion 1'!B159/0.056 -> 0 | K159: ='Conversion 1'!B159/0.1 -> 0 | L159: ='Conversion 1'!B159/0.058 -> 0 | M159: ='Conversion 1'!B159/0.01 -> 0 | N159: ='Conversion 1'!B159/0.02 -> 0 | O159: ='Conversion 1'!B159/0.56 -> 0 | P159: ='Conversion 1'!B159/0.4 -> 0
B160: =0.1423*('Conversion 1'!D160^1.2528) -> 0 | C160: =(0.00005*('Conversion 1'!D160^2))+(0.3389*'Conversion 1'!D160)-1.431 -> -1.431 | D160: 159 | E160: ='Conversion 1'!B160 -> 0 | F160: ='Conversion 1'!B160/0.4 -> 0 | G160: ='Conversion 1'!B160/0.4 -> 0 | H160: ='Conversion 1'!B160 -> 0 | I160: ='Conversion 1'!B160/0.07 -> 0 | J160: ='Conversion 1'!B160/0.056 -> 0 | K160: ='Conversion 1'!B160/0.1 -> 0 | L160: ='Conversion 1'!B160/0.058 -> 0 | M160: ='Conversion 1'!B160/0.01 -> 0 | N160: ='Conversion 1'!B160/0.02 -> 0 | O160: ='Conversion 1'!B160/0.56 -> 0 | P160: ='Conversion 1'!B160/0.4 -> 0
B161: =0.1423*('Conversion 1'!D161^1.2528) -> 0 | C161: =(0.00005*('Conversion 1'!D161^2))+(0.3389*'Conversion 1'!D161)-1.431 -> -1.431 | D161: 160 | E161: ='Conversion 1'!B161 -> 0 | F161: ='Conversion 1'!B161/0.4 -> 0 | G161: ='Conversion 1'!B161/0.4 -> 0 | H161: ='Conversion 1'!B161 -> 0 | I161: ='Conversion 1'!B161/0.07 -> 0 | J161: ='Conversion 1'!B161/0.056 -> 0 | K161: ='Conversion 1'!B161/0.1 -> 0 | L161: ='Conversion 1'!B161/0.058 -> 0 | M161: ='Conversion 1'!B161/0.01 -> 0 | N161: ='Conversion 1'!B161/0.02 -> 0 | O161: ='Conversion 1'!B161/0.56 -> 0 | P161: ='Conversion 1'!B161/0.4 -> 0
B162: =0.1423*('Conversion 1'!D162^1.2528) -> 0 | C162: =(0.00005*('Conversion 1'!D162^2))+(0.3389*'Conversion 1'!D162)-1.431 -> -1.431 | D162: 161 | E162: ='Conversion 1'!B162 -> 0 | F162: ='Conversion 1'!B162/0.4 -> 0 | G162: ='Conversion 1'!B162/0.4 -> 0 | H162: ='Conversion 1'!B162 -> 0 | I162: ='Conversion 1'!B162/0.07 -> 0 | J162: ='Conversion 1'!B162/0.056 -> 0 | K162: ='Conversion 1'!B162/0.1 -> 0 | L162: ='Conversion 1'!B162/0.058 -> 0 | M162: ='Conversion 1'!B162/0.01 -> 0 | N162: ='Conversion 1'!B162/0.02 -> 0 | O162: ='Conversion 1'!B162/0.56 -> 0 | P162: ='Conversion 1'!B162/0.4 -> 0
B163: =0.1423*('Conversion 1'!D163^1.2528) -> 0 | C163: =(0.00005*('Conversion 1'!D163^2))+(0.3389*'Conversion 1'!D163)-1.431 -> -1.431 | D163: 162 | E163: ='Conversion 1'!B163 -> 0 | F163: ='Conversion 1'!B163/0.4 -> 0 | G163: ='Conversion 1'!B163/0.4 -> 0 | H163: ='Conversion 1'!B163 -> 0 | I163: ='Conversion 1'!B163/0.07 -> 0 | J163: ='Conversion 1'!B163/0.056 -> 0 | K163: ='Conversion 1'!B163/0.1 -> 0 | L163: ='Conversion 1'!B163/0.058 -> 0 | M163: ='Conversion 1'!B163/0.01 -> 0 | N163: ='Conversion 1'!B163/0.02 -> 0 | O163: ='Conversion 1'!B163/0.56 -> 0 | P163: ='Conversion 1'!B163/0.4 -> 0
B164: =0.1423*('Conversion 1'!D164^1.2528) -> 0 | C164: =(0.00005*('Conversion 1'!D164^2))+(0.3389*'Conversion 1'!D164)-1.431 -> -1.431 | D164: 163 | E164: ='Conversion 1'!B164 -> 0 | F164: ='Conversion 1'!B164/0.4 -> 0 | G164: ='Conversion 1'!B164/0.4 -> 0 | H164: ='Conversion 1'!B164 -> 0 | I164: ='Conversion 1'!B164/0.07 -> 0 | J164: ='Conversion 1'!B164/0.056 -> 0 | K164: ='Conversion 1'!B164/0.1 -> 0 | L164: ='Conversion 1'!B164/0.058 -> 0 | M164: ='Conversion 1'!B164/0.01 -> 0 | N164: ='Conversion 1'!B164/0.02 -> 0 | O164: ='Conversion 1'!B164/0.56 -> 0 | P164: ='Conversion 1'!B164/0.4 -> 0
B165: =0.1423*('Conversion 1'!D165^1.2528) -> 0 | C165: =(0.00005*('Conversion 1'!D165^2))+(0.3389*'Conversion 1'!D165)-1.431 -> -1.431 | D165: 164 | E165: ='Conversion 1'!B165 -> 0 | F165: ='Conversion 1'!B165/0.4 -> 0 | G165: ='Conversion 1'!B165/0.4 -> 0 | H165: ='Conversion 1'!B165 -> 0 | I165: ='Conversion 1'!B165/0.07 -> 0 | J165: ='Conversion 1'!B165/0.056 -> 0 | K165: ='Conversion 1'!B165/0.1 -> 0 | L165: ='Conversion 1'!B165/0.058 -> 0 | M165: ='Conversion 1'!B165/0.01 -> 0 | N165: ='Conversion 1'!B165/0.02 -> 0 | O165: ='Conversion 1'!B165/0.56 -> 0 | P165: ='Conversion 1'!B165/0.4 -> 0
B166: =0.1423*('Conversion 1'!D166^1.2528) -> 0 | C166: =(0.00005*('Conversion 1'!D166^2))+(0.3389*'Conversion 1'!D166)-1.431 -> -1.431 | D166: 165 | E166: ='Conversion 1'!B166 -> 0 | F166: ='Conversion 1'!B166/0.4 -> 0 | G166: ='Conversion 1'!B166/0.4 -> 0 | H166: ='Conversion 1'!B166 -> 0 | I166: ='Conversion 1'!B166/0.07 -> 0 | J166: ='Conversion 1'!B166/0.056 -> 0 | K166: ='Conversion 1'!B166/0.1 -> 0 | L166: ='Conversion 1'!B166/0.058 -> 0 | M166: ='Conversion 1'!B166/0.01 -> 0 | N166: ='Conversion 1'!B166/0.02 -> 0 | O166: ='Conversion 1'!B166/0.56 -> 0 | P166: ='Conversion 1'!B166/0.4 -> 0
B167: =0.1423*('Conversion 1'!D167^1.2528) -> 0 | C167: =(0.00005*('Conversion 1'!D167^2))+(0.3389*'Conversion 1'!D167)-1.431 -> -1.431 | D167: 166 | E167: ='Conversion 1'!B167 -> 0 | F167: ='Conversion 1'!B167/0.4 -> 0 | G167: ='Conversion 1'!B167/0.4 -> 0 | H167: ='Conversion 1'!B167 -> 0 | I167: ='Conversion 1'!B167/0.07 -> 0 | J167: ='Conversion 1'!B167/0.056 -> 0 | K167: ='Conversion 1'!B167/0.1 -> 0 | L167: ='Conversion 1'!B167/0.058 -> 0 | M167: ='Conversion 1'!B167/0.01 -> 0 | N167: ='Conversion 1'!B167/0.02 -> 0 | O167: ='Conversion 1'!B167/0.56 -> 0 | P167: ='Conversion 1'!B167/0.4 -> 0
B168: =0.1423*('Conversion 1'!D168^1.2528) -> 0 | C168: =(0.00005*('Conversion 1'!D168^2))+(0.3389*'Conversion 1'!D168)-1.431 -> -1.431 | D168: 167 | E168: ='Conversion 1'!B168 -> 0 | F168: ='Conversion 1'!B168/0.4 -> 0 | G168: ='Conversion 1'!B168/0.4 -> 0 | H168: ='Conversion 1'!B168 -> 0 | I168: ='Conversion 1'!B168/0.07 -> 0 | J168: ='Conversion 1'!B168/0.056 -> 0 | K168: ='Conversion 1'!B168/0.1 -> 0 | L168: ='Conversion 1'!B168/0.058 -> 0 | M168: ='Conversion 1'!B168/0.01 -> 0 | N168: ='Conversion 1'!B168/0.02 -> 0 | O168: ='Conversion 1'!B168/0.56 -> 0 | P168: ='Conversion 1'!B168/0.4 -> 0
B169: =0.1423*('Conversion 1'!D169^1.2528) -> 0 | C169: =(0.00005*('Conversion 1'!D169^2))+(0.3389*'Conversion 1'!D169)-1.431 -> -1.431 | D169: 168 | E169: ='Conversion 1'!B169 -> 0 | F169: ='Conversion 1'!B169/0.4 -> 0 | G169: ='Conversion 1'!B169/0.4 -> 0 | H169: ='Conversion 1'!B169 -> 0 | I169: ='Conversion 1'!B169/0.07 -> 0 | J169: ='Conversion 1'!B169/0.056 -> 0 | K169: ='Conversion 1'!B169/0.1 -> 0 | L169: ='Conversion 1'!B169/0.058 -> 0 | M169: ='Conversion 1'!B169/0.01 -> 0 | N169: ='Conversion 1'!B169/0.02 -> 0 | O169: ='Conversion 1'!B169/0.56 -> 0 | P169: ='Conversion 1'!B169/0.4 -> 0
B170: =0.1423*('Conversion 1'!D170^1.2528) -> 0 | C170: =(0.00005*('Conversion 1'!D170^2))+(0.3389*'Conversion 1'!D170)-1.431 -> -1.431 | D170: 169 | E170: ='Conversion 1'!B170 -> 0 | F170: ='Conversion 1'!B170/0.4 -> 0 | G170: ='Conversion 1'!B170/0.4 -> 0 | H170: ='Conversion 1'!B170 -> 0 | I170: ='Conversion 1'!B170/0.07 -> 0 | J170: ='Conversion 1'!B170/0.056 -> 0 | K170: ='Conversion 1'!B170/0.1 -> 0 | L170: ='Conversion 1'!B170/0.058 -> 0 | M170: ='Conversion 1'!B170/0.01 -> 0 | N170: ='Conversion 1'!B170/0.02 -> 0 | O170: ='Conversion 1'!B170/0.56 -> 0 | P170: ='Conversion 1'!B170/0.4 -> 0
B171: =0.1423*('Conversion 1'!D171^1.2528) -> 0 | C171: =(0.00005*('Conversion 1'!D171^2))+(0.3389*'Conversion 1'!D171)-1.431 -> -1.431 | D171: 170 | E171: ='Conversion 1'!B171 -> 0 | F171: ='Conversion 1'!B171/0.4 -> 0 | G171: ='Conversion 1'!B171/0.4 -> 0 | H171: ='Conversion 1'!B171 -> 0 | I171: ='Conversion 1'!B171/0.07 -> 0 | J171: ='Conversion 1'!B171/0.056 -> 0 | K171: ='Conversion 1'!B171/0.1 -> 0 | L171: ='Conversion 1'!B171/0.058 -> 0 | M171: ='Conversion 1'!B171/0.01 -> 0 | N171: ='Conversion 1'!B171/0.02 -> 0 | O171: ='Conversion 1'!B171/0.56 -> 0 | P171: ='Conversion 1'!B171/0.4 -> 0
B172: =0.1423*('Conversion 1'!D172^1.2528) -> 0 | C172: =(0.00005*('Conversion 1'!D172^2))+(0.3389*'Conversion 1'!D172)-1.431 -> -1.431 | D172: 171 | E172: ='Conversion 1'!B172 -> 0 | F172: ='Conversion 1'!B172/0.4 -> 0 | G172: ='Conversion 1'!B172/0.4 -> 0 | H172: ='Conversion 1'!B172 -> 0 | I172: ='Conversion 1'!B172/0.07 -> 0 | J172: ='Conversion 1'!B172/0.056 -> 0 | K172: ='Conversion 1'!B172/0.1 -> 0 | L172: ='Conversion 1'!B172/0.058 -> 0 | M172: ='Conversion 1'!B172/0.01 -> 0 | N172: ='Conversion 1'!B172/0.02 -> 0 | O172: ='Conversion 1'!B172/0.56 -> 0 | P172: ='Conversion 1'!B172/0.4 -> 0
B173: =0.1423*('Conversion 1'!D173^1.2528) -> 0 | C173: =(0.00005*('Conversion 1'!D173^2))+(0.3389*'Conversion 1'!D173)-1.431 -> -1.431 | D173: 172 | E173: ='Conversion 1'!B173 -> 0 | F173: ='Conversion 1'!B173/0.4 -> 0 | G173: ='Conversion 1'!B173/0.4 -> 0 | H173: ='Conversion 1'!B173 -> 0 | I173: ='Conversion 1'!B173/0.07 -> 0 | J173: ='Conversion 1'!B173/0.056 -> 0 | K173: ='Conversion 1'!B173/0.1 -> 0 | L173: ='Conversion 1'!B173/0.058 -> 0 | M173: ='Conversion 1'!B173/0.01 -> 0 | N173: ='Conversion 1'!B173/0.02 -> 0 | O173: ='Conversion 1'!B173/0.56 -> 0 | P173: ='Conversion 1'!B173/0.4 -> 0
B174: =0.1423*('Conversion 1'!D174^1.2528) -> 0 | C174: =(0.00005*('Conversion 1'!D174^2))+(0.3389*'Conversion 1'!D174)-1.431 -> -1.431 | D174: 173 | E174: ='Conversion 1'!B174 -> 0 | F174: ='Conversion 1'!B174/0.4 -> 0 | G174: ='Conversion 1'!B174/0.4 -> 0 | H174: ='Conversion 1'!B174 -> 0 | I174: ='Conversion 1'!B174/0.07 -> 0 | J174: ='Conversion 1'!B174/0.056 -> 0 | K174: ='Conversion 1'!B174/0.1 -> 0 | L174: ='Conversion 1'!B174/0.058 -> 0 | M174: ='Conversion 1'!B174/0.01 -> 0 | N174: ='Conversion 1'!B174/0.02 -> 0 | O174: ='Conversion 1'!B174/0.56 -> 0 | P174: ='Conversion 1'!B174/0.4 -> 0
B175: =0.1423*('Conversion 1'!D175^1.2528) -> 0 | C175: =(0.00005*('Conversion 1'!D175^2))+(0.3389*'Conversion 1'!D175)-1.431 -> -1.431 | D175: 174 | E175: ='Conversion 1'!B175 -> 0 | F175: ='Conversion 1'!B175/0.4 -> 0 | G175: ='Conversion 1'!B175/0.4 -> 0 | H175: ='Conversion 1'!B175 -> 0 | I175: ='Conversion 1'!B175/0.07 -> 0 | J175: ='Conversion 1'!B175/0.056 -> 0 | K175: ='Conversion 1'!B175/0.1 -> 0 | L175: ='Conversion 1'!B175/0.058 -> 0 | M175: ='Conversion 1'!B175/0.01 -> 0 | N175: ='Conversion 1'!B175/0.02 -> 0 | O175: ='Conversion 1'!B175/0.56 -> 0 | P175: ='Conversion 1'!B175/0.4 -> 0
B176: =0.1423*('Conversion 1'!D176^1.2528) -> 0 | C176: =(0.00005*('Conversion 1'!D176^2))+(0.3389*'Conversion 1'!D176)-1.431 -> -1.431 | D176: 175 | E176: ='Conversion 1'!B176 -> 0 | F176: ='Conversion 1'!B176/0.4 -> 0 | G176: ='Conversion 1'!B176/0.4 -> 0 | H176: ='Conversion 1'!B176 -> 0 | I176: ='Conversion 1'!B176/0.07 -> 0 | J176: ='Conversion 1'!B176/0.056 -> 0 | K176: ='Conversion 1'!B176/0.1 -> 0 | L176: ='Conversion 1'!B176/0.058 -> 0 | M176: ='Conversion 1'!B176/0.01 -> 0 | N176: ='Conversion 1'!B176/0.02 -> 0 | O176: ='Conversion 1'!B176/0.56 -> 0 | P176: ='Conversion 1'!B176/0.4 -> 0
B177: =0.1423*('Conversion 1'!D177^1.2528) -> 0 | C177: =(0.00005*('Conversion 1'!D177^2))+(0.3389*'Conversion 1'!D177)-1.431 -> -1.431 | D177: 176 | E177: ='Conversion 1'!B177 -> 0 | F177: ='Conversion 1'!B177/0.4 -> 0 | G177: ='Conversion 1'!B177/0.4 -> 0 | H177: ='Conversion 1'!B177 -> 0 | I177: ='Conversion 1'!B177/0.07 -> 0 | J177: ='Conversion 1'!B177/0.056 -> 0 | K177: ='Conversion 1'!B177/0.1 -> 0 | L177: ='Conversion 1'!B177/0.058 -> 0 | M177: ='Conversion 1'!B177/0.01 -> 0 | N177: ='Conversion 1'!B177/0.02 -> 0 | O177: ='Conversion 1'!B177/0.56 -> 0 | P177: ='Conversion 1'!B177/0.4 -> 0
B178: =0.1423*('Conversion 1'!D178^1.2528) -> 0 | C178: =(0.00005*('Conversion 1'!D178^2))+(0.3389*'Conversion 1'!D178)-1.431 -> -1.431 | D178: 177 | E178: ='Conversion 1'!B178 -> 0 | F178: ='Conversion 1'!B178/0.4 -> 0 | G178: ='Conversion 1'!B178/0.4 -> 0 | H178: ='Conversion 1'!B178 -> 0 | I178: ='Conversion 1'!B178/0.07 -> 0 | J178: ='Conversion 1'!B178/0.056 -> 0 | K178: ='Conversion 1'!B178/0.1 -> 0 | L178: ='Conversion 1'!B178/0.058 -> 0 | M178: ='Conversion 1'!B178/0.01 -> 0 | N178: ='Conversion 1'!B178/0.02 -> 0 | O178: ='Conversion 1'!B178/0.56 -> 0 | P178: ='Conversion 1'!B178/0.4 -> 0
B179: =0.1423*('Conversion 1'!D179^1.2528) -> 0 | C179: =(0.00005*('Conversion 1'!D179^2))+(0.3389*'Conversion 1'!D179)-1.431 -> -1.431 | D179: 178 | E179: ='Conversion 1'!B179 -> 0 | F179: ='Conversion 1'!B179/0.4 -> 0 | G179: ='Conversion 1'!B179/0.4 -> 0 | H179: ='Conversion 1'!B179 -> 0 | I179: ='Conversion 1'!B179/0.07 -> 0 | J179: ='Conversion 1'!B179/0.056 -> 0 | K179: ='Conversion 1'!B179/0.1 -> 0 | L179: ='Conversion 1'!B179/0.058 -> 0 | M179: ='Conversion 1'!B179/0.01 -> 0 | N179: ='Conversion 1'!B179/0.02 -> 0 | O179: ='Conversion 1'!B179/0.56 -> 0 | P179: ='Conversion 1'!B179/0.4 -> 0
B180: =0.1423*('Conversion 1'!D180^1.2528) -> 0 | C180: =(0.00005*('Conversion 1'!D180^2))+(0.3389*'Conversion 1'!D180)-1.431 -> -1.431 | D180: 179 | E180: ='Conversion 1'!B180 -> 0 | F180: ='Conversion 1'!B180/0.4 -> 0 | G180: ='Conversion 1'!B180/0.4 -> 0 | H180: ='Conversion 1'!B180 -> 0 | I180: ='Conversion 1'!B180/0.07 -> 0 | J180: ='Conversion 1'!B180/0.056 -> 0 | K180: ='Conversion 1'!B180/0.1 -> 0 | L180: ='Conversion 1'!B180/0.058 -> 0 | M180: ='Conversion 1'!B180/0.01 -> 0 | N180: ='Conversion 1'!B180/0.02 -> 0 | O180: ='Conversion 1'!B180/0.56 -> 0 | P180: ='Conversion 1'!B180/0.4 -> 0
B181: =0.1423*('Conversion 1'!D181^1.2528) -> 0 | C181: =(0.00005*('Conversion 1'!D181^2))+(0.3389*'Conversion 1'!D181)-1.431 -> -1.431 | D181: 180 | E181: ='Conversion 1'!B181 -> 0 | F181: ='Conversion 1'!B181/0.4 -> 0 | G181: ='Conversion 1'!B181/0.4 -> 0 | H181: ='Conversion 1'!B181 -> 0 | I181: ='Conversion 1'!B181/0.07 -> 0 | J181: ='Conversion 1'!B181/0.056 -> 0 | K181: ='Conversion 1'!B181/0.1 -> 0 | L181: ='Conversion 1'!B181/0.058 -> 0 | M181: ='Conversion 1'!B181/0.01 -> 0 | N181: ='Conversion 1'!B181/0.02 -> 0 | O181: ='Conversion 1'!B181/0.56 -> 0 | P181: ='Conversion 1'!B181/0.4 -> 0
B182: =0.1423*('Conversion 1'!D182^1.2528) -> 0 | C182: =(0.00005*('Conversion 1'!D182^2))+(0.3389*'Conversion 1'!D182)-1.431 -> -1.431 | D182: 181 | E182: ='Conversion 1'!B182 -> 0 | F182: ='Conversion 1'!B182/0.4 -> 0 | G182: ='Conversion 1'!B182/0.4 -> 0 | H182: ='Conversion 1'!B182 -> 0 | I182: ='Conversion 1'!B182/0.07 -> 0 | J182: ='Conversion 1'!B182/0.056 -> 0 | K182: ='Conversion 1'!B182/0.1 -> 0 | L182: ='Conversion 1'!B182/0.058 -> 0 | M182: ='Conversion 1'!B182/0.01 -> 0 | N182: ='Conversion 1'!B182/0.02 -> 0 | O182: ='Conversion 1'!B182/0.56 -> 0 | P182: ='Conversion 1'!B182/0.4 -> 0
B183: =0.1423*('Conversion 1'!D183^1.2528) -> 0 | C183: =(0.00005*('Conversion 1'!D183^2))+(0.3389*'Conversion 1'!D183)-1.431 -> -1.431 | D183: 182 | E183: ='Conversion 1'!B183 -> 0 | F183: ='Conversion 1'!B183/0.4 -> 0 | G183: ='Conversion 1'!B183/0.4 -> 0 | H183: ='Conversion 1'!B183 -> 0 | I183: ='Conversion 1'!B183/0.07 -> 0 | J183: ='Conversion 1'!B183/0.056 -> 0 | K183: ='Conversion 1'!B183/0.1 -> 0 | L183: ='Conversion 1'!B183/0.058 -> 0 | M183: ='Conversion 1'!B183/0.01 -> 0 | N183: ='Conversion 1'!B183/0.02 -> 0 | O183: ='Conversion 1'!B183/0.56 -> 0 | P183: ='Conversion 1'!B183/0.4 -> 0
B184: =0.1423*('Conversion 1'!D184^1.2528) -> 0 | C184: =(0.00005*('Conversion 1'!D184^2))+(0.3389*'Conversion 1'!D184)-1.431 -> -1.431 | D184: 183 | E184: ='Conversion 1'!B184 -> 0 | F184: ='Conversion 1'!B184/0.4 -> 0 | G184: ='Conversion 1'!B184/0.4 -> 0 | H184: ='Conversion 1'!B184 -> 0 | I184: ='Conversion 1'!B184/0.07 -> 0 | J184: ='Conversion 1'!B184/0.056 -> 0 | K184: ='Conversion 1'!B184/0.1 -> 0 | L184: ='Conversion 1'!B184/0.058 -> 0 | M184: ='Conversion 1'!B184/0.01 -> 0 | N184: ='Conversion 1'!B184/0.02 -> 0 | O184: ='Conversion 1'!B184/0.56 -> 0 | P184: ='Conversion 1'!B184/0.4 -> 0
B185: =0.1423*('Conversion 1'!D185^1.2528) -> 0 | C185: =(0.00005*('Conversion 1'!D185^2))+(0.3389*'Conversion 1'!D185)-1.431 -> -1.431 | D185: 184 | E185: ='Conversion 1'!B185 -> 0 | F185: ='Conversion 1'!B185/0.4 -> 0 | G185: ='Conversion 1'!B185/0.4 -> 0 | H185: ='Conversion 1'!B185 -> 0 | I185: ='Conversion 1'!B185/0.07 -> 0 | J185: ='Conversion 1'!B185/0.056 -> 0 | K185: ='Conversion 1'!B185/0.1 -> 0 | L185: ='Conversion 1'!B185/0.058 -> 0 | M185: ='Conversion 1'!B185/0.01 -> 0 | N185: ='Conversion 1'!B185/0.02 -> 0 | O185: ='Conversion 1'!B185/0.56 -> 0 | P185: ='Conversion 1'!B185/0.4 -> 0
B186: =0.1423*('Conversion 1'!D186^1.2528) -> 0 | C186: =(0.00005*('Conversion 1'!D186^2))+(0.3389*'Conversion 1'!D186)-1.431 -> -1.431 | D186: 185 | E186: ='Conversion 1'!B186 -> 0 | F186: ='Conversion 1'!B186/0.4 -> 0 | G186: ='Conversion 1'!B186/0.4 -> 0 | H186: ='Conversion 1'!B186 -> 0 | I186: ='Conversion 1'!B186/0.07 -> 0 | J186: ='Conversion 1'!B186/0.056 -> 0 | K186: ='Conversion 1'!B186/0.1 -> 0 | L186: ='Conversion 1'!B186/0.058 -> 0 | M186: ='Conversion 1'!B186/0.01 -> 0 | N186: ='Conversion 1'!B186/0.02 -> 0 | O186: ='Conversion 1'!B186/0.56 -> 0 | P186: ='Conversion 1'!B186/0.4 -> 0
B187: =0.1423*('Conversion 1'!D187^1.2528) -> 0 | C187: =(0.00005*('Conversion 1'!D187^2))+(0.3389*'Conversion 1'!D187)-1.431 -> -1.431 | D187: 186 | E187: ='Conversion 1'!B187 -> 0 | F187: ='Conversion 1'!B187/0.4 -> 0 | G187: ='Conversion 1'!B187/0.4 -> 0 | H187: ='Conversion 1'!B187 -> 0 | I187: ='Conversion 1'!B187/0.07 -> 0 | J187: ='Conversion 1'!B187/0.056 -> 0 | K187: ='Conversion 1'!B187/0.1 -> 0 | L187: ='Conversion 1'!B187/0.058 -> 0 | M187: ='Conversion 1'!B187/0.01 -> 0 | N187: ='Conversion 1'!B187/0.02 -> 0 | O187: ='Conversion 1'!B187/0.56 -> 0 | P187: ='Conversion 1'!B187/0.4 -> 0
B188: =0.1423*('Conversion 1'!D188^1.2528) -> 0 | C188: =(0.00005*('Conversion 1'!D188^2))+(0.3389*'Conversion 1'!D188)-1.431 -> -1.431 | D188: 187 | E188: ='Conversion 1'!B188 -> 0 | F188: ='Conversion 1'!B188/0.4 -> 0 | G188: ='Conversion 1'!B188/0.4 -> 0 | H188: ='Conversion 1'!B188 -> 0 | I188: ='Conversion 1'!B188/0.07 -> 0 | J188: ='Conversion 1'!B188/0.056 -> 0 | K188: ='Conversion 1'!B188/0.1 -> 0 | L188: ='Conversion 1'!B188/0.058 -> 0 | M188: ='Conversion 1'!B188/0.01 -> 0 | N188: ='Conversion 1'!B188/0.02 -> 0 | O188: ='Conversion 1'!B188/0.56 -> 0 | P188: ='Conversion 1'!B188/0.4 -> 0
B189: =0.1423*('Conversion 1'!D189^1.2528) -> 0 | C189: =(0.00005*('Conversion 1'!D189^2))+(0.3389*'Conversion 1'!D189)-1.431 -> -1.431 | D189: 188 | E189: ='Conversion 1'!B189 -> 0 | F189: ='Conversion 1'!B189/0.4 -> 0 | G189: ='Conversion 1'!B189/0.4 -> 0 | H189: ='Conversion 1'!B189 -> 0 | I189: ='Conversion 1'!B189/0.07 -> 0 | J189: ='Conversion 1'!B189/0.056 -> 0 | K189: ='Conversion 1'!B189/0.1 -> 0 | L189: ='Conversion 1'!B189/0.058 -> 0 | M189: ='Conversion 1'!B189/0.01 -> 0 | N189: ='Conversion 1'!B189/0.02 -> 0 | O189: ='Conversion 1'!B189/0.56 -> 0 | P189: ='Conversion 1'!B189/0.4 -> 0
B190: =0.1423*('Conversion 1'!D190^1.2528) -> 0 | C190: =(0.00005*('Conversion 1'!D190^2))+(0.3389*'Conversion 1'!D190)-1.431 -> -1.431 | D190: 189 | E190: ='Conversion 1'!B190 -> 0 | F190: ='Conversion 1'!B190/0.4 -> 0 | G190: ='Conversion 1'!B190/0.4 -> 0 | H190: ='Conversion 1'!B190 -> 0 | I190: ='Conversion 1'!B190/0.07 -> 0 | J190: ='Conversion 1'!B190/0.056 -> 0 | K190: ='Conversion 1'!B190/0.1 -> 0 | L190: ='Conversion 1'!B190/0.058 -> 0 | M190: ='Conversion 1'!B190/0.01 -> 0 | N190: ='Conversion 1'!B190/0.02 -> 0 | O190: ='Conversion 1'!B190/0.56 -> 0 | P190: ='Conversion 1'!B190/0.4 -> 0
B191: =0.1423*('Conversion 1'!D191^1.2528) -> 0 | C191: =(0.00005*('Conversion 1'!D191^2))+(0.3389*'Conversion 1'!D191)-1.431 -> -1.431 | D191: 190 | E191: ='Conversion 1'!B191 -> 0 | F191: ='Conversion 1'!B191/0.4 -> 0 | G191: ='Conversion 1'!B191/0.4 -> 0 | H191: ='Conversion 1'!B191 -> 0 | I191: ='Conversion 1'!B191/0.07 -> 0 | J191: ='Conversion 1'!B191/0.056 -> 0 | K191: ='Conversion 1'!B191/0.1 -> 0 | L191: ='Conversion 1'!B191/0.058 -> 0 | M191: ='Conversion 1'!B191/0.01 -> 0 | N191: ='Conversion 1'!B191/0.02 -> 0 | O191: ='Conversion 1'!B191/0.56 -> 0 | P191: ='Conversion 1'!B191/0.4 -> 0
B192: =0.1423*('Conversion 1'!D192^1.2528) -> 0 | C192: =(0.00005*('Conversion 1'!D192^2))+(0.3389*'Conversion 1'!D192)-1.431 -> -1.431 | D192: 191 | E192: ='Conversion 1'!B192 -> 0 | F192: ='Conversion 1'!B192/0.4 -> 0 | G192: ='Conversion 1'!B192/0.4 -> 0 | H192: ='Conversion 1'!B192 -> 0 | I192: ='Conversion 1'!B192/0.07 -> 0 | J192: ='Conversion 1'!B192/0.056 -> 0 | K192: ='Conversion 1'!B192/0.1 -> 0 | L192: ='Conversion 1'!B192/0.058 -> 0 | M192: ='Conversion 1'!B192/0.01 -> 0 | N192: ='Conversion 1'!B192/0.02 -> 0 | O192: ='Conversion 1'!B192/0.56 -> 0 | P192: ='Conversion 1'!B192/0.4 -> 0
B193: =0.1423*('Conversion 1'!D193^1.2528) -> 0 | C193: =(0.00005*('Conversion 1'!D193^2))+(0.3389*'Conversion 1'!D193)-1.431 -> -1.431 | D193: 192 | E193: ='Conversion 1'!B193 -> 0 | F193: ='Conversion 1'!B193/0.4 -> 0 | G193: ='Conversion 1'!B193/0.4 -> 0 | H193: ='Conversion 1'!B193 -> 0 | I193: ='Conversion 1'!B193/0.07 -> 0 | J193: ='Conversion 1'!B193/0.056 -> 0 | K193: ='Conversion 1'!B193/0.1 -> 0 | L193: ='Conversion 1'!B193/0.058 -> 0 | M193: ='Conversion 1'!B193/0.01 -> 0 | N193: ='Conversion 1'!B193/0.02 -> 0 | O193: ='Conversion 1'!B193/0.56 -> 0 | P193: ='Conversion 1'!B193/0.4 -> 0
B194: =0.1423*('Conversion 1'!D194^1.2528) -> 0 | C194: =(0.00005*('Conversion 1'!D194^2))+(0.3389*'Conversion 1'!D194)-1.431 -> -1.431 | D194: 193 | E194: ='Conversion 1'!B194 -> 0 | F194: ='Conversion 1'!B194/0.4 -> 0 | G194: ='Conversion 1'!B194/0.4 -> 0 | H194: ='Conversion 1'!B194 -> 0 | I194: ='Conversion 1'!B194/0.07 -> 0 | J194: ='Conversion 1'!B194/0.056 -> 0 | K194: ='Conversion 1'!B194/0.1 -> 0 | L194: ='Conversion 1'!B194/0.058 -> 0 | M194: ='Conversion 1'!B194/0.01 -> 0 | N194: ='Conversion 1'!B194/0.02 -> 0 | O194: ='Conversion 1'!B194/0.56 -> 0 | P194: ='Conversion 1'!B194/0.4 -> 0
B195: =0.1423*('Conversion 1'!D195^1.2528) -> 0 | C195: =(0.00005*('Conversion 1'!D195^2))+(0.3389*'Conversion 1'!D195)-1.431 -> -1.431 | D195: 194 | E195: ='Conversion 1'!B195 -> 0 | F195: ='Conversion 1'!B195/0.4 -> 0 | G195: ='Conversion 1'!B195/0.4 -> 0 | H195: ='Conversion 1'!B195 -> 0 | I195: ='Conversion 1'!B195/0.07 -> 0 | J195: ='Conversion 1'!B195/0.056 -> 0 | K195: ='Conversion 1'!B195/0.1 -> 0 | L195: ='Conversion 1'!B195/0.058 -> 0 | M195: ='Conversion 1'!B195/0.01 -> 0 | N195: ='Conversion 1'!B195/0.02 -> 0 | O195: ='Conversion 1'!B195/0.56 -> 0 | P195: ='Conversion 1'!B195/0.4 -> 0
B196: =0.1423*('Conversion 1'!D196^1.2528) -> 0 | C196: =(0.00005*('Conversion 1'!D196^2))+(0.3389*'Conversion 1'!D196)-1.431 -> -1.431 | D196: 195 | E196: ='Conversion 1'!B196 -> 0 | F196: ='Conversion 1'!B196/0.4 -> 0 | G196: ='Conversion 1'!B196/0.4 -> 0 | H196: ='Conversion 1'!B196 -> 0 | I196: ='Conversion 1'!B196/0.07 -> 0 | J196: ='Conversion 1'!B196/0.056 -> 0 | K196: ='Conversion 1'!B196/0.1 -> 0 | L196: ='Conversion 1'!B196/0.058 -> 0 | M196: ='Conversion 1'!B196/0.01 -> 0 | N196: ='Conversion 1'!B196/0.02 -> 0 | O196: ='Conversion 1'!B196/0.56 -> 0 | P196: ='Conversion 1'!B196/0.4 -> 0
B197: =0.1423*('Conversion 1'!D197^1.2528) -> 0 | C197: =(0.00005*('Conversion 1'!D197^2))+(0.3389*'Conversion 1'!D197)-1.431 -> -1.431 | D197: 196 | E197: ='Conversion 1'!B197 -> 0 | F197: ='Conversion 1'!B197/0.4 -> 0 | G197: ='Conversion 1'!B197/0.4 -> 0 | H197: ='Conversion 1'!B197 -> 0 | I197: ='Conversion 1'!B197/0.07 -> 0 | J197: ='Conversion 1'!B197/0.056 -> 0 | K197: ='Conversion 1'!B197/0.1 -> 0 | L197: ='Conversion 1'!B197/0.058 -> 0 | M197: ='Conversion 1'!B197/0.01 -> 0 | N197: ='Conversion 1'!B197/0.02 -> 0 | O197: ='Conversion 1'!B197/0.56 -> 0 | P197: ='Conversion 1'!B197/0.4 -> 0
B198: =0.1423*('Conversion 1'!D198^1.2528) -> 0 | C198: =(0.00005*('Conversion 1'!D198^2))+(0.3389*'Conversion 1'!D198)-1.431 -> -1.431 | D198: 197 | E198: ='Conversion 1'!B198 -> 0 | F198: ='Conversion 1'!B198/0.4 -> 0 | G198: ='Conversion 1'!B198/0.4 -> 0 | H198: ='Conversion 1'!B198 -> 0 | I198: ='Conversion 1'!B198/0.07 -> 0 | J198: ='Conversion 1'!B198/0.056 -> 0 | K198: ='Conversion 1'!B198/0.1 -> 0 | L198: ='Conversion 1'!B198/0.058 -> 0 | M198: ='Conversion 1'!B198/0.01 -> 0 | N198: ='Conversion 1'!B198/0.02 -> 0 | O198: ='Conversion 1'!B198/0.56 -> 0 | P198: ='Conversion 1'!B198/0.4 -> 0
B199: =0.1423*('Conversion 1'!D199^1.2528) -> 0 | C199: =(0.00005*('Conversion 1'!D199^2))+(0.3389*'Conversion 1'!D199)-1.431 -> -1.431 | D199: 198 | E199: ='Conversion 1'!B199 -> 0 | F199: ='Conversion 1'!B199/0.4 -> 0 | G199: ='Conversion 1'!B199/0.4 -> 0 | H199: ='Conversion 1'!B199 -> 0 | I199: ='Conversion 1'!B199/0.07 -> 0 | J199: ='Conversion 1'!B199/0.056 -> 0 | K199: ='Conversion 1'!B199/0.1 -> 0 | L199: ='Conversion 1'!B199/0.058 -> 0 | M199: ='Conversion 1'!B199/0.01 -> 0 | N199: ='Conversion 1'!B199/0.02 -> 0 | O199: ='Conversion 1'!B199/0.56 -> 0 | P199: ='Conversion 1'!B199/0.4 -> 0
B200: =0.1423*('Conversion 1'!D200^1.2528) -> 0 | C200: =(0.00005*('Conversion 1'!D200^2))+(0.3389*'Conversion 1'!D200)-1.431 -> -1.431 | D200: 199 | E200: ='Conversion 1'!B200 -> 0 | F200: ='Conversion 1'!B200/0.4 -> 0 | G200: ='Conversion 1'!B200/0.4 -> 0 | H200: ='Conversion 1'!B200 -> 0 | I200: ='Conversion 1'!B200/0.07 -> 0 | J200: ='Conversion 1'!B200/0.056 -> 0 | K200: ='Conversion 1'!B200/0.1 -> 0 | L200: ='Conversion 1'!B200/0.058 -> 0 | M200: ='Conversion 1'!B200/0.01 -> 0 | N200: ='Conversion 1'!B200/0.02 -> 0 | O200: ='Conversion 1'!B200/0.56 -> 0 | P200: ='Conversion 1'!B200/0.4 -> 0
... 805 more rows

Sheet Conversion 2
B3: User input value | C3: User input type | D3: Output in mg/L CaCO3 | E3: Output in mg/L Ca
B4: 0 | C4: mg/L CaCO3 | D4: =HLOOKUP(C4, 'Formula Sheet2'!$D$1:$O2,'Formula Sheet2'!$C2,FALSE) -> 0 | E4: =IF('Formula Sheet 1'!B4>10, (0.00005*(D4^2))+(0.3389*D4)-1.431, 0.1423*(D4^1.2528)) -> 0
B5: 0 | C5: mg/L CaCO3 | D5: =HLOOKUP(C5, 'Formula Sheet2'!$D$1:$O3,'Formula Sheet2'!$C3,FALSE) -> 0 | E5: =IF('Formula Sheet 1'!B5>10, (0.00005*(D5^2))+(0.3389*D5)-1.431, 0.1423*(D5^1.2528)) -> 0
B6: 0 | C6: mg/L CaCO3 | D6: =HLOOKUP(C6, 'Formula Sheet2'!$D$1:$O4,'Formula Sheet2'!$C4,FALSE) -> 0 | E6: =IF('Formula Sheet 1'!B6>10, (0.00005*(D6^2))+(0.3389*D6)-1.431, 0.1423*(D6^1.2528)) -> 0
B7: 0 | C7: mg/L CaCO3 | D7: =HLOOKUP(C7, 'Formula Sheet2'!$D$1:$O5,'Formula Sheet2'!$C5,FALSE) -> 0 | E7: =IF('Formula Sheet 1'!B7>10, (0.00005*(D7^2))+(0.3389*D7)-1.431, 0.1423*(D7^1.2528)) -> 0
B8: 0 | C8: mg/L CaCO3 | D8: =HLOOKUP(C8, 'Formula Sheet2'!$D$1:$O6,'Formula Sheet2'!$C6,FALSE) -> 0 | E8: =IF('Formula Sheet 1'!B8>10, (0.00005*(D8^2))+(0.3389*D8)-1.431, 0.1423*(D8^1.2528)) -> 0
B9: 0 | C9: mg/L CaCO3 | D9: =HLOOKUP(C9, 'Formula Sheet2'!$D$1:$O7,'Formula Sheet2'!$C7,FALSE) -> 0 | E9: =IF('Formula Sheet 1'!B9>10, (0.00005*(D9^2))+(0.3389*D9)-1.431, 0.1423*(D9^1.2528)) -> 0
B10: 0 | C10: mg/L CaCO3 | D10: =HLOOKUP(C10, 'Formula Sheet2'!$D$1:$O8,'Formula Sheet2'!$C8,FALSE) -> 0 | E10: =IF('Formula Sheet 1'!B10>10, (0.00005*(D10^2))+(0.3389*D10)-1.431, 0.1423*(D10^1.2528)) -> 0
B11: 0 | C11: mg/L CaCO3 | D11: =HLOOKUP(C11, 'Formula Sheet2'!$D$1:$O9,'Formula Sheet2'!$C9,FALSE) -> 0 | E11: =IF('Formula Sheet 1'!B11>10, (0.00005*(D11^2))+(0.3389*D11)-1.431, 0.1423*(D11^1.2528)) -> 0
B12: 0 | C12: mg/L CaCO3 | D12: =HLOOKUP(C12, 'Formula Sheet2'!$D$1:$O10,'Formula Sheet2'!$C10,FALSE) -> 0 | E12: =IF('Formula Sheet 1'!B12>10, (0.00005*(D12^2))+(0.3389*D12)-1.431, 0.1423*(D12^1.2528)) -> 0
B13: 0 | C13: mg/L CaCO3 | D13: =HLOOKUP(C13, 'Formula Sheet2'!$D$1:$O11,'Formula Sheet2'!$C11,FALSE) -> 0 | E13: =IF('Formula Sheet 1'!B13>10, (0.00005*(D13^2))+(0.3389*D13)-1.431, 0.1423*(D13^1.2528)) -> 0
B14: 0 | C14: mg/L CaCO3 | D14: =HLOOKUP(C14, 'Formula Sheet2'!$D$1:$O12,'Formula Sheet2'!$C12,FALSE) -> 0 | E14: =IF('Formula Sheet 1'!B14>10, (0.00005*(D14^2))+(0.3389*D14)-1.431, 0.1423*(D14^1.2528)) -> 0
B15: 0 | C15: mg/L CaCO3 | D15: =HLOOKUP(C15, 'Formula Sheet2'!$D$1:$O13,'Formula Sheet2'!$C13,FALSE) -> 0 | E15: =IF('Formula Sheet 1'!B15>10, (0.00005*(D15^2))+(0.3389*D15)-1.431, 0.1423*(D15^1.2528)) -> 0
B16: 0 | C16: mg/L CaCO3 | D16: =HLOOKUP(C16, 'Formula Sheet2'!$D$1:$O14,'Formula Sheet2'!$C14,FALSE) -> 0 | E16: =IF('Formula Sheet 1'!B16>10, (0.00005*(D16^2))+(0.3389*D16)-1.431, 0.1423*(D16^1.2528)) -> 0
B17: 0 | C17: mg/L CaCO3 | D17: =HLOOKUP(C17, 'Formula Sheet2'!$D$1:$O15,'Formula Sheet2'!$C15,FALSE) -> 0 | E17: =IF('Formula Sheet 1'!B17>10, (0.00005*(D17^2))+(0.3389*D17)-1.431, 0.1423*(D17^1.2528)) -> 0
B18: 0 | C18: mg/L CaCO3 | D18: =HLOOKUP(C18, 'Formula Sheet2'!$D$1:$O16,'Formula Sheet2'!$C16,FALSE) -> 0 | E18: =IF('Formula Sheet 1'!B18>10, (0.00005*(D18^2))+(0.3389*D18)-1.431, 0.1423*(D18^1.2528)) -> 0

Sheet Formula Sheet2 (hidden)
A1: CaCO3 mg/L | D1: mg/L CaCO3 | E1: mg/L Ca (Ca+Mg) | F1: ppm Ca (Ca +Mg) | G1: ppm CaCO3 | H1: English Degree (grain CaCO3/gal) | I1: German Degree (10mg CaO/L) | J1: French Degree (10 mg CaCO3/L) | K1: USA degree (grain CaCO3/gal) | L1: mmol/L | M1: meq/L (or mval/L) | N1: mg CaO/ L | O1: mg Ca2+/L (Ca+Mg) | P1: Output in mg/L Ca | Q1: Output in mg/L Ca
A2: ='Conversion 2 '!B4 -> 0 | C2: 2 | D2: =A2 -> 0 | E2: =A2/0.4 -> 0 | F2: =A2/0.4 -> 0 | G2: =A2 -> 0 | H2: =A2/0.07 -> 0 | I2: =A2/0.056 -> 0 | J2: =A2/0.1 -> 0 | K2: =A2/0.058 -> 0 | L2: =A2/0.01 -> 0 | M2: =A2/0.02 -> 0 | N2: =A2/0.56 -> 0 | O2: =A2/0.4 -> 0 | P2: =0.1423*(A2^1.2528) -> 0 | Q2: =(0.00005*(A2^2))+(0.3389*A2)-1.431 -> -1.431
A3: ='Conversion 2 '!B5 -> 0 | C3: 3 | D3: 0 | E3: 0 | F3: 0 | G3: 0 | H3: 0 | I3: 0 | J3: 0 | K3: 0 | L3: 0 | M3: 0 | N3: 0 | O3: 0 | P3: 0 | Q3: -1.431
A4: ='Conversion 2 '!B6 -> 0 | C4: 4 | D4: 0 | E4: 0 | F4: 0 | G4: 0 | H4: 0 | I4: 0 | J4: 0 | K4: 0 | L4: 0 | M4: 0 | N4: 0 | O4: 0 | P4: 0 | Q4: -1.431
A5: ='Conversion 2 '!B7 -> 0 | C5: 5 | D5: 0 | E5: 0 | F5: 0 | G5: 0 | H5: 0 | I5: 0 | J5: 0 | K5: 0 | L5: 0 | M5: 0 | N5: 0 | O5: 0 | P5: 0 | Q5: -1.431
A6: ='Conversion 2 '!B8 -> 0 | C6: 6 | D6: 0 | E6: 0 | F6: 0 | G6: 0 | H6: 0 | I6: 0 | J6: 0 | K6: 0 | L6: 0 | M6: 0 | N6: 0 | O6: 0 | P6: 0 | Q6: -1.431
A7: ='Conversion 2 '!B9 -> 0 | C7: 7 | D7: 0 | E7: 0 | F7: 0 | G7: 0 | H7: 0 | I7: 0 | J7: 0 | K7: 0 | L7: 0 | M7: 0 | N7: 0 | O7: 0 | P7: 0 | Q7: -1.431
A8: ='Conversion 2 '!B10 -> 0 | C8: 8 | D8: 0 | E8: 0 | F8: 0 | G8: 0 | H8: 0 | I8: 0 | J8: 0 | K8: 0 | L8: 0 | M8: 0 | N8: 0 | O8: 0 | P8: 0 | Q8: -1.431
A9: ='Conversion 2 '!B11 -> 0 | C9: 9 | D9: 0 | E9: 0 | F9: 0 | G9: 0 | H9: 0 | I9: 0 | J9: 0 | K9: 0 | L9: 0 | M9: 0 | N9: 0 | O9: 0 | P9: 0 | Q9: -1.431
A10: ='Conversion 2 '!B12 -> 0 | C10: 10 | D10: 0 | E10: 0 | F10: 0 | G10: 0 | H10: 0 | I10: 0 | J10: 0 | K10: 0 | L10: 0 | M10: 0 | N10: 0 | O10: 0 | P10: 0 | Q10: -1.431
A11: ='Conversion 2 '!B13 -> 0 | C11: 11 | D11: 0 | E11: 0 | F11: 0 | G11: 0 | H11: 0 | I11: 0 | J11: 0 | K11: 0 | L11: 0 | M11: 0 | N11: 0 | O11: 0 | P11: 0 | Q11: -1.431
A12: ='Conversion 2 '!B14 -> 0 | C12: 12 | D12: 0 | E12: 0 | F12: 0 | G12: 0 | H12: 0 | I12: 0 | J12: 0 | K12: 0 | L12: 0 | M12: 0 | N12: 0 | O12: 0 | P12: 0 | Q12: -1.431
A13: ='Conversion 2 '!B15 -> 0 | C13: 13 | D13: 0 | E13: 0 | F13: 0 | G13: 0 | H13: 0 | I13: 0 | J13: 0 | K13: 0 | L13: 0 | M13: 0 | N13: 0 | O13: 0 | P13: 0 | Q13: -1.431
A14: ='Conversion 2 '!B16 -> 0 | C14: 14 | D14: 0 | E14: 0 | F14: 0 | G14: 0 | H14: 0 | I14: 0 | J14: 0 | K14: 0 | L14: 0 | M14: 0 | N14: 0 | O14: 0 | P14: 0 | Q14: -1.431
A15: ='Conversion 2 '!B17 -> 0 | C15: 15 | D15: 0 | E15: 0 | F15: 0 | G15: 0 | H15: 0 | I15: 0 | J15: 0 | K15: 0 | L15: 0 | M15: 0 | N15: 0 | O15: 0 | P15: 0 | Q15: -1.431
A16: ='Conversion 2 '!B18 -> 0 | C16: 16 | D16: 0 | E16: 0 | F16: 0 | G16: 0 | H16: 0 | I16: 0 | J16: 0 | K16: 0 | L16: 0 | M16: 0 | N16: 0 | O16: 0 | P16: 0 | Q16: -1.431
A17: ='Conversion 2 '!#REF! ->  | C17: 17
